Workbook

Sheet Commune,Gemeinde xy
A1: =bi("Charge globale rejetée à la STEP et évaluation des eaux claires parasites","Globale Abwasserfracht und Abschätzung des ständigen Fremdwasseranteils") -> Globale Abwasserfracht und Abschätzung des ständigen Fremdwasseranteils | L1: =bi("Remplir uniquement les cellules en vert","Nur die grüne Spalten ausfüllen") -> Nur die grüne Spalten ausfüllen
D3: =bi("Commune :","Gemeinde :") -> Gemeinde : | E3: Leuk
D4: =bi("Convention du (date):","Abkommen vom (Datum) :") -> Abkommen vom (Datum) : | E4: 2014-12-15
D5: =bi("Point de mesure :","Messpunkt :") -> Messpunkt : | E5: Kanalisation Abzw. Gerberstr./Herrw. | I5: =bi("Localisation à décrire","Ort beschreiben") -> Ort beschreiben
D6: =bi("Type de prélèvement :","Probenahmeart :") -> Probenahmeart : | E6: 24h, prop.Durchfluss | I6: =bi("Prélèvement moyen 24 h, proportionnel au temps / au débit?","24-Stunden-Sammelproben, proportional zu Zeit- oder zu Durchfluss?") -> 24-Stunden-Sammelproben, proportional zu Zeit- oder zu Durchfluss?
D7: Langue/Sprache :
D8: =bi("STEP: ","ARA: ") -> ARA:
AG9: =bi("Débit d'ECP excédentaire par rapport au débit spécifique admis","Überschüssiges Fremdwasser bei angenommener Abwassermenge") -> Überschüssiges Fremdwasser bei angenommener Abwassermenge
D10: Concentrations mesurées | I10: =bi("Charges polluantes","Schmutzfracht") -> Schmutzfracht | N10: =bi("Charges en EH","Fracht in EW") -> Fracht in EW | S10: =bi("charge moyenne","Mittlere Fracht") -> Mittlere Fracht | T10: =bi("Débit specifique","spez. Abwassermenge") -> spez. Abwassermenge | U10: =bi("Débits maximum","max Durchfluss") -> max Durchfluss | W10: =bi("Evaluation part d'eau claire parasite","Abschätzung des Fremdwasseranteils") -> Abschätzung des Fremdwasseranteils | AE10: =bi("Eaux usée","Abwasser") -> Abwasser
C11: =bi("débit","Durchfluss") -> Durchfluss | D11: =bi("DCO","CSB") -> CSB | E11: =bi("DBO5","BSB5") -> BSB5 | F11: Ntot | G11: NH4 | H11: Ptot | I11: =bi("DCO","CSB") -> CSB | J11: =bi("DBO5","BSB5") -> BSB5 | K11: Ntot | L11: NH4 | M11: Ptot | N11: =bi("DCO","CSB") -> CSB | O11: =bi("DBO5","BSB5") -> BSB5 | P11: Ntot | Q11: NH4 | R11: Ptot | U11: =bi("QTS 14","QTW 14") -> QTW 14 | V11: ="2"&U11 -> 2QTW 14 | W11: =bi("DCO","CSB") -> CSB | X11: =bi("DBO5","BSB5") -> BSB5 | Y11: Ntot | Z11: NH4 | AA11: Ptot | AB11: =bi("moyenne","Mittel") -> Mittel | AC11: =bi("Eaux claires parasites","Fremdwassermenge") -> Fremdwassermenge
A12: =bi("Date","Datum") -> Datum | C12: m3/d | D12: mg/l | E12: mg/l | F12: mg/l | G12: mg/l | H12: mg/l | I12: kg/d | J12: kg/d | K12: kg/d | L12: kg/d | M12: kg/d | N12: =bi("EH","EW") -> EW | O12: EW | P12: EW | Q12: EW | R12: EW | S12: EW | T12: =bi("l/EH.d","l/EW.d") -> l/EW.d | U12: l/s | V12: l/s | W12: % | X12: % | Y12: % | Z12: % | AA12: % | AB12: % | AC12: m3/d | AD12: l/s | AE12: m3/d | AF12: l/s | AG12: =bi("de ","von ")&T14&bi(" l/EH.d","l/EW.d") -> von 250l/EW.d
A13: =bi("Charges maximum selon convention","Maximale Frachten gemäss Abkommen") -> Maximale Frachten gemäss Abkommen | U13: =C14/14/3.6 -> 347.2222222
C14: 17500 | I14: =$S$14*data!B4/1000 -> 6600 | J14: =$S$14*data!B5/1000 -> 3300 | K14: =$S$14*data!B6/1000 -> 610.5 | L14: =$S$14*data!B7/1000 -> 374 | M14: =$S$14*data!B8/1000 -> 97.9 | S14: 55000 | T14: 250 | U14: 88 | V14: =U14*2 -> 176 | AD14: =(T14-data!B3) * S14 / 86400 -> 50.92592593
A15: =bi("Résultat des mesures","Messergebnisse") -> Messergebnisse
A16: 2014-05-10 | B16: =IF(C16="","",WEEKDAY(A16,2)) -> 1900-01-06 | C16: 16500 | E16: 170 | F16: 35 | G16: 23 | H16: 5 | I16: =IF($C16="","",IF(D16="","",D16*$C16/1000)) ->  | J16: =IF($C16="","",IF(E16="","",E16*$C16/1000)) -> 2805 | K16: =IF($C16="","",IF(F16="","",F16*$C16/1000)) -> 577.5 | L16: =IF($C16="","",IF(G16="","",G16*$C16/1000)) -> 379.5 | M16: =IF($C16="","",IF(H16="","",H16*$C16/1000)) -> 82.5 | N16: =IF($C16="","",IF(I16="","",I16*1000/data!$B$4)) ->  | O16: =IF($C16="","",IF(J16="","",J16*1000/data!$B$5)) -> 46750 | P16: =IF($C16="","",IF(K16="","",K16*1000/data!$B$6)) -> 52027.02703 | Q16: =IF($C16="","",IF(L16="","",L16*1000/data!$B$7)) -> 55808.82353 | R16: =IF($C16="","",IF(M16="","",M16*1000/data!$B$8)) -> 46348.31461 | S16: =IF(C16="","",AVERAGE(N16:R16)) -> 50233.54129 | T16: =IF(C16="","",C16/S16*1000) -> 328.4657935 | U16: =IF(C16="","",C16/(14 * 3.6)) -> 327.3809524 | V16: =IF(C16="","",U16*2) -> 654.7619048 | W16: =IF(D16="","",1- (D16 / (data!$B$4*1000/data!$B$3))) ->  | X16: =IF(E16="","",1- (E16 / (data!$B$5*1000/data!$B$3))) -> 0.5183333333 | Y16: =IF(F16="","",1- (F16 / (data!$B$6*1000/data!$B$3))) -> 0.463963964 | Z16: =IF(G16="","",1- (G16 / (data!$B$7*1000/data!$B$3))) -> 0.425 | AA16: =IF(H16="","",1- (H16 / (data!$B$8*1000/data!$B$3))) -> 0.5224719101 | AB16: =IF(AND(D16="",E16="",F16="",G16="",H16=""),"",AVERAGE(W16:AA16)) -> 0.4824423019 | AC16: =IF(C16="","",AB16*C16) -> 7960.297981 | AD16: =IF(C16="","",AC16/60/60/24*1000) -> 92.13307848 | AE16: =IF(C16="","",C16-AC16) -> 8539.702019 | AF16: =IF(C16="","",AE16/60/60/24*1000) -> 98.83914374 | AG16: =IF(C16="","",IF(T16>T$14,(T16-T$14)*S16/86400,"")) -> 45.62054025
A17: 2014-05-11 | B17: 1900-01-07 | C17: 16000 | E17: 174 | F17: 35.8 | G17: 25.8 | H17: 5.5 | I17: =IF($C17="","",IF(D17="","",D17*$C17/1000)) ->  | J17: 2784 | K17: =IF($C17="","",IF(F17="","",F17*$C17/1000)) -> 572.8 | L17: =IF($C17="","",IF(G17="","",G17*$C17/1000)) -> 412.8 | M17: =IF($C17="","",IF(H17="","",H17*$C17/1000)) -> 88 | N17: =IF($C17="","",IF(I17="","",I17*1000/data!$B$4)) ->  | O17: =IF($C17="","",IF(J17="","",J17*1000/data!$B$5)) -> 46400 | P17: =IF($C17="","",IF(K17="","",K17*1000/data!$B$6)) -> 51603.6036 | Q17: =IF($C17="","",IF(L17="","",L17*1000/data!$B$7)) -> 60705.88235 | R17: =IF($C17="","",IF(M17="","",M17*1000/data!$B$8)) -> 49438.20225 | S17: =IF(C17="","",AVERAGE(N17:R17)) -> 52036.92205 | T17: =IF(C17="","",C17/S17*1000) -> 307.473989 | U17: =IF(C17="","",C17/(14 * 3.6)) -> 317.4603175 | V17: =IF(C17="","",U17*2) -> 634.9206349 | W17: =IF(D17="","",1- (D17 / (data!$B$4*1000/data!$B$3))) ->  | X17: =IF(E17="","",1- (E17 / (data!$B$5*1000/data!$B$3))) -> 0.507 | Y17: =IF(F17="","",1- (F17 / (data!$B$6*1000/data!$B$3))) -> 0.4517117117 | Z17: =IF(G17="","",1- (G17 / (data!$B$7*1000/data!$B$3))) -> 0.355 | AA17: =IF(H17="","",1- (H17 / (data!$B$8*1000/data!$B$3))) -> 0.4747191011 | AB17: =IF(AND(D17="",E17="",F17="",G17="",H17=""),"",AVERAGE(W17:AA17)) -> 0.4471077032 | AC17: =IF(C17="","",AB17*C17) -> 7153.723251 | AD17: =IF(C17="","",AC17/60/60/24*1000) -> 82.79772282 | AE17: =IF(C17="","",C17-AC17) -> 8846.276749 | AF17: 102.3874624 | AG17: =IF(C17="","",IF(T17>T$14,(T17-T$14)*S17/86400,"")) -> 34.61538758
A18: 2014-05-12 | B18: 1900-01-01 | C18: 16500 | E18: 177 | F18: 36.4 | G18: 23 | H18: 5 | J18: 2920.5 | K18: 600.6 | L18: 379.5 | M18: 82.5 | N18: =IF($C18="","",IF(I18="","",I18*1000/data!$B$4)) ->  | O18: =IF($C18="","",IF(J18="","",J18*1000/data!$B$5)) -> 48675 | P18: =IF($C18="","",IF(K18="","",K18*1000/data!$B$6)) -> 54108.10811 | Q18: =IF($C18="","",IF(L18="","",L18*1000/data!$B$7)) -> 55808.82353 | R18: =IF($C18="","",IF(M18="","",M18*1000/data!$B$8)) -> 46348.31461 | S18: 51235.06156 | T18: 322.0450898 | U18: 327.3809524 | V18: 654.7619048 | W18: =IF(D18="","",1- (D18 / (data!$B$4*1000/data!$B$3))) ->  | X18: =IF(E18="","",1- (E18 / (data!$B$5*1000/data!$B$3))) -> 0.4985 | Y18: =IF(F18="","",1- (F18 / (data!$B$6*1000/data!$B$3))) -> 0.4425225225 | Z18: =IF(G18="","",1- (G18 / (data!$B$7*1000/data!$B$3))) -> 0.425 | AA18: =IF(H18="","",1- (H18 / (data!$B$8*1000/data!$B$3))) -> 0.5224719101 | AB18: 0.4721236082 | AC18: 7790.039535 | AD18: 90.16249461 | AE18: 8709.960465 | AF18: 100.8097276 | AG18: 42.7226228
A19: 2014-05-13 | B19: 1900-01-02 | C19: 16000 | E19: 184 | F19: 37.8 | G19: 25.8 | H19: 5.5 | J19: 2944 | K19: 604.8 | L19: 412.8 | M19: 88 | N19: =IF($C19="","",IF(I19="","",I19*1000/data!$B$4)) ->  | O19: =IF($C19="","",IF(J19="","",J19*1000/data!$B$5)) -> 49066.66667 | P19: =IF($C19="","",IF(K19="","",K19*1000/data!$B$6)) -> 54486.48649 | Q19: =IF($C19="","",IF(L19="","",L19*1000/data!$B$7)) -> 60705.88235 | R19: =IF($C19="","",IF(M19="","",M19*1000/data!$B$8)) -> 49438.20225 | S19: 53424.30944 | T19: 299.4891309 | U19: 317.4603175 | V19: 634.9206349 | W19: =IF(D19="","",1- (D19 / (data!$B$4*1000/data!$B$3))) ->  | X19: =IF(E19="","",1- (E19 / (data!$B$5*1000/data!$B$3))) -> 0.4786666667 | Y19: =IF(F19="","",1- (F19 / (data!$B$6*1000/data!$B$3))) -> 0.4210810811 | Z19: =IF(G19="","",1- (G19 / (data!$B$7*1000/data!$B$3))) -> 0.355 | AA19: =IF(H19="","",1- (H19 / (data!$B$8*1000/data!$B$3))) -> 0.4747191011 | AB19: 0.4323667122 | AC19: 6917.867395 | AD19: =IF(C19="","",AC19/60/60/24*1000) -> 80.06790967 | AE19: 9082.132605 | AF19: 105.1172755 | AG19: 30.60095649
A20: 2014-05-14 | B20: 1900-01-03 | C20: 16000 | E20: 186 | F20: 38.2 | G20: 23 | H20: 5 | J20: 2976 | K20: 611.2 | L20: 368 | M20: 80 | N20: =IF($C20="","",IF(I20="","",I20*1000/data!$B$4)) ->  | O20: =IF($C20="","",IF(J20="","",J20*1000/data!$B$5)) -> 49600 | P20: =IF($C20="","",IF(K20="","",K20*1000/data!$B$6)) -> 55063.06306 | Q20: =IF($C20="","",IF(L20="","",L20*1000/data!$B$7)) -> 54117.64706 | R20: =IF($C20="","",IF(M20="","",M20*1000/data!$B$8)) -> 44943.82022 | S20: 50931.13259 | T20: 314.1496996 | U20: 317.4603175 | V20: 634.9206349 | W20: =IF(D20="","",1- (D20 / (data!$B$4*1000/data!$B$3))) ->  | X20: =IF(E20="","",1- (E20 / (data!$B$5*1000/data!$B$3))) -> 0.473 | Y20: =IF(F20="","",1- (F20 / (data!$B$6*1000/data!$B$3))) -> 0.414954955 | Z20: =IF(G20="","",1- (G20 / (data!$B$7*1000/data!$B$3))) -> 0.425 | AA20: =IF(H20="","",1- (H20 / (data!$B$8*1000/data!$B$3))) -> 0.5224719101 | AB20: 0.4588567163 | AC20: 7341.70746 | AD20: =IF(C20="","",AC20/60/60/24*1000) -> 84.97346598 | AE20: 8658.29254 | AF20: 100.2117192 | AG20: 37.81500988
A21: 2014-05-15 | B21: 1900-01-04 | C21: 16000 | E21: 186 | F21: 38.2 | G21: 25.8 | H21: 5.5 | J21: 2976 | K21: 611.2 | L21: 412.8 | M21: 88 | N21: =IF($C21="","",IF(I21="","",I21*1000/data!$B$4)) ->  | O21: =IF($C21="","",IF(J21="","",J21*1000/data!$B$5)) -> 49600 | P21: =IF($C21="","",IF(K21="","",K21*1000/data!$B$6)) -> 55063.06306 | Q21: =IF($C21="","",IF(L21="","",L21*1000/data!$B$7)) -> 60705.88235 | R21: =IF($C21="","",IF(M21="","",M21*1000/data!$B$8)) -> 49438.20225 | S21: 53701.78692 | T21: 297.9416686 | U21: 317.4603175 | V21: 634.9206349 | W21: =IF(D21="","",1- (D21 / (data!$B$4*1000/data!$B$3))) ->  | X21: =IF(E21="","",1- (E21 / (data!$B$5*1000/data!$B$3))) -> 0.473 | Y21: =IF(F21="","",1- (F21 / (data!$B$6*1000/data!$B$3))) -> 0.414954955 | Z21: =IF(G21="","",1- (G21 / (data!$B$7*1000/data!$B$3))) -> 0.355 | AA21: =IF(H21="","",1- (H21 / (data!$B$8*1000/data!$B$3))) -> 0.4747191011 | AB21: 0.429418514 | AC21: 6870.696224 | AD21: 79.52194704 | AE21: 9129.303776 | AF21: 105.6632381 | AG21: 29.79807027
A22: 2014-05-16 | B22: 1900-01-05 | C22: 16500 | E22: 196 | F22: 40.2 | G22: 23 | H22: 5 | J22: 3234 | K22: 663.3 | L22: 379.5 | M22: 82.5 | N22: =IF($C22="","",IF(I22="","",I22*1000/data!$B$4)) ->  | O22: =IF($C22="","",IF(J22="","",J22*1000/data!$B$5)) -> 53900 | P22: =IF($C22="","",IF(K22="","",K22*1000/data!$B$6)) -> 59756.75676 | Q22: =IF($C22="","",IF(L22="","",L22*1000/data!$B$7)) -> 55808.82353 | R22: =IF($C22="","",IF(M22="","",M22*1000/data!$B$8)) -> 46348.31461 | S22: 53953.47372 | T22: 305.8190485 | U22: 327.3809524 | V22: 654.7619048 | W22: =IF(D22="","",1- (D22 / (data!$B$4*1000/data!$B$3))) ->  | X22: =IF(E22="","",1- (E22 / (data!$B$5*1000/data!$B$3))) -> 0.4446666667 | Y22: =IF(F22="","",1- (F22 / (data!$B$6*1000/data!$B$3))) -> 0.3843243243 | Z22: =IF(G22="","",1- (G22 / (data!$B$7*1000/data!$B$3))) -> 0.425 | AA22: =IF(H22="","",1- (H22 / (data!$B$8*1000/data!$B$3))) -> 0.5224719101 | AB22: 0.4441157253 | AC22: 7327.909467 | AD22: 84.81376698 | AE22: 9172.090533 | AF22: 106.1584552 | AG22: 34.85684687
A23: 2014-05-17 | B23: 1900-01-06 | C23: 16000 | E23: 198 | F23: 40.6 | G23: 25.8 | H23: 5.5 | J23: 3168 | K23: 649.6 | L23: 412.8 | M23: 88 | N23: =IF($C23="","",IF(I23="","",I23*1000/data!$B$4)) ->  | O23: =IF($C23="","",IF(J23="","",J23*1000/data!$B$5)) -> 52800 | P23: =IF($C23="","",IF(K23="","",K23*1000/data!$B$6)) -> 58522.52252 | Q23: =IF($C23="","",IF(L23="","",L23*1000/data!$B$7)) -> 60705.88235 | R23: =IF($C23="","",IF(M23="","",M23*1000/data!$B$8)) -> 49438.20225 | S23: 55366.65178 | T23: 288.9826183 | U23: 317.4603175 | V23: 634.9206349 | W23: =IF(D23="","",1- (D23 / (data!$B$4*1000/data!$B$3))) ->  | X23: =IF(E23="","",1- (E23 / (data!$B$5*1000/data!$B$3))) -> 0.439 | Y23: =IF(F23="","",1- (F23 / (data!$B$6*1000/data!$B$3))) -> 0.3781981982 | Z23: =IF(G23="","",1- (G23 / (data!$B$7*1000/data!$B$3))) -> 0.355 | AA23: =IF(H23="","",1- (H23 / (data!$B$8*1000/data!$B$3))) -> 0.4747191011 | AB23: 0.4117293248 | AC23: 6587.669197 | AD23: 76.24617126 | AE23: 9412.330803 | AF23: 108.9390139 | AG23: 24.98075295
A24: 2014-05-18 | B24: 1900-01-07 | C24: 16500 | E24: 205 | F24: 42 | G24: 23 | H24: 5 | J24: 3382.5 | K24: 693 | L24: 379.5 | M24: 82.5 | N24: =IF($C24="","",IF(I24="","",I24*1000/data!$B$4)) ->  | O24: =IF($C24="","",IF(J24="","",J24*1000/data!$B$5)) -> 56375 | P24: =IF($C24="","",IF(K24="","",K24*1000/data!$B$6)) -> 62432.43243 | Q24: =IF($C24="","",IF(L24="","",L24*1000/data!$B$7)) -> 55808.82353 | R24: =IF($C24="","",IF(M24="","",M24*1000/data!$B$8)) -> 46348.31461 | S24: 55241.14264 | T24: 298.6904182 | U24: 327.3809524 | V24: 654.7619048 | W24: =IF(D24="","",1- (D24 / (data!$B$4*1000/data!$B$3))) ->  | X24: =IF(E24="","",1- (E24 / (data!$B$5*1000/data!$B$3))) -> 0.4191666667 | Y24: =IF(F24="","",1- (F24 / (data!$B$6*1000/data!$B$3))) -> 0.3567567568 | Z24: =IF(G24="","",1- (G24 / (data!$B$7*1000/data!$B$3))) -> 0.425 | AA24: =IF(H24="","",1- (H24 / (data!$B$8*1000/data!$B$3))) -> 0.5224719101 | AB24: 0.4308488334 | AC24: 7109.005751 | AD24: 82.28015915 | AE24: 9390.994249 | AF24: 108.6920631 | AG24: 31.130953
A25: 2014-05-19 | B25: 1900-01-01 | C25: 16000 | E25: 205 | F25: 42 | G25: 25.8 | H25: 5.5 | J25: 3280 | K25: 672 | L25: 412.8 | M25: 88 | N25: =IF($C25="","",IF(I25="","",I25*1000/data!$B$4)) ->  | O25: =IF($C25="","",IF(J25="","",J25*1000/data!$B$5)) -> 54666.66667 | P25: =IF($C25="","",IF(K25="","",K25*1000/data!$B$6)) -> 60540.54054 | Q25: =IF($C25="","",IF(L25="","",L25*1000/data!$B$7)) -> 60705.88235 | R25: =IF($C25="","",IF(M25="","",M25*1000/data!$B$8)) -> 49438.20225 | S25: 56337.82295 | T25: 284.0010345 | U25: 317.4603175 | V25: 634.9206349 | W25: =IF(D25="","",1- (D25 / (data!$B$4*1000/data!$B$3))) ->  | X25: =IF(E25="","",1- (E25 / (data!$B$5*1000/data!$B$3))) -> 0.4191666667 | Y25: =IF(F25="","",1- (F25 / (data!$B$6*1000/data!$B$3))) -> 0.3567567568 | Z25: =IF(G25="","",1- (G25 / (data!$B$7*1000/data!$B$3))) -> 0.355 | AA25: =IF(H25="","",1- (H25 / (data!$B$8*1000/data!$B$3))) -> 0.4747191011 | AB25: 0.4014106311 | AC25: 6422.570098 | AD25: 74.33530206 | AE25: 9577.429902 | AF25: 110.8498831 | AG25: 22.17065118
A26: 2014-05-20 | B26: =IF(C26="","",WEEKDAY(A26,2)) -> 1900-01-02 | C26: 16000 | D26: 415 | E26: 205 | F26: 42 | G26: 25.8 | H26: 5.5 | I26: =IF($C26="","",IF(D26="","",D26*$C26/1000)) -> 6640 | J26: =IF($C26="","",IF(E26="","",E26*$C26/1000)) -> 3280 | K26: =IF($C26="","",IF(F26="","",F26*$C26/1000)) -> 672 | L26: =IF($C26="","",IF(G26="","",G26*$C26/1000)) -> 412.8 | M26: =IF($C26="","",IF(H26="","",H26*$C26/1000)) -> 88 | N26: =IF($C26="","",IF(I26="","",I26*1000/data!$B$4)) -> 55333.33333 | O26: =IF($C26="","",IF(J26="","",J26*1000/data!$B$5)) -> 54666.66667 | P26: =IF($C26="","",IF(K26="","",K26*1000/data!$B$6)) -> 60540.54054 | Q26: =IF($C26="","",IF(L26="","",L26*1000/data!$B$7)) -> 60705.88235 | R26: =IF($C26="","",IF(M26="","",M26*1000/data!$B$8)) -> 49438.20225 | S26: =IF(C26="","",AVERAGE(N26:R26)) -> 56136.92503 | T26: =IF(C26="","",C26/S26*1000) -> 285.0173926 | U26: =IF(C26="","",C26/(14 * 3.6)) -> 317.4603175 | V26: =IF(C26="","",U26*2) -> 634.9206349 | W26: =IF(D26="","",1- (D26 / (data!$B$4*1000/data!$B$3))) -> 0.4120833333 | X26: =IF(E26="","",1- (E26 / (data!$B$5*1000/data!$B$3))) -> 0.4191666667 | Y26: =IF(F26="","",1- (F26 / (data!$B$6*1000/data!$B$3))) -> 0.3567567568 | Z26: =IF(G26="","",1- (G26 / (data!$B$7*1000/data!$B$3))) -> 0.355 | AA26: =IF(H26="","",1- (H26 / (data!$B$8*1000/data!$B$3))) -> 0.4747191011 | AB26: =IF(AND(D26="",E26="",F26="",G26="",H26=""),"",AVERAGE(W26:AA26)) -> 0.4035451716 | AC26: =IF(C26="","",AB26*C26) -> 6456.722745 | AD26: =IF(C26="","",AC26/60/60/24*1000) -> 74.73058733 | AE26: =IF(C26="","",C26-AC26) -> 9543.277255 | AF26: =IF(C26="","",AE26/60/60/24*1000) -> 110.4545979 | AG26: =IF(C26="","",IF(T26>T$14,(T26-T$14)*S26/86400,"")) -> 22.75195304
A27: 2014-05-21 | B27: 1900-01-03 | C27: 16000 | D27: 433 | E27: 214 | F27: 43.8 | G27: 25.8 | H27: 5.5 | I27: 6928 | J27: 3424 | K27: 700.8 | L27: 412.8 | M27: 88 | N27: =IF($C27="","",IF(I27="","",I27*1000/data!$B$4)) -> 57733.33333 | O27: =IF($C27="","",IF(J27="","",J27*1000/data!$B$5)) -> 57066.66667 | P27: =IF($C27="","",IF(K27="","",K27*1000/data!$B$6)) -> 63135.13514 | Q27: =IF($C27="","",IF(L27="","",L27*1000/data!$B$7)) -> 60705.88235 | R27: =IF($C27="","",IF(M27="","",M27*1000/data!$B$8)) -> 49438.20225 | S27: 57615.84395 | T27: 277.7013909 | U27: 317.4603175 | V27: 634.9206349 | W27: =IF(D27="","",1- (D27 / (data!$B$4*1000/data!$B$3))) -> 0.3865833333 | X27: =IF(E27="","",1- (E27 / (data!$B$5*1000/data!$B$3))) -> 0.3936666667 | Y27: =IF(F27="","",1- (F27 / (data!$B$6*1000/data!$B$3))) -> 0.3291891892 | Z27: =IF(G27="","",1- (G27 / (data!$B$7*1000/data!$B$3))) -> 0.355 | AA27: =IF(H27="","",1- (H27 / (data!$B$8*1000/data!$B$3))) -> 0.4747191011 | AB27: 0.3878316581 | AC27: 6205.306529 | AD27: 71.82067742 | AE27: 9794.693471 | AF27: 113.3645078 | AG27: 18.47267376
A28: 2014-05-22 | B28: 1900-01-04 | C28: 16500 | D28: 412 | E28: 216 | F28: 44.2 | G28: 23 | H28: 5 | I28: 6798 | J28: 3564 | K28: 729.3 | L28: 379.5 | M28: 82.5 | N28: =IF($C28="","",IF(I28="","",I28*1000/data!$B$4)) -> 56650 | O28: =IF($C28="","",IF(J28="","",J28*1000/data!$B$5)) -> 59400 | P28: =IF($C28="","",IF(K28="","",K28*1000/data!$B$6)) -> 65702.7027 | Q28: =IF($C28="","",IF(L28="","",L28*1000/data!$B$7)) -> 55808.82353 | R28: =IF($C28="","",IF(M28="","",M28*1000/data!$B$8)) -> 46348.31461 | S28: 56781.96817 | T28: 290.5852075 | U28: 327.3809524 | V28: 654.7619048 | W28: =IF(D28="","",1- (D28 / (data!$B$4*1000/data!$B$3))) -> 0.4163333333 | X28: =IF(E28="","",1- (E28 / (data!$B$5*1000/data!$B$3))) -> 0.388 | Y28: =IF(F28="","",1- (F28 / (data!$B$6*1000/data!$B$3))) -> 0.3230630631 | Z28: =IF(G28="","",1- (G28 / (data!$B$7*1000/data!$B$3))) -> 0.425 | AA28: =IF(H28="","",1- (H28 / (data!$B$8*1000/data!$B$3))) -> 0.5224719101 | AB28: 0.4149736613 | AC28: 6847.065411 | AD28: 79.24844226 | AE28: 9652.934589 | AF28: 111.72378 | AG28: 26.67254581
A29: 2014-05-23 | B29: 1900-01-05 | C29: 16000 | D29: 418 | F29: 44.8 | G29: 25.8 | H29: 5.5 | I29: 6688 | K29: 716.8 | L29: 412.8 | M29: 88 | N29: =IF($C29="","",IF(I29="","",I29*1000/data!$B$4)) -> 55733.33333 | O29: =IF($C29="","",IF(J29="","",J29*1000/data!$B$5)) ->  | P29: =IF($C29="","",IF(K29="","",K29*1000/data!$B$6)) -> 64576.57658 | Q29: =IF($C29="","",IF(L29="","",L29*1000/data!$B$7)) -> 60705.88235 | R29: =IF($C29="","",IF(M29="","",M29*1000/data!$B$8)) -> 49438.20225 | S29: 57613.49863 | T29: 277.7126955 | U29: 317.4603175 | V29: 634.9206349 | W29: =IF(D29="","",1- (D29 / (data!$B$4*1000/data!$B$3))) -> 0.4078333333 | X29: =IF(E29="","",1- (E29 / (data!$B$5*1000/data!$B$3))) ->  | Y29: =IF(F29="","",1- (F29 / (data!$B$6*1000/data!$B$3))) -> 0.3138738739 | Z29: =IF(G29="","",1- (G29 / (data!$B$7*1000/data!$B$3))) -> 0.355 | AA29: =IF(H29="","",1- (H29 / (data!$B$8*1000/data!$B$3))) -> 0.4747191011 | AB29: 0.3878565771 | AC29: 6205.705233 | AD29: 71.82529205 | AE29: 9794.294767 | AF29: 113.3598931 | AG29: 18.47945999
A30: 2014-05-24 | B30: 1900-01-06 | C30: 16500 | D30: 434 | F30: 46.4 | G30: 23 | H30: 5 | I30: 7161 | K30: 765.6 | L30: 379.5 | M30: 82.5 | N30: =IF($C30="","",IF(I30="","",I30*1000/data!$B$4)) -> 59675 | O30: =IF($C30="","",IF(J30="","",J30*1000/data!$B$5)) ->  | P30: =IF($C30="","",IF(K30="","",K30*1000/data!$B$6)) -> 68972.97297 | Q30: =IF($C30="","",IF(L30="","",L30*1000/data!$B$7)) -> 55808.82353 | R30: =IF($C30="","",IF(M30="","",M30*1000/data!$B$8)) -> 46348.31461 | S30: 57701.27778 | T30: 285.9555392 | U30: 327.3809524 | V30: 654.7619048 | W30: =IF(D30="","",1- (D30 / (data!$B$4*1000/data!$B$3))) -> 0.3851666667 | X30: =IF(E30="","",1- (E30 / (data!$B$5*1000/data!$B$3))) ->  | Y30: =IF(F30="","",1- (F30 / (data!$B$6*1000/data!$B$3))) -> 0.2893693694 | Z30: =IF(G30="","",1- (G30 / (data!$B$7*1000/data!$B$3))) -> 0.425 | AA30: =IF(H30="","",1- (H30 / (data!$B$8*1000/data!$B$3))) -> 0.5224719101 | AB30: 0.4055019865 | AC30: 6690.782778 | AD30: 77.43961548 | AE30: 9809.217222 | AF30: 113.5326067 | AG30: 24.01250643
A31: 2014-05-25 | B31: 1900-01-07 | C31: 16000 | D31: 438 | F31: 46.8 | G31: 25.8 | H31: 5.5 | I31: 7008 | K31: 748.8 | L31: 412.8 | M31: 88 | N31: =IF($C31="","",IF(I31="","",I31*1000/data!$B$4)) -> 58400 | O31: =IF($C31="","",IF(J31="","",J31*1000/data!$B$5)) ->  | P31: =IF($C31="","",IF(K31="","",K31*1000/data!$B$6)) -> 67459.45946 | Q31: =IF($C31="","",IF(L31="","",L31*1000/data!$B$7)) -> 60705.88235 | R31: =IF($C31="","",IF(M31="","",M31*1000/data!$B$8)) -> 49438.20225 | S31: 59000.88601 | T31: 271.1823683 | U31: 317.4603175 | V31: 634.9206349 | W31: =IF(D31="","",1- (D31 / (data!$B$4*1000/data!$B$3))) -> 0.3795 | X31: =IF(E31="","",1- (E31 / (data!$B$5*1000/data!$B$3))) ->  | Y31: =IF(F31="","",1- (F31 / (data!$B$6*1000/data!$B$3))) -> 0.2832432432 | Z31: =IF(G31="","",1- (G31 / (data!$B$7*1000/data!$B$3))) -> 0.355 | AA31: =IF(H31="","",1- (H31 / (data!$B$8*1000/data!$B$3))) -> 0.4747191011 | AB31: 0.3731155861 | AC31: 5969.849377 | AD31: 69.09547891 | AE31: 10030.15062 | AF31: 116.0897063 | AG31: 14.46502889
A32: 2014-05-26 | B32: 1900-01-01 | C32: 16500 | D32: 446 | F32: 47.6 | G32: 23 | H32: 5 | I32: 7359 | K32: 785.4 | L32: 379.5 | M32: 82.5 | N32: =IF($C32="","",IF(I32="","",I32*1000/data!$B$4)) -> 61325 | O32: =IF($C32="","",IF(J32="","",J32*1000/data!$B$5)) ->  | P32: =IF($C32="","",IF(K32="","",K32*1000/data!$B$6)) -> 70756.75676 | Q32: =IF($C32="","",IF(L32="","",L32*1000/data!$B$7)) -> 55808.82353 | R32: =IF($C32="","",IF(M32="","",M32*1000/data!$B$8)) -> 46348.31461 | S32: 58559.72372 | T32: 281.7636244 | U32: 327.3809524 | V32: 654.7619048 | W32: =IF(D32="","",1- (D32 / (data!$B$4*1000/data!$B$3))) -> 0.3681666667 | X32: =IF(E32="","",1- (E32 / (data!$B$5*1000/data!$B$3))) ->  | Y32: =IF(F32="","",1- (F32 / (data!$B$6*1000/data!$B$3))) -> 0.270990991 | Z32: =IF(G32="","",1- (G32 / (data!$B$7*1000/data!$B$3))) -> 0.425 | AA32: =IF(H32="","",1- (H32 / (data!$B$8*1000/data!$B$3))) -> 0.5224719101 | AB32: 0.3966573919 | AC32: 6544.846967 | AD32: 75.7505436 | AE32: 9955.153033 | AF32: 115.2216786 | AG32: 21.52857719
A33: 2014-05-27 | B33: 1900-01-02 | C33: 16000 | D33: 450 | F33: 48 | G33: 25.8 | H33: 5.5 | I33: 7200 | K33: 768 | L33: 412.8 | M33: 88 | N33: =IF($C33="","",IF(I33="","",I33*1000/data!$B$4)) -> 60000 | O33: =IF($C33="","",IF(J33="","",J33*1000/data!$B$5)) ->  | P33: =IF($C33="","",IF(K33="","",K33*1000/data!$B$6)) -> 69189.18919 | Q33: =IF($C33="","",IF(L33="","",L33*1000/data!$B$7)) -> 60705.88235 | R33: =IF($C33="","",IF(M33="","",M33*1000/data!$B$8)) -> 49438.20225 | S33: 59833.31845 | T33: 267.4095373 | U33: 317.4603175 | V33: 634.9206349 | W33: =IF(D33="","",1- (D33 / (data!$B$4*1000/data!$B$3))) -> 0.3625 | X33: =IF(E33="","",1- (E33 / (data!$B$5*1000/data!$B$3))) ->  | Y33: =IF(F33="","",1- (F33 / (data!$B$6*1000/data!$B$3))) -> 0.2648648649 | Z33: =IF(G33="","",1- (G33 / (data!$B$7*1000/data!$B$3))) -> 0.355 | AA33: =IF(H33="","",1- (H33 / (data!$B$8*1000/data!$B$3))) -> 0.4747191011 | AB33: 0.3642709915 | AC33: 5828.335864 | AD33: 67.45759102 | AE33: 10171.66414 | AF33: 117.7275942 | AG33: 12.05637023
A34: 2014-05-28 | B34: 1900-01-03 | C34: 16500 | D34: 450 | F34: 48 | G34: 23 | H34: 5 | I34: 7425 | K34: 792 | L34: 379.5 | M34: 82.5 | N34: =IF($C34="","",IF(I34="","",I34*1000/data!$B$4)) -> 61875 | O34: =IF($C34="","",IF(J34="","",J34*1000/data!$B$5)) ->  | P34: =IF($C34="","",IF(K34="","",K34*1000/data!$B$6)) -> 71351.35135 | Q34: =IF($C34="","",IF(L34="","",L34*1000/data!$B$7)) -> 55808.82353 | R34: =IF($C34="","",IF(M34="","",M34*1000/data!$B$8)) -> 46348.31461 | S34: 58845.87237 | T34: 280.393498 | U34: 327.3809524 | V34: 654.7619048 | W34: =IF(D34="","",1- (D34 / (data!$B$4*1000/data!$B$3))) -> 0.3625 | X34: =IF(E34="","",1- (E34 / (data!$B$5*1000/data!$B$3))) ->  | Y34: =IF(F34="","",1- (F34 / (data!$B$6*1000/data!$B$3))) -> 0.2648648649 | Z34: =IF(G34="","",1- (G34 / (data!$B$7*1000/data!$B$3))) -> 0.425 | AA34: =IF(H34="","",1- (H34 / (data!$B$8*1000/data!$B$3))) -> 0.5224719101 | AB34: 0.3937091937 | AC34: 6496.201697 | AD34: 75.18751964 | AE34: 10003.7983 | AF34: 115.7847026 | AG34: 20.70060078
A35: 2014-05-29 | B35: 1900-01-04 | C35: 16000 | D35: 466 | F35: 49.6 | G35: 25.8 | H35: 5.5 | I35: 7456 | K35: 793.6 | L35: 412.8 | M35: 88 | N35: =IF($C35="","",IF(I35="","",I35*1000/data!$B$4)) -> 62133.33333 | O35: =IF($C35="","",IF(J35="","",J35*1000/data!$B$5)) ->  | P35: =IF($C35="","",IF(K35="","",K35*1000/data!$B$6)) -> 71495.4955 | Q35: =IF($C35="","",IF(L35="","",L35*1000/data!$B$7)) -> 60705.88235 | R35: =IF($C35="","",IF(M35="","",M35*1000/data!$B$8)) -> 49438.20225 | S35: 60943.22836 | T35: 262.5394229 | U35: 317.4603175 | V35: 634.9206349 | W35: =IF(D35="","",1- (D35 / (data!$B$4*1000/data!$B$3))) -> 0.3398333333 | X35: =IF(E35="","",1- (E35 / (data!$B$5*1000/data!$B$3))) ->  | Y35: =IF(F35="","",1- (F35 / (data!$B$6*1000/data!$B$3))) -> 0.2403603604 | Z35: =IF(G35="","",1- (G35 / (data!$B$7*1000/data!$B$3))) -> 0.355 | AA35: =IF(H35="","",1- (H35 / (data!$B$8*1000/data!$B$3))) -> 0.4747191011 | AB35: 0.3524781987 | AC35: 5639.651179 | AD35: 65.2737405 | AE35: 10360.34882 | AF35: 119.9114447 | AG35: 8.844825355
A36: 2014-05-30 | B36: 1900-01-05 | C36: 16500 | D36: 476 | F36: 50.6 | G36: 23 | H36: 5 | I36: 7854 | K36: 834.9 | L36: 379.5 | M36: 82.5 | N36: =IF($C36="","",IF(I36="","",I36*1000/data!$B$4)) -> 65450 | O36: =IF($C36="","",IF(J36="","",J36*1000/data!$B$5)) ->  | P36: =IF($C36="","",IF(K36="","",K36*1000/data!$B$6)) -> 75216.21622 | Q36: =IF($C36="","",IF(L36="","",L36*1000/data!$B$7)) -> 55808.82353 | R36: =IF($C36="","",IF(M36="","",M36*1000/data!$B$8)) -> 46348.31461 | S36: 60705.83859 | T36: 271.8025215 | U36: 327.3809524 | V36: 654.7619048 | W36: =IF(D36="","",1- (D36 / (data!$B$4*1000/data!$B$3))) -> 0.3256666667 | X36: =IF(E36="","",1- (E36 / (data!$B$5*1000/data!$B$3))) ->  | Y36: =IF(F36="","",1- (F36 / (data!$B$6*1000/data!$B$3))) -> 0.225045045 | Z36: =IF(G36="","",1- (G36 / (data!$B$7*1000/data!$B$3))) -> 0.425 | AA36: =IF(H36="","",1- (H36 / (data!$B$8*1000/data!$B$3))) -> 0.5224719101 | AB36: 0.3745459055 | AC36: 6180.00744 | AD36: 71.52786389 | AE36: 10319.99256 | AF36: 119.4443583 | AG36: 15.31875409
A37: 2014-05-31 | B37: 1900-01-06 | C37: 16000 | D37: 480 | F37: 51 | G37: 25.8 | H37: 5.5 | I37: 7680 | K37: 816 | L37: 412.8 | M37: 88 | N37: =IF($C37="","",IF(I37="","",I37*1000/data!$B$4)) -> 64000 | O37: =IF($C37="","",IF(J37="","",J37*1000/data!$B$5)) ->  | P37: =IF($C37="","",IF(K37="","",K37*1000/data!$B$6)) -> 73513.51351 | Q37: =IF($C37="","",IF(L37="","",L37*1000/data!$B$7)) -> 60705.88235 | R37: =IF($C37="","",IF(M37="","",M37*1000/data!$B$8)) -> 49438.20225 | S37: 61914.39953 | T37: 258.4213062 | U37: 317.4603175 | V37: 634.9206349 | W37: =IF(D37="","",1- (D37 / (data!$B$4*1000/data!$B$3))) -> 0.32 | X37: =IF(E37="","",1- (E37 / (data!$B$5*1000/data!$B$3))) ->  | Y37: =IF(F37="","",1- (F37 / (data!$B$6*1000/data!$B$3))) -> 0.2189189189 | Z37: =IF(G37="","",1- (G37 / (data!$B$7*1000/data!$B$3))) -> 0.355 | AA37: =IF(H37="","",1- (H37 / (data!$B$8*1000/data!$B$3))) -> 0.4747191011 | AB37: 0.342159505 | AC37: 5474.55208 | AD37: 63.3628713 | AE37: 10525.44792 | AF37: 121.8223139 | AG37: 6.034723587
A38: 2014-06-01 | B38: 1900-01-07 | C38: 16500 | D38: 372 | F38: 40.2 | G38: 23 | H38: 5 | I38: 6138 | K38: 663.3 | L38: 379.5 | M38: 82.5 | N38: =IF($C38="","",IF(I38="","",I38*1000/data!$B$4)) -> 51150 | O38: =IF($C38="","",IF(J38="","",J38*1000/data!$B$5)) ->  | P38: =IF($C38="","",IF(K38="","",K38*1000/data!$B$6)) -> 59756.75676 | Q38: =IF($C38="","",IF(L38="","",L38*1000/data!$B$7)) -> 55808.82353 | R38: =IF($C38="","",IF(M38="","",M38*1000/data!$B$8)) -> 46348.31461 | S38: 53265.97372 | T38: 309.7662325 | U38: 327.3809524 | V38: 654.7619048 | W38: =IF(D38="","",1- (D38 / (data!$B$4*1000/data!$B$3))) -> 0.473 | X38: =IF(E38="","",1- (E38 / (data!$B$5*1000/data!$B$3))) ->  | Y38: =IF(F38="","",1- (F38 / (data!$B$6*1000/data!$B$3))) -> 0.3843243243 | Z38: =IF(G38="","",1- (G38 / (data!$B$7*1000/data!$B$3))) -> 0.425 | AA38: =IF(H38="","",1- (H38 / (data!$B$8*1000/data!$B$3))) -> 0.5224719101 | AB38: 0.4511990586 | AC38: 7444.784467 | AD38: 86.16648689 | AE38: 9055.215533 | AF38: 104.8057353 | AG38: 36.84614085
A39: 2014-06-02 | B39: 1900-01-01 | C39: 16000 | D39: 406 | F39: 40.6 | G39: 25.8 | H39: 5.5 | I39: 6496 | K39: 649.6 | L39: 412.8 | M39: 88 | N39: =IF($C39="","",IF(I39="","",I39*1000/data!$B$4)) -> 54133.33333 | O39: =IF($C39="","",IF(J39="","",J39*1000/data!$B$5)) ->  | P39: =IF($C39="","",IF(K39="","",K39*1000/data!$B$6)) -> 58522.52252 | Q39: =IF($C39="","",IF(L39="","",L39*1000/data!$B$7)) -> 60705.88235 | R39: =IF($C39="","",IF(M39="","",M39*1000/data!$B$8)) -> 49438.20225 | S39: 55699.98511 | T39: 287.2532186 | U39: 317.4603175 | V39: 634.9206349 | W39: =IF(D39="","",1- (D39 / (data!$B$4*1000/data!$B$3))) -> 0.4248333333 | X39: =IF(E39="","",1- (E39 / (data!$B$5*1000/data!$B$3))) ->  | Y39: =IF(F39="","",1- (F39 / (data!$B$6*1000/data!$B$3))) -> 0.3781981982 | Z39: =IF(G39="","",1- (G39 / (data!$B$7*1000/data!$B$3))) -> 0.355 | AA39: =IF(H39="","",1- (H39 / (data!$B$8*1000/data!$B$3))) -> 0.4747191011 | AB39: 0.4081876582 | AC39: 6531.002531 | AD39: 75.59030707 | AE39: 9468.997469 | AF39: 109.5948781 | AG39: 24.01624678
A40: 2014-06-03 | B40: 1900-01-02 | C40: 16500 | D40: 420 | F40: 42 | G40: 23 | H40: 5 | I40: 6930 | K40: 693 | L40: 379.5 | M40: 82.5 | N40: =IF($C40="","",IF(I40="","",I40*1000/data!$B$4)) -> 57750 | O40: =IF($C40="","",IF(J40="","",J40*1000/data!$B$5)) ->  | P40: =IF($C40="","",IF(K40="","",K40*1000/data!$B$6)) -> 62432.43243 | Q40: =IF($C40="","",IF(L40="","",L40*1000/data!$B$7)) -> 55808.82353 | R40: =IF($C40="","",IF(M40="","",M40*1000/data!$B$8)) -> 46348.31461 | S40: 55584.89264 | T40: 296.8432467 | U40: 327.3809524 | V40: 654.7619048 | W40: =IF(D40="","",1- (D40 / (data!$B$4*1000/data!$B$3))) -> 0.405 | X40: =IF(E40="","",1- (E40 / (data!$B$5*1000/data!$B$3))) ->  | Y40: =IF(F40="","",1- (F40 / (data!$B$6*1000/data!$B$3))) -> 0.3567567568 | Z40: =IF(G40="","",1- (G40 / (data!$B$7*1000/data!$B$3))) -> 0.425 | AA40: =IF(H40="","",1- (H40 / (data!$B$8*1000/data!$B$3))) -> 0.5224719101 | AB40: 0.4273071667 | AC40: 7050.568251 | AD40: 81.6037992 | AE40: 9449.431749 | AF40: 109.368423 | AG40: 30.13630601
A41: 2014-06-04 | B41: 1900-01-03 | C41: 16000 | D41: 420 | F41: 42 | G41: 25.8 | H41: 5.5 | I41: 6720 | K41: 672 | L41: 412.8 | M41: 88 | N41: =IF($C41="","",IF(I41="","",I41*1000/data!$B$4)) -> 56000 | O41: =IF($C41="","",IF(J41="","",J41*1000/data!$B$5)) ->  | P41: =IF($C41="","",IF(K41="","",K41*1000/data!$B$6)) -> 60540.54054 | Q41: =IF($C41="","",IF(L41="","",L41*1000/data!$B$7)) -> 60705.88235 | R41: =IF($C41="","",IF(M41="","",M41*1000/data!$B$8)) -> 49438.20225 | S41: 56671.15629 | T41: 282.3305725 | U41: 317.4603175 | V41: 634.9206349 | W41: =IF(D41="","",1- (D41 / (data!$B$4*1000/data!$B$3))) -> 0.405 | X41: =IF(E41="","",1- (E41 / (data!$B$5*1000/data!$B$3))) ->  | Y41: =IF(F41="","",1- (F41 / (data!$B$6*1000/data!$B$3))) -> 0.3567567568 | Z41: =IF(G41="","",1- (G41 / (data!$B$7*1000/data!$B$3))) -> 0.355 | AA41: =IF(H41="","",1- (H41 / (data!$B$8*1000/data!$B$3))) -> 0.4747191011 | AB41: 0.3978689645 | AC41: 6365.903432 | AD41: 73.67943786 | AE41: 9634.096568 | AF41: 111.5057473 | AG41: 21.20614501
A42: 2014-06-05 | B42: 1900-01-04 | C42: 16500 | D42: 422 | F42: 42.2 | G42: 23 | H42: 5 | I42: 6963 | K42: 696.3 | L42: 379.5 | M42: 82.5 | N42: =IF($C42="","",IF(I42="","",I42*1000/data!$B$4)) -> 58025 | O42: =IF($C42="","",IF(J42="","",J42*1000/data!$B$5)) ->  | P42: =IF($C42="","",IF(K42="","",K42*1000/data!$B$6)) -> 62729.72973 | Q42: =IF($C42="","",IF(L42="","",L42*1000/data!$B$7)) -> 55808.82353 | R42: =IF($C42="","",IF(M42="","",M42*1000/data!$B$8)) -> 46348.31461 | S42: 55727.96697 | T42: 296.0811402 | U42: 327.3809524 | V42: 654.7619048 | W42: =IF(D42="","",1- (D42 / (data!$B$4*1000/data!$B$3))) -> 0.4021666667 | X42: =IF(E42="","",1- (E42 / (data!$B$5*1000/data!$B$3))) ->  | Y42: =IF(F42="","",1- (F42 / (data!$B$6*1000/data!$B$3))) -> 0.3536936937 | Z42: =IF(G42="","",1- (G42 / (data!$B$7*1000/data!$B$3))) -> 0.425 | AA42: =IF(H42="","",1- (H42 / (data!$B$8*1000/data!$B$3))) -> 0.5224719101 | AB42: 0.4258330676 | AC42: 7026.245616 | AD42: 81.32228722 | AE42: 9473.754384 | AF42: 109.649935 | AG42: 29.72231781
A43: 2014-06-06 | B43: 1900-01-05 | C43: 16000 | D43: 310 | F43: 57.2 | G43: 25.8 | H43: 5.5 | I43: 4960 | K43: 915.2 | L43: 412.8 | M43: 88 | N43: =IF($C43="","",IF(I43="","",I43*1000/data!$B$4)) -> 41333.33333 | O43: =IF($C43="","",IF(J43="","",J43*1000/data!$B$5)) ->  | P43: =IF($C43="","",IF(K43="","",K43*1000/data!$B$6)) -> 82450.45045 | Q43: =IF($C43="","",IF(L43="","",L43*1000/data!$B$7)) -> 60705.88235 | R43: =IF($C43="","",IF(M43="","",M43*1000/data!$B$8)) -> 49438.20225 | S43: 58481.9671 | T43: 273.5886085 | U43: 317.4603175 | V43: 634.9206349 | W43: =IF(D43="","",1- (D43 / (data!$B$4*1000/data!$B$3))) -> 0.5608333333 | X43: =IF(E43="","",1- (E43 / (data!$B$5*1000/data!$B$3))) ->  | Y43: =IF(F43="","",1- (F43 / (data!$B$6*1000/data!$B$3))) -> 0.123963964 | Z43: =IF(G43="","",1- (G43 / (data!$B$7*1000/data!$B$3))) -> 0.355 | AA43: =IF(H43="","",1- (H43 / (data!$B$8*1000/data!$B$3))) -> 0.4747191011 | AB43: 0.3786290996 | AC43: 6058.065594 | AD43: 70.11649993 | AE43: 9941.934406 | AF43: 115.0686853 | AG43: 15.96653039
N44: =IF($C44="","",IF(I44="","",I44*1000/data!$B$4)) ->  | O44: =IF($C44="","",IF(J44="","",J44*1000/data!$B$5)) ->  | P44: =IF($C44="","",IF(K44="","",K44*1000/data!$B$6)) ->  | Q44: =IF($C44="","",IF(L44="","",L44*1000/data!$B$7)) ->  | R44: =IF($C44="","",IF(M44="","",M44*1000/data!$B$8)) ->  | W44: =IF(D44="","",1- (D44 / (data!$B$4*1000/data!$B$3))) ->  | X44: =IF(E44="","",1- (E44 / (data!$B$5*1000/data!$B$3))) ->  | Y44: =IF(F44="","",1- (F44 / (data!$B$6*1000/data!$B$3))) ->  | Z44: =IF(G44="","",1- (G44 / (data!$B$7*1000/data!$B$3))) ->  | AA44: =IF(H44="","",1- (H44 / (data!$B$8*1000/data!$B$3))) -> 
N45: =IF($C45="","",IF(I45="","",I45*1000/data!$B$4)) ->  | O45: =IF($C45="","",IF(J45="","",J45*1000/data!$B$5)) ->  | P45: =IF($C45="","",IF(K45="","",K45*1000/data!$B$6)) ->  | Q45: =IF($C45="","",IF(L45="","",L45*1000/data!$B$7)) ->  | R45: =IF($C45="","",IF(M45="","",M45*1000/data!$B$8)) ->  | W45: =IF(D45="","",1- (D45 / (data!$B$4*1000/data!$B$3))) ->  | X45: =IF(E45="","",1- (E45 / (data!$B$5*1000/data!$B$3))) ->  | Y45: =IF(F45="","",1- (F45 / (data!$B$6*1000/data!$B$3))) ->  | Z45: =IF(G45="","",1- (G45 / (data!$B$7*1000/data!$B$3))) ->  | AA45: =IF(H45="","",1- (H45 / (data!$B$8*1000/data!$B$3))) -> 
N46: =IF($C46="","",IF(I46="","",I46*1000/data!$B$4)) ->  | O46: =IF($C46="","",IF(J46="","",J46*1000/data!$B$5)) ->  | P46: =IF($C46="","",IF(K46="","",K46*1000/data!$B$6)) ->  | Q46: =IF($C46="","",IF(L46="","",L46*1000/data!$B$7)) ->  | R46: =IF($C46="","",IF(M46="","",M46*1000/data!$B$8)) ->  | W46: =IF(D46="","",1- (D46 / (data!$B$4*1000/data!$B$3))) ->  | X46: =IF(E46="","",1- (E46 / (data!$B$5*1000/data!$B$3))) ->  | Y46: =IF(F46="","",1- (F46 / (data!$B$6*1000/data!$B$3))) ->  | Z46: =IF(G46="","",1- (G46 / (data!$B$7*1000/data!$B$3))) ->  | AA46: =IF(H46="","",1- (H46 / (data!$B$8*1000/data!$B$3))) -> 
N47: =IF($C47="","",IF(I47="","",I47*1000/data!$B$4)) ->  | O47: =IF($C47="","",IF(J47="","",J47*1000/data!$B$5)) ->  | P47: =IF($C47="","",IF(K47="","",K47*1000/data!$B$6)) ->  | Q47: =IF($C47="","",IF(L47="","",L47*1000/data!$B$7)) ->  | R47: =IF($C47="","",IF(M47="","",M47*1000/data!$B$8)) ->  | W47: =IF(D47="","",1- (D47 / (data!$B$4*1000/data!$B$3))) ->  | X47: =IF(E47="","",1- (E47 / (data!$B$5*1000/data!$B$3))) ->  | Y47: =IF(F47="","",1- (F47 / (data!$B$6*1000/data!$B$3))) ->  | Z47: =IF(G47="","",1- (G47 / (data!$B$7*1000/data!$B$3))) ->  | AA47: =IF(H47="","",1- (H47 / (data!$B$8*1000/data!$B$3))) -> 
N48: =IF($C48="","",IF(I48="","",I48*1000/data!$B$4)) ->  | O48: =IF($C48="","",IF(J48="","",J48*1000/data!$B$5)) ->  | P48: =IF($C48="","",IF(K48="","",K48*1000/data!$B$6)) ->  | Q48: =IF($C48="","",IF(L48="","",L48*1000/data!$B$7)) ->  | R48: =IF($C48="","",IF(M48="","",M48*1000/data!$B$8)) ->  | W48: =IF(D48="","",1- (D48 / (data!$B$4*1000/data!$B$3))) ->  | X48: =IF(E48="","",1- (E48 / (data!$B$5*1000/data!$B$3))) ->  | Y48: =IF(F48="","",1- (F48 / (data!$B$6*1000/data!$B$3))) ->  | Z48: =IF(G48="","",1- (G48 / (data!$B$7*1000/data!$B$3))) ->  | AA48: =IF(H48="","",1- (H48 / (data!$B$8*1000/data!$B$3))) -> 
N49: =IF($C49="","",IF(I49="","",I49*1000/data!$B$4)) ->  | O49: =IF($C49="","",IF(J49="","",J49*1000/data!$B$5)) ->  | P49: =IF($C49="","",IF(K49="","",K49*1000/data!$B$6)) ->  | Q49: =IF($C49="","",IF(L49="","",L49*1000/data!$B$7)) ->  | R49: =IF($C49="","",IF(M49="","",M49*1000/data!$B$8)) ->  | W49: =IF(D49="","",1- (D49 / (data!$B$4*1000/data!$B$3))) ->  | X49: =IF(E49="","",1- (E49 / (data!$B$5*1000/data!$B$3))) ->  | Y49: =IF(F49="","",1- (F49 / (data!$B$6*1000/data!$B$3))) ->  | Z49: =IF(G49="","",1- (G49 / (data!$B$7*1000/data!$B$3))) ->  | AA49: =IF(H49="","",1- (H49 / (data!$B$8*1000/data!$B$3))) -> 
I50: =IF($C50="","",IF(D50="","",D50*$C50/1000)) ->  | K50: =IF($C50="","",IF(F50="","",F50*$C50/1000)) ->  | L50: =IF($C50="","",IF(G50="","",G50*$C50/1000)) ->  | M50: =IF($C50="","",IF(H50="","",H50*$C50/1000)) ->  | N50: =IF($C50="","",IF(I50="","",I50*1000/data!$B$4)) ->  | O50: =IF($C50="","",IF(J50="","",J50*1000/data!$B$5)) ->  | P50: =IF($C50="","",IF(K50="","",K50*1000/data!$B$6)) ->  | Q50: =IF($C50="","",IF(L50="","",L50*1000/data!$B$7)) ->  | R50: =IF($C50="","",IF(M50="","",M50*1000/data!$B$8)) ->  | T50: =IF(C50="","",C50/S50*1000) ->  | U50: =IF(C50="","",C50/(14 * 3.6)) ->  | V50: =IF(C50="","",U50*2) ->  | W50: =IF(D50="","",1- (D50 / (data!$B$4*1000/data!$B$3))) ->  | X50: =IF(E50="","",1- (E50 / (data!$B$5*1000/data!$B$3))) ->  | Y50: =IF(F50="","",1- (F50 / (data!$B$6*1000/data!$B$3))) ->  | Z50: =IF(G50="","",1- (G50 / (data!$B$7*1000/data!$B$3))) ->  | AA50: =IF(H50="","",1- (H50 / (data!$B$8*1000/data!$B$3))) -> 
N51: =IF($C51="","",IF(I51="","",I51*1000/data!$B$4)) ->  | O51: =IF($C51="","",IF(J51="","",J51*1000/data!$B$5)) ->  | P51: =IF($C51="","",IF(K51="","",K51*1000/data!$B$6)) ->  | Q51: =IF($C51="","",IF(L51="","",L51*1000/data!$B$7)) ->  | R51: =IF($C51="","",IF(M51="","",M51*1000/data!$B$8)) ->  | W51: =IF(D51="","",1- (D51 / (data!$B$4*1000/data!$B$3))) ->  | X51: =IF(E51="","",1- (E51 / (data!$B$5*1000/data!$B$3))) ->  | Y51: =IF(F51="","",1- (F51 / (data!$B$6*1000/data!$B$3))) ->  | Z51: =IF(G51="","",1- (G51 / (data!$B$7*1000/data!$B$3))) ->  | AA51: =IF(H51="","",1- (H51 / (data!$B$8*1000/data!$B$3))) -> 
N52: =IF($C52="","",IF(I52="","",I52*1000/data!$B$4)) ->  | O52: =IF($C52="","",IF(J52="","",J52*1000/data!$B$5)) ->  | P52: =IF($C52="","",IF(K52="","",K52*1000/data!$B$6)) ->  | Q52: =IF($C52="","",IF(L52="","",L52*1000/data!$B$7)) ->  | R52: =IF($C52="","",IF(M52="","",M52*1000/data!$B$8)) ->  | W52: =IF(D52="","",1- (D52 / (data!$B$4*1000/data!$B$3))) ->  | X52: =IF(E52="","",1- (E52 / (data!$B$5*1000/data!$B$3))) ->  | Y52: =IF(F52="","",1- (F52 / (data!$B$6*1000/data!$B$3))) ->  | Z52: =IF(G52="","",1- (G52 / (data!$B$7*1000/data!$B$3))) ->  | AA52: =IF(H52="","",1- (H52 / (data!$B$8*1000/data!$B$3))) -> 
N53: =IF($C53="","",IF(I53="","",I53*1000/data!$B$4)) ->  | O53: =IF($C53="","",IF(J53="","",J53*1000/data!$B$5)) ->  | P53: =IF($C53="","",IF(K53="","",K53*1000/data!$B$6)) ->  | Q53: =IF($C53="","",IF(L53="","",L53*1000/data!$B$7)) ->  | R53: =IF($C53="","",IF(M53="","",M53*1000/data!$B$8)) ->  | S53: =IF(C53="","",AVERAGE(N53:R53)) ->  | W53: =IF(D53="","",1- (D53 / (data!$B$4*1000/data!$B$3))) ->  | X53: =IF(E53="","",1- (E53 / (data!$B$5*1000/data!$B$3))) ->  | Y53: =IF(F53="","",1- (F53 / (data!$B$6*1000/data!$B$3))) ->  | Z53: =IF(G53="","",1- (G53 / (data!$B$7*1000/data!$B$3))) ->  | AA53: =IF(H53="","",1- (H53 / (data!$B$8*1000/data!$B$3))) ->  | AB53: =IF(AND(D53="",E53="",F53="",G53="",H53=""),"",AVERAGE(W53:AA53)) -> 
A55: =bi("Moyennes","Mittelwerte") -> Mittelwerte | C55: =IF(C16="","",AVERAGE(C16:C53)) -> 16214.28571 | D55: =IF(D16="","",AVERAGE(D16:D53)) ->  | E55: 193.5384615 | F55: 43.32857143 | G55: 24.5 | H55: 5.267857143 | J55: 3133.692308 | K55: 702.45 | L55: 396.9285714 | M55: 85.35714286 | O55: 52228.20513 | P55: 63283.78378 | Q55: 58371.84874 | R55: 47953.45104 | S55: 56198.09169 | T55: 289.4073576 | W55: =IF(W16="","",AVERAGE(W16:W53)) ->  | X55: 0.4516410256 | Y55: 0.3364092664 | Z55: 0.3875 | AA55: 0.4968900482 | AB55: 0.4105746754 | AC55: 6660.610127 | AD55: 77.09039499 | AE55: 9553.675587 | AF55: 110.5749489 | AG55: 25.0551249

Sheet data
A1: =bi("Charge spécifique par EH","Spezifische Frachten pro EW") -> Spezifische Frachten pro EW | F1: Sprache: | G1: 2 | H1: FR
H2: DE
A3: =bi("débit","Durchfluss") -> Durchfluss | B3: 170 | C3: =bi("(l/EH.d)","(l/EW.Tag)") -> (l/EW.Tag)
A4: =bi("DCO","CSB") -> CSB | B4: 120 | C4: =bi("(g O2/EH.d)","(g O2/EW.Tag)") -> (g O2/EW.Tag)
A5: =bi("DBO5","BSB5") -> BSB5 | B5: 60 | C5: =bi("(g O2/EH.d)","(g O2/EW.Tag)") -> (g O2/EW.Tag)
A6: Ntot | B6: 11.1 | C6: =bi("(g N/EH.d)","(g N/EW.Tag)") -> (g N/EW.Tag)
A7: NH4 | B7: 6.8 | C7: =bi("(g N/EH.d)","(g N/EW.Tag)") -> (g N/EW.Tag)
A8: Ptot | B8: 1.78 | C8: =bi("(g P/EH.d)","(g P/EW.Tag)") -> (g P/EW.Tag)

Sheet liste (hidden)
A1: STEP | B1: NoSTEP | C1: Exploitant_prénom | D1: Exploitant_nom | E1: CapBiol | F1: AnCons | G1: AnTrans | H1: Coord_STEP_X | I1: Coord_STEP_Y | J1: Coord_STEP_alt | K1: EX_IMM_NOM | L1: EX_FIN_NOM | M1: Coord_rejet_X | N1: Coord_rejet_Y | O1: Coord_rejet_alt | P1: QSTEP | Q1: VBio | R1: DBO5c | S1: DBO5rdt | T1: DOCc | U1: DOCrdt | V1: Ptotc | W1: Ptotrdt | X1: NNH4c | Y1: NNH4rdt | Z1: NO2c | AA1: MESc | AB1: champs de reserve (disponible) | AC1: Habitants rac. | AD1: Lits touristiques rac. | AE1: champs de reserve (disponible) | AF1: FQ_SORTIE | AG1: FDBO5_ENTREE | AH1: FDBO5_SORTIE | AI1: FCOT_ENTREE | AJ1: FCOT_SORTIE | AK1: FCOD_ENTREE | AL1: FCOD_SORTIE | AM1: FNH4_ENTREE | AN1: FNH4_SORTIE | AO1: FNTOT_ENTREE | AP1: FNTOT_SORTIE | AQ1: FNO2_ENTREE | AR1: FNO2_SORTIE | AS1: FPTOT_ENTREE | AT1: FPTOT_SORTIE | AU1: FMES_ENTREE | AV1: FMES_SORTIE | AW1: FTEMP | AX1: FBOUES | AY1: Langue | AZ1: Responsable | BA1: Type STEP | BB1: EH_part_indus | BC1: commentaire général | BD1: Relevage | BE1: Dégrilleur grossier | BF1: Dessableur | BG1: Déshuileur | BH1: Tamiseur | BI1: Salsnes | BJ1: autre | BK1: Décantation primaire | BL1: Boues activées | BM1: Chenal d'oxydation | BN1: Lit bactérien | BO1: Biofiltre | BP1: Disque biologique | BQ1: Lagunage/Phytoplancton | BR1: Classique | BS1: Filtration | BT1: Micro-tamis | BU1: Membrane | BV1: Flottation | BW1: autre | BX1: Filtration | BY1: Ozonation | BZ1: Charbon actif | CA1: autre | CB1: Methode d'analyse de la DBO5 | CC1: Choix du débimètre utilisé pour calculs | CD1: Le preleveur de sortie mesure | CE1: Bypass DP sans eaux usées industrielles | CF1: Analyses effectuées par le labo (N° du Labo) | CG1: Analyses effectuées par le labo | CH1: Epaississement des boues | CI1: Stabilisation | CJ1: Valorisation du biogaz | CK1: Déshydratation | CL1: Séchage | CM1: Incinération
AF2: Exigences fréqunce analyse 0 = aucune, H = horaire, J = journalier | AG2: Exigences fréqunce analyse | AH2: Exigences fréqunce analyse | AI2: Exigences fréqunce analyse | AJ2: Exigences fréqunce analyse | AK2: Exigences fréqunce analyse | AL2: Exigences fréqunce analyse | AM2: Exigences fréqunce analyse | AN2: Exigences fréqunce analyse | AO2: Exigences fréqunce analyse | AP2: Exigences fréqunce analyse | AQ2: Exigences fréqunce analyse | AR2: Exigences fréqunce analyse | AS2: Exigences fréqunce analyse | AT2: Exigences fréqunce analyse | AU2: Exigences fréqunce analyse | AV2: Exigences fréqunce analyse | AW2: Exigences fréqunce analyse | AX2: Exigences fréqunce analyse | BA2: (1=urbaine, 2=industrielle, 3=mixte) | BD2: 1=absent 2=présent | BE2: 1=absent 2=présent | BF2: 1=absent 2=présent | BG2: 1=absent 2=présent | BH2: 1=absent 2=présent | BI2: 1=absent 2=présent | BJ2: 1=absent 2=présent | BK2: 1=classique, 2=lamellaire, 3=autre, 4=absent | BL2: 1=faible, 2=moyenne, 3=forte, 4=forte+faible, 5=lit fluidisé, 6=autre | BM2: 1=absent, 2=présent | BN2: 1=absent, 2=présent | BO2: 1=absent, 2=présent | BP2: 1=absent, 2=présent | BQ2: 1=absent, 2=présent | BR2: Clarif. sec.: Classique: 1=absent, 2=présent | BS2: Clarif. sec. : Filtration: 1=absent, 2=présent | BT2: Clarif. sec. : Micro-tamis: 1=absent, 2=présent | BU2: Clarif. sec. : Membrane: 1=absent, 2=présent | BV2: Clarif. sec. : Flottation: 1=absent, 2=présent | BW2: Clarif. sec. : autre: 1=absent, 2=présent | BX2: Traitement tert. : Filtration: 1=absent, 2=présent | BY2: Traitement tert. : Ozonation: 1=absent, 2=présent | BZ2: Traitement tert. : Charbon actif: 1=absent, 2=présent | CA2: Traitement tert. : autre: 1=absent, 2=présent | CB2: 1=Dilution, 2=OxitopC, 3=Hach-Lange, 4=Macherey-Nagel, 5=autre | CC2: 1=entrée STEP, 2=sortie STEP | CD2: 1=aucun devers. 2=devers entrée STEP, 3=devers sortie prim., 4= devers. entrée STEP+sortie prim | CE2: 1=non, 2=oui | CH2: 1=épaississeur statique, 2=table d'égouttage,3= tambour d'égouttage, 4=épaisisseur à vis, 5=flottation, 6=centri, 7=autre | CI2: 1=digestion, 2=digestion à froid, 3=stabilisation aérée, 4=autre, 5= absent | CJ2: 1=chaudière à gaz, 2=CCF 3=injection réseau, 4 pile combustible 5 pas de valorisation | CK2: 1=épaississement statique, 2=tasster, 3=presse à vis, 4=centri, 5=filtre à bande, 6= filtre presse 7=autre | CL2: 1=absent, 2=présent | CM2: 1=absent, 2=présent
A3: Ausserbinn | B3: 6051/00 | E3: 100 | F3: 2001 | G3: 0 | H3: 654560 | I3: 136900 | J3: 1260 | K3: Binna | L3: Rhône | M3: 654430 | N3: 136820 | O3: 1140 | P3: 17 | R3: 20 | S3: 0 | Z3: 0.3 | AA3: 20 | AC3: 29 | AD3: 0 | AF3: 0 | AG3: 0 | AH3: 0 | AI3: 0 | AJ3: 0 | AK3: 0 | AL3: 0 | AM3: 0 | AN3: 0 | AO3: 0 | AP3: 0 | AQ3: 0 | AR3: 0 | AS3: 0 | AT3: 0 | AU3: 0 | AV3: 0 | AW3: 0 | AX3: =IF(E3<200,0,1) -> 0 | AY3: 2 | AZ3: MM | BA3: 1 | BB3: 0 | BD3: 1 | BE3: 1 | BF3: 1 | BG3: 1 | BH3: 1 | BI3: 1 | BJ3: 1 | BK3: 4 | BM3: 1 | BN3: 1 | BO3: 1 | BP3: 1 | BQ3: 1 | BR3: 1 | BS3: 1 | BT3: 1 | BU3: 1 | BV3: 1 | BW3: 1 | BX3: 1 | BY3: 1 | BZ3: 1 | CA3: 1 | CB3: 1 | CC3: 1 | CD3: 1 | CE3: 1 | CF3: 1 | CG3: à completer | CI3: 5 | CJ3: 5 | CL3: 1 | CM3: 1
A4: Ayent-Voos | B4: 6082/00 | C4: Jean-Marie | D4: Morard | E4: 11250 | F4: 1995 | G4: 0 | H4: 597920 | I4: 123270 | J4: 518 | K4: Lienne | L4: Rhône | M4: 597960 | N4: 122920 | O4: 516 | P4: 5400 | R4: 15 | S4: 90 | T4: 10 | U4: 85 | V4: 0.8 | W4: 90 | Z4: 0.3 | AA4: 15 | AC4: 3800 | AD4: 9130 | AF4: H | AG4: 52 | AH4: 52 | AI4: 12 | AJ4: 0 | AK4: 0 | AL4: 12 | AM4: 52 | AN4: 52 | AO4: 24 | AP4: 0 | AQ4: 0 | AR4: 12 | AS4: 104 | AT4: 104 | AU4: 0 | AV4: 52 | AW4: 52 | AX4: 1 | AY4: 1 | AZ4: PM | BA4: 1 | BB4: 0 | BD4: 1 | BE4: 2 | BF4: 2 | BG4: 2 | BH4: 1 | BI4: 1 | BJ4: 2 | BK4: 1 | BM4: 1 | BN4: 1 | BO4: 1 | BP4: 2 | BQ4: 1 | BR4: 1 | BS4: 1 | BT4: 1 | BU4: 1 | BV4: 1 | BW4: 1 | BX4: 1 | BY4: 1 | BZ4: 1 | CA4: 2 | CB4: 1 | CC4: 1 | CD4: 1 | CE4: 1 | CF4: 2 | CG4: Ayent-Voos | CH4: 1 | CI4: 5 | CJ4: 1 | CK4: 2 | CL4: 1 | CM4: 1
A5: Bagnes-Le Châble | B5: 6031/02 | C5: Patrice | D5: Berguerand | E5: 19833 | F5: 1993 | G5: 0 | H5: 581750 | I5: 103500 | J5: 860 | K5: Dranse de Bagnes | L5: Dranse | M5: 581700 | N5: 103550 | O5: 855 | P5: 5950 | R5: 15 | S5: 90 | T5: 10 | U5: 85 | V5: 0.8 | W5: 90 | Z5: 0.3 | AA5: 15 | AC5: 7713 | AD5: 40477 | AF5: H | AG5: 52 | AH5: 52 | AI5: 12 | AJ5: 0 | AK5: 0 | AL5: 12 | AM5: 52 | AN5: 52 | AO5: 24 | AP5: 0 | AQ5: 0 | AR5: 12 | AS5: 104 | AT5: 104 | AU5: 0 | AV5: 52 | AW5: 52 | AX5: 1 | AY5: 1 | AZ5: PM | BA5: 1 | BB5: 0 | BD5: 1 | BE5: 2 | BF5: 2 | BG5: 2 | BH5: 2 | BI5: 1 | BJ5: 1 | BK5: 2 | BL5: 6 | BM5: 1 | BN5: 1 | BO5: 2 | BP5: 1 | BQ5: 1 | BR5: 1 | BS5: 1 | BT5: 1 | BU5: 1 | BV5: 1 | BW5: 1 | BX5: 1 | BY5: 1 | BZ5: 1 | CA5: 1 | CB5: 1 | CC5: 1 | CD5: 1 | CE5: 1 | CF5: 3 | CG5: Bagnes-LeChable | CH5: 2 | CI5: 1 | CJ5: 2 | CK5: 4 | CL5: 1 | CM5: 1
A6: Bagnes-Verbier | B6: 6031/01 | C6: Patrice | D6: Berguerand | E6: 18750 | F6: 1966 | G6: 0 | H6: 582575 | I6: 104995 | J6: 1320 | K6: Torrent de Saint Jean | L6: Dranse de Bagnes | M6: 582600 | N6: 104950 | O6: 1300 | P6: 3750 | R6: 15 | S6: 90 | T6: 10 | U6: 85 | V6: 0.8 | W6: 90 | Z6: 0.3 | AA6: 15 | AC6: 1521 | AD6: 0 | AF6: H | AG6: 52 | AH6: 52 | AI6: 12 | AJ6: 0 | AK6: 0 | AL6: 12 | AM6: 52 | AN6: 52 | AO6: 24 | AP6: 0 | AQ6: 0 | AR6: 12 | AS6: 104 | AT6: 104 | AU6: 0 | AV6: 52 | AW6: 52 | AX6: 1 | AY6: 1 | AZ6: PM | BA6: 1 | BB6: 0 | BD6: 1 | BE6: 2 | BF6: 2 | BG6: 2 | BH6: 1 | BI6: 1 | BJ6: 1 | BK6: 1 | BL6: 2 | BM6: 1 | BN6: 1 | BO6: 1 | BP6: 1 | BQ6: 1 | BR6: 2 | BS6: 1 | BT6: 1 | BU6: 1 | BV6: 1 | BW6: 1 | BX6: 1 | BY6: 1 | BZ6: 1 | CA6: 1 | CB6: 1 | CC6: 1 | CD6: 1 | CE6: 1 | CF6: 4 | CG6: à completer | CH6: 1 | CI6: 1 | CJ6: 2 | CK6: 4 | CL6: 1 | CM6: 1
A7: Binn | B7: 6054/00 | C7: Paul | D7: Imhof | E7: 450 | F7: 2002 | G7: 0 | H7: 657075 | I7: 134950 | J7: 1400 | K7: Binna | L7: Rhône | M7: 657050 | N7: 134955 | O7: 1395 | P7: 195 | R7: 20 | S7: 90 | V7: 0.8 | W7: 80 | Z7: 0.3 | AA7: 20 | AC7: 118 | AD7: 444 | AF7: J | AG7: 0 | AH7: 12 | AI7: 0 | AJ7: 0 | AK7: 0 | AL7: 0 | AM7: 0 | AN7: 12 | AO7: 0 | AP7: 0 | AQ7: 0 | AR7: 12 | AS7: 0 | AT7: 12 | AU7: 0 | AV7: 0 | AW7: 0 | AX7: 1 | AY7: 2 | AZ7: MM | BA7: 1 | BB7: 0 | BD7: 1 | BE7: 2 | BF7: 1 | BG7: 1 | BH7: 2 | BI7: 1 | BJ7: 1 | BK7: 1 | BL7: 2 | BM7: 1 | BN7: 1 | BO7: 1 | BP7: 1 | BQ7: 1 | BR7: 2 | BS7: 1 | BT7: 1 | BU7: 1 | BV7: 1 | BW7: 1 | BX7: 1 | BY7: 1 | BZ7: 1 | CA7: 1 | CB7: 1 | CC7: 1 | CD7: 1 | CE7: 1 | CF7: 5 | CG7: à completer | CH7: 1 | CI7: 5 | CJ7: 5 | CL7: 1 | CM7: 1
A8: Binn-Giesse | B8: 6054/01 | C8: Paul | D8: Imhof | E8: 200 | F8: 2011 | G8: 0 | H8: 658400 | I8: 135450 | J8: 1450 | K8: Binna | L8: Rhône | M8: 658400 | N8: 135450 | O8: 1450 | P8: 34 | Q8: 25 | R8: 20 | S8: 90 | Z8: 0.3 | AA8: 20 | AC8: 4 | AD8: 417 | AF8: J | AG8: 0 | AH8: 12 | AI8: 0 | AJ8: 0 | AK8: 0 | AL8: 0 | AM8: 0 | AN8: 12 | AO8: 0 | AP8: 0 | AQ8: 0 | AR8: 12 | AS8: 0 | AT8: 12 | AU8: 0 | AV8: 0 | AW8: 0 | AX8: 1 | AY8: 2 | AZ8: MM | BA8: 1 | BB8: 0 | BC8: Bérénice: selon Meinrad, c'est une sorte de fosse donc on peut indiquer le point de rejet au même endroit que la step.. | BD8: 1 | BE8: 1 | BF8: 1 | BG8: 1 | BH8: 1 | BI8: 1 | BJ8: 1 | BK8: 1 | BL8: 1 | BM8: 1 | BN8: 1 | BO8: 1 | BP8: 1 | BQ8: 1 | BR8: 1 | BS8: 1 | BT8: 1 | BU8: 1 | BV8: 1 | BW8: 2 | BX8: 1 | BY8: 1 | BZ8: 1 | CA8: 1 | CB8: 1 | CC8: 1 | CD8: 1 | CE8: 1 | CF8: 6 | CG8: à completer | CH8: 7 | CI8: 5 | CJ8: 5 | CL8: 1 | CM8: 1
A9: Bister | B9: 6172/00 | C9: Beat | D9: Hauser | E9: 169 | F9: 1976 | G9: 0 | H9: 648245 | I9: 135070 | J9: 905 | K9: Rhône | L9: Rhône | M9: 648130 | N9: 135170 | O9: 785 | P9: 35 | R9: 30 | S9: 90 | Z9: 0.3 | AC9: 30 | AD9: 40 | AF9: 0 | AG9: 0 | AH9: 0 | AI9: 0 | AJ9: 0 | AK9: 0 | AL9: 0 | AM9: 0 | AN9: 0 | AO9: 0 | AP9: 0 | AQ9: 0 | AR9: 0 | AS9: 0 | AT9: 0 | AU9: 0 | AV9: 0 | AW9: 0 | AX9: 0 | AY9: 2 | AZ9: MM | BA9: 1 | BB9: 0 | BD9: 1 | BE9: 2 | BF9: 1 | BG9: 1 | BH9: 1 | BI9: 1 | BJ9: 1 | BK9: 1 | BM9: 1 | BN9: 1 | BO9: 1 | BP9: 2 | BQ9: 1 | BR9: 1 | BS9: 2 | BT9: 1 | BU9: 1 | BV9: 1 | BW9: 1 | BX9: 1 | BY9: 1 | BZ9: 1 | CA9: 1 | CB9: 1 | CC9: 1 | CD9: 1 | CE9: 1 | CF9: 6 | CG9: à completer | CH9: 7 | CI9: 5 | CJ9: 5 | CL9: 1 | CM9: 1
A10: Blatten | B10: 6192/00 | C10: Thomas | D10: Kalbermatten | E10: 1200 | F10: 2000 | G10: 0 | H10: 627865 | I10: 140100 | J10: 1450 | K10: Lonza | L10: Rhône | M10: 627845 | N10: 139920 | O10: 1432 | P10: 420 | R10: 20 | S10: 90 | V10: 0.8 | W10: 80 | Z10: 0.3 | AA10: 20 | AC10: 306 | AD10: 440 | AF10: J | AG10: 0 | AH10: 12 | AI10: 0 | AJ10: 0 | AK10: 0 | AL10: 0 | AM10: 0 | AN10: 12 | AO10: 0 | AP10: 0 | AQ10: 0 | AR10: 12 | AS10: 0 | AT10: 12 | AU10: 0 | AV10: 0 | AW10: 0 | AX10: 1 | AY10: 2 | AZ10: MM | BA10: 1 | BB10: 0 | BD10: 1 | BE10: 2 | BF10: 2 | BG10: 1 | BH10: 2 | BI10: 1 | BJ10: 1 | BK10: 1 | BM10: 1 | BN10: 1 | BO10: 1 | BP10: 2 | BQ10: 1 | BR10: 2 | BS10: 1 | BT10: 1 | BU10: 1 | BV10: 1 | BW10: 1 | BX10: 1 | BY10: 1 | BZ10: 1 | CA10: 1 | CB10: 1 | CC10: 1 | CD10: 1 | CE10: 1 | CF10: 7 | CG10: Wiler | CH10: 1 | CI10: 5 | CJ10: 5 | CL10: 1 | CM10: 1
A11: Bourg St-Pierre | B11: 6032/02 | C11: Denis | D11: Darbellay | E11: 400 | F11: 2009 | G11: 0 | H11: 582050 | I11: 89650 | J11: 1575 | K11: Dranse d'Entremont | L11: Dranse | M11: 581922 | N11: 89773 | O11: 1520 | P11: 120 | R11: 20 | S11: 90 | V11: 0.8 | W11: 80 | Z11: 0.3 | AA11: 20 | AC11: 181 | AD11: 520 | AF11: J | AG11: 0 | AH11: 12 | AI11: 0 | AJ11: 0 | AK11: 0 | AL11: 0 | AM11: 0 | AN11: 12 | AO11: 0 | AP11: 0 | AQ11: 0 | AR11: 12 | AS11: 0 | AT11: 12 | AU11: 0 | AV11: 0 | AW11: 0 | AX11: 1 | AY11: 1 | AZ11: RB | BA11: 1 | BB11: 0 | BC11: Bérénice : anciennes coord point de rejet : 582025/89650 alt. 1570 | BD11: 1 | BE11: 1 | BF11: 2 | BG11: 2 | BH11: 2 | BI11: 1 | BJ11: 1 | BK11: 4 | BL11: 2 | BM11: 1 | BN11: 1 | BO11: 1 | BP11: 1 | BQ11: 1 | BR11: 2 | BS11: 1 | BT11: 1 | BU11: 1 | BV11: 1 | BW11: 1 | BX11: 1 | BY11: 1 | BZ11: 1 | CA11: 1 | CB11: 1 | CC11: 1 | CD11: 1 | CE11: 1 | CF11: 8 | CG11: Bagnes-LeChable | CH11: 1 | CI11: 5 | CJ11: 1 | CK11: 1 | CL11: 1 | CM11: 1
A12: Briggematte-Randa | B12: 6287/00 | C12: Andreas | D12: Brantschen | E12: 6000 | F12: 1981 | G12: 0 | H12: 626410 | I12: 105530 | J12: 1400 | K12: Matter Vispa | L12: Vispa | M12: 626379 | N12: 105577 | O12: 1410 | P12: 2000 | Q12: 245 | R12: 20 | S12: 90 | T12: 10 | U12: 85 | V12: 0.8 | W12: 85 | Z12: 0.3 | AA12: 20 | AC12: 1571 | AD12: 1265 | AF12: H | AG12: 52 | AH12: 52 | AI12: 12 | AJ12: 0 | AK12: 0 | AL12: 12 | AM12: 52 | AN12: 52 | AO12: 24 | AP12: 0 | AQ12: 0 | AR12: 12 | AS12: 52 | AT12: 52 | AU12: 0 | AV12: 52 | AW12: 52 | AX12: 1 | AY12: 2 | AZ12: DO | BA12: 1 | BB12: 0 | BD12: 2 | BE12: 1 | BF12: 2 | BG12: 2 | BH12: 2 | BI12: 1 | BJ12: 1 | BK12: 1 | BL12: 2 | BM12: 1 | BN12: 1 | BO12: 1 | BP12: 1 | BQ12: 1 | BR12: 2 | BS12: 1 | BT12: 1 | BU12: 1 | BV12: 1 | BW12: 1 | BX12: 1 | BY12: 1 | BZ12: 1 | CA12: 1 | CB12: 1 | CC12: 1 | CD12: 1 | CE12: 1 | CF12: 9 | CG12: Briggematte-Randa | CH12: 1 | CI12: 1 | CJ12: 1 | CK12: 3 | CL12: 1 | CM12: 1
A13: Briglina-Brig | B13: 6002/00 | C13: Walter | D13: Zeiter | E13: 55000 | F13: 1984 | G13: 0 | H13: 639520 | I13: 128550 | J13: 660 | K13: Grosser Graben | L13: Rhône | M13: 639470 | N13: 128470 | O13: 655 | P13: 20000 | Q13: 3628 | R13: 15 | S13: 90 | T13: 10 | U13: 85 | V13: 0.8 | W13: 90 | Z13: 0.3 | AA13: 15 | AC13: 27233 | AD13: 16312 | AF13: H | AG13: 52 | AH13: 52 | AI13: 12 | AJ13: 0 | AK13: 0 | AL13: 12 | AM13: 104 | AN13: 104 | AO13: 24 | AP13: 0 | AQ13: 0 | AR13: 12 | AS13: 104 | AT13: 104 | AU13: 0 | AV13: 52 | AW13: 52 | AX13: 1 | AY13: 2 | AZ13: DO | BA13: 1 | BB13: 0 | BD13: 2 | BE13: 2 | BF13: 2 | BG13: 1 | BH13: 2 | BI13: 1 | BJ13: 1 | BK13: 1 | BL13: 1 | BM13: 1 | BN13: 1 | BO13: 1 | BP13: 1 | BQ13: 1 | BR13: 2 | BS13: 1 | BT13: 1 | BU13: 1 | BV13: 1 | BW13: 1 | BX13: 1 | BY13: 1 | BZ13: 1 | CA13: 1 | CB13: 1 | CC13: 1 | CD13: 1 | CE13: 1 | CF13: 10 | CG13: Briglina-Brig | CH13: 1 | CI13: 1 | CJ13: 2 | CK13: 5 | CL13: 1 | CM13: 1
A14: Brunni-Fiesch | B14: 6057/00 | C14: Armin | D14: Clausen | E14: 36167 | F14: 1981 | G14: 2001 | H14: 652900 | I14: 138180 | J14: 982 | K14: Rhône (Prise d'eau Fieschertal) | L14: Rhône | M14: 652930 | N14: 138130 | O14: 978 | P14: 10800 | Q14: 2192 | R14: 15 | S14: 90 | T14: 10 | U14: 85 | V14: 0.8 | W14: 90 | Z14: 0.3 | AA14: 15 | AC14: 3787 | AD14: 21700 | AF14: H | AG14: 52 | AH14: 52 | AI14: 12 | AJ14: 0 | AK14: 0 | AL14: 12 | AM14: 52 | AN14: 52 | AO14: 24 | AP14: 0 | AQ14: 0 | AR14: 12 | AS14: 104 | AT14: 104 | AU14: 0 | AV14: 52 | AW14: 52 | AX14: 1 | AY14: 2 | BA14: 1 | BB14: 0 | BD14: 1 | BE14: 1 | BF14: 2 | BG14: 2 | BH14: 2 | BI14: 1 | BJ14: 1 | BK14: 1 | BL14: 2 | BM14: 1 | BN14: 1 | BO14: 1 | BP14: 1 | BQ14: 1 | BR14: 2 | BS14: 1 | BT14: 1 | BU14: 1 | BV14: 1 | BW14: 1 | BX14: 1 | BY14: 1 | BZ14: 1 | CA14: 1 | CB14: 3 | CC14: 1 | CD14: 1 | CE14: 1 | CF14: 11 | CG14: Brunni-Fiesch / ARA Goms | CH14: 1 | CI14: 1 | CJ14: 2 | CK14: 5 | CL14: 1 | CM14: 1
A15: Chamoson | B15: 6022/00 | C15: Bernard | D15: Reymond | E15: 5000 | F15: 1978 | G15: 2001 | H15: 584900 | I15: 115100 | J15: 474 | K15: Rhône | L15: Rhône | M15: 585260 | N15: 114690 | O15: 472 | P15: 1500 | Q15: 343 | R15: 15 | S15: 90 | T15: 10 | U15: 85 | V15: 0.8 | W15: 90 | Z15: 0.3 | AA15: 15 | AC15: 3287 | AD15: 2342 | AF15: H | AG15: 52 | AH15: 52 | AI15: 12 | AJ15: 0 | AK15: 0 | AL15: 12 | AM15: 52 | AN15: 52 | AO15: 24 | AP15: 0 | AQ15: 0 | AR15: 12 | AS15: 52 | AT15: 52 | AU15: 0 | AV15: 52 | AW15: 52 | AX15: 1 | AY15: 1 | AZ15: PM | BA15: 1 | BB15: 0 | BC15: Selon BG (diag 2012) capa hydraulique 5352 m3/j (223m3/h) Prise en compte du bypass entrée STEP doit être limité par 2 QTS et pas la cap. hydrl. de la STEP ! (Onglet "contanten_bypass" E28); + Calculer la charge liée aux forts bypass pendant les vendanges | BD15: 1 | BE15: 1 | BF15: 2 | BG15: 2 | BH15: 2 | BI15: 1 | BJ15: 1 | BK15: 1 | BL15: 2 | BM15: 2 | BN15: 1 | BO15: 1 | BP15: 1 | BQ15: 1 | BR15: 2 | BS15: 1 | BT15: 1 | BU15: 1 | BV15: 1 | BW15: 1 | BX15: 1 | BY15: 1 | BZ15: 1 | CA15: 1 | CB15: 1 | CC15: 1 | CD15: 1 | CE15: 1 | CF15: 12 | CG15: Chamoson | CH15: 2 | CI15: 5 | CJ15: 5 | CK15: 5 | CL15: 1 | CM15: 1
A16: Champéry | B16: 6151/00 | C16: Thierry | D16: Marclay | E16: 3750 | F16: 1975 | G16: 0 | H16: 556500 | I16: 113950 | J16: 925 | K16: Vièze | L16: Rhône | M16: 556540 | N16: 113950 | O16: 920 | P16: 1200 | Q16: 500 | R16: 20 | S16: 90 | T16: 10 | U16: 85 | V16: 0.8 | W16: 85 | Z16: 0.3 | AA16: 20 | AC16: 941 | AD16: 7004 | AF16: H | AG16: 24 | AH16: 24 | AI16: 12 | AJ16: 0 | AK16: 0 | AL16: 12 | AM16: 24 | AN16: 24 | AO16: 24 | AP16: 0 | AQ16: 0 | AR16: 12 | AS16: 24 | AT16: 24 | AU16: 0 | AV16: 24 | AW16: 52 | AX16: 1 | AY16: 1 | AZ16: RB | BA16: 1 | BB16: 0 | BD16: 1 | BE16: 1 | BF16: 2 | BG16: 1 | BH16: 2 | BI16: 1 | BJ16: 1 | BK16: 4 | BL16: 2 | BM16: 2 | BN16: 1 | BO16: 1 | BP16: 1 | BQ16: 1 | BR16: 2 | BS16: 1 | BT16: 1 | BU16: 1 | BV16: 1 | BW16: 1 | BX16: 1 | BY16: 1 | BZ16: 1 | CA16: 1 | CB16: 3 | CC16: 1 | CD16: 1 | CE16: 1 | CF16: 13 | CG16: Champery | CH16: 1 | CI16: 5 | CJ16: 5 | CK16: 4 | CL16: 1 | CM16: 2
A17: Charrat | B17: 6132/00 | C17: Dany | D17: Boson | E17: 2125 | F17: 1977 | G17: 0 | H17: 575975 | I17: 108550 | J17: 459 | K17: Canal du Syndicat | L17: Rhône | M17: 575975 | N17: 108525 | O17: 459 | P17: 680 | R17: 20 | S17: 90 | T17: 10 | U17: 85 | V17: 0.8 | W17: 85 | Z17: 0.3 | AA17: 20 | AC17: 0 | AD17: 0 | AF17: H | AG17: 24 | AH17: 24 | AI17: 12 | AJ17: 0 | AK17: 0 | AL17: 12 | AM17: 24 | AN17: 24 | AO17: 24 | AP17: 0 | AQ17: 0 | AR17: 12 | AS17: 24 | AT17: 24 | AU17: 0 | AV17: 24 | AW17: 52 | AX17: 1 | AY17: 1 | AZ17: RB | BA17: 1 | BB17: 0 | BD17: 1 | BE17: 1 | BF17: 1 | BG17: 1 | BH17: 1 | BI17: 1 | BJ17: 1 | BK17: 4 | BM17: 1 | BN17: 1 | BO17: 1 | BP17: 1 | BQ17: 1 | BR17: 1 | BS17: 1 | BT17: 1 | BU17: 1 | BV17: 1 | BW17: 1 | BX17: 1 | BY17: 1 | BZ17: 1 | CA17: 1 | CB17: 1 | CC17: 1 | CD17: 1 | CE17: 1 | CF17: 14 | CG17: à completer | CI17: 5 | CJ17: 5 | CL17: 1 | CM17: 1
A18: Col Gd St-Bernard | B18: 6032/00 | C18: Denis | D18: Darbellay | E18: 355 | F18: 1982 | G18: 0 | H18: 579390 | I18: 79740 | J18: 2450 | K18: Dranse d'Entremont | L18: Dranse | M18: 579415 | N18: 79730 | O18: 2430 | P18: 50 | R18: 20 | S18: 90 | V18: 0.8 | W18: 80 | Z18: 0.3 | AA18: 20 | AC18: 23 | AD18: 200 | AF18: J | AG18: 0 | AH18: 12 | AI18: 0 | AJ18: 0 | AK18: 0 | AL18: 0 | AM18: 0 | AN18: 12 | AO18: 0 | AP18: 0 | AQ18: 0 | AR18: 12 | AS18: 0 | AT18: 12 | AU18: 0 | AV18: 0 | AW18: 0 | AX18: 1 | AY18: 1 | AZ18: RB | BA18: 1 | BB18: 0 | BD18: 1 | BE18: 2 | BF18: 1 | BG18: 1 | BH18: 1 | BI18: 1 | BJ18: 1 | BK18: 1 | BL18: 2 | BM18: 1 | BN18: 1 | BO18: 1 | BP18: 1 | BQ18: 1 | BR18: 2 | BS18: 1 | BT18: 1 | BU18: 1 | BV18: 1 | BW18: 1 | BX18: 1 | BY18: 1 | BZ18: 1 | CA18: 1 | CB18: 1 | CC18: 1 | CD18: 1 | CE18: 1 | CF18: 15 | CG18: Bagnes-LeChable | CI18: 5 | CJ18: 1 | CK18: 1 | CL18: 1 | CM18: 2
A19: Collombey-Illarsaz | B19: 6152/02 | C19: Frédéric | D19: Sudan | E19: 500 | F19: 1983 | G19: 1996 | H19: 560750 | I19: 129250 | J19: 384 | K19: Canal des Roselettes | L19: Canal Stockalper | M19: 560725 | N19: 129275 | O19: 383 | P19: 150 | R19: 20 | S19: 90 | V19: 0.8 | W19: 80 | X19: 2 | Y19: 90 | Z19: 0.3 | AA19: 20 | AC19: 647 | AD19: 0 | AF19: J | AG19: 0 | AH19: 12 | AI19: 0 | AJ19: 0 | AK19: 0 | AL19: 0 | AM19: 0 | AN19: 12 | AO19: 0 | AP19: 0 | AQ19: 0 | AR19: 12 | AS19: 0 | AT19: 12 | AU19: 0 | AV19: 0 | AW19: 0 | AX19: 1 | AY19: 1 | AZ19: RB | BA19: 1 | BB19: 0 | BD19: 2 | BE19: 1 | BF19: 2 | BG19: 2 | BH19: 2 | BI19: 1 | BJ19: 1 | BK19: 1 | BL19: 2 | BM19: 1 | BN19: 1 | BO19: 1 | BP19: 1 | BQ19: 1 | BR19: 2 | BS19: 1 | BT19: 1 | BU19: 1 | BV19: 1 | BW19: 1 | BX19: 1 | BY19: 1 | BZ19: 1 | CA19: 1 | CB19: 2 | CC19: 1 | CD19: 1 | CE19: 1 | CF19: 16 | CG19: Vionnaz | CH19: 1 | CI19: 5 | CJ19: 5 | CL19: 1 | CM19: 1
A20: Collombey-Muraz | B20: 6152/01 | C20: Frédéric | D20: Sudan | E20: 7500 | F20: 1978 | G20: 0 | H20: 561700 | I20: 126200 | J20: 386 | K20: Canal du Bras-Neuf | L20: Canal Stockalper | M20: 561725 | N20: 126270 | O20: 385 | P20: 2600 | Q20: 1142 | R20: 20 | S20: 90 | T20: 10 | U20: 85 | V20: 0.8 | W20: 85 | X20: 3.5 | Y20: 90 | Z20: 0.3 | AA20: 20 | AC20: 6663 | AD20: 21 | AF20: H | AG20: 52 | AH20: 52 | AI20: 12 | AJ20: 0 | AK20: 0 | AL20: 12 | AM20: 52 | AN20: 52 | AO20: 24 | AP20: 0 | AQ20: 0 | AR20: 12 | AS20: 52 | AT20: 52 | AU20: 0 | AV20: 52 | AW20: 52 | AX20: 1 | AY20: 1 | AZ20: PM | BA20: 1 | BB20: 0 | BC20: Prise en compte du bypass entrée STEP doit être limité par 2 QTS et pas la cap. hydrl. de la STEP ! L'exploitant limite à Qmax 53 l/s = 4580 m3/j depuis le 18.12.2012 ! Retours du TDBoues perturbent le prélèvement d'entrée jusqu'au 20.09.2012 | BD20: 2 | BE20: 2 | BF20: 2 | BG20: 2 | BH20: 2 | BI20: 1 | BJ20: 1 | BK20: 1 | BL20: 1 | BM20: 1 | BN20: 1 | BO20: 1 | BP20: 1 | BQ20: 1 | BR20: 2 | BS20: 1 | BT20: 1 | BU20: 1 | BV20: 1 | BW20: 1 | BX20: 1 | BY20: 1 | BZ20: 1 | CA20: 1 | CB20: 2 | CC20: 1 | CD20: 1 | CE20: 1 | CF20: 17 | CG20: Vionnaz | CH20: 1 | CI20: 1 | CJ20: 1 | CK20: 3 | CL20: 1 | CM20: 1
A21: Collombey-Tamoil | B21: 6152/00 | C21: David | D21: Craquelin | E21: 8000 | F21: 1963 | G21: 0 | H21: 562500 | I21: 125900 | J21: 390 | K21: Rhône | L21: Rhône | M21: 562432 | N21: 126606 | O21: 390 | P21: 12000 | R21: 15 | S21: 0 | X21: 10 | Y21: 0 | AA21: 20 | AC21: 0 | AD21: 0 | AF21: H | AG21: 52 | AH21: 52 | AI21: 365 | AJ21: 365 | AK21: 0 | AL21: 0 | AM21: 52 | AN21: 52 | AO21: 0 | AP21: 0 | AQ21: 0 | AR21: 12 | AS21: 0 | AT21: 12 | AU21: 0 | AV21: 52 | AW21: 365 | AX21: 1 | AY21: 1 | AZ21: PM | BA21: 2 | BB21: 20000 | BD21: 1 | BE21: 1 | BF21: 1 | BG21: 2 | BH21: 1 | BI21: 1 | BJ21: 1 | BK21: 3 | BM21: 1 | BN21: 2 | BO21: 1 | BP21: 1 | BQ21: 1 | BR21: 1 | BS21: 2 | BT21: 1 | BU21: 1 | BV21: 1 | BW21: 1 | BX21: 1 | BY21: 1 | BZ21: 2 | CA21: 1 | CB21: 1 | CC21: 2 | CD21: 1 | CE21: 1 | CF21: 18 | CG21: Collombey-Tamoil | CH21: 1 | CI21: 5 | CJ21: 5 | CL21: 1 | CM21: 1
A22: Conthey-Erde | B22: 6023/00 | C22: Laurent | D22: Roh | E22: 2625 | F22: 1973 | G22: 1994 | H22: 588520 | I22: 120400 | J22: 720 | K22: Chenet des Fontaines | L22: Canal Sion-Riddes | M22: 588450 | N22: 120350 | O22: 705 | P22: 900 | Q22: 150 | R22: 20 | S22: 90 | T22: 10 | U22: 85 | V22: 0.8 | W22: 85 | Z22: 0.3 | AA22: 20 | AC22: 1734 | AD22: 324 | AF22: H | AG22: 24 | AH22: 24 | AI22: 12 | AJ22: 0 | AK22: 0 | AL22: 12 | AM22: 24 | AN22: 24 | AO22: 24 | AP22: 0 | AQ22: 0 | AR22: 12 | AS22: 24 | AT22: 24 | AU22: 0 | AV22: 24 | AW22: 52 | AX22: 1 | AY22: 1 | AZ22: RB | BA22: 1 | BB22: 0 | BD22: 2 | BE22: 2 | BF22: 2 | BG22: 2 | BH22: 2 | BI22: 1 | BJ22: 1 | BK22: 1 | BL22: 2 | BM22: 1 | BN22: 1 | BO22: 1 | BP22: 1 | BQ22: 1 | BR22: 2 | BS22: 1 | BT22: 1 | BU22: 1 | BV22: 1 | BW22: 1 | BX22: 1 | BY22: 1 | BZ22: 1 | CA22: 1 | CB22: 2 | CC22: 1 | CD22: 1 | CE22: 1 | CF22: 19 | CG22: Conthey-Erde | CI22: 3 | CJ22: 5 | CL22: 1 | CM22: 1
A23: Eisten | B23: 6282/00 | C23: Django | D23: Wyssen | E23: 400 | F23: 2003 | G23: 0 | H23: 635080 | I23: 116765 | J23: 1040 | K23: Saaser Vispa | L23: Vispa | M23: 635090 | N23: 116795 | O23: 1040 | P23: 40 | R23: 20 | S23: 90 | Z23: 0.3 | AA23: 20 | AC23: 122 | AD23: 211 | AF23: J | AG23: 0 | AH23: 12 | AI23: 0 | AJ23: 0 | AK23: 0 | AL23: 0 | AM23: 0 | AN23: 12 | AO23: 0 | AP23: 0 | AQ23: 0 | AR23: 12 | AS23: 0 | AT23: 12 | AU23: 0 | AV23: 0 | AW23: 0 | AX23: 1 | AY23: 2 | AZ23: MM | BA23: 1 | BB23: 0 | BD23: 1 | BE23: 2 | BF23: 1 | BG23: 1 | BH23: 2 | BI23: 1 | BJ23: 2 | BK23: 1 | BM23: 1 | BN23: 1 | BO23: 1 | BP23: 1 | BQ23: 2 | BR23: 1 | BS23: 1 | BT23: 1 | BU23: 1 | BV23: 1 | BW23: 1 | BX23: 1 | BY23: 1 | BZ23: 1 | CA23: 1 | CB23: 1 | CC23: 1 | CD23: 1 | CE23: 1 | CF23: 20 | CG23: Eisten | CH23: 1 | CI23: 5 | CJ23: 5 | CL23: 1 | CM23: 1
A24: Embd | B24: 6283/00 | C24: Schaller | D24: Rolf | E24: 600 | F24: 1998 | G24: 0 | H24: 631080 | I24: 118480 | J24: 858 | K24: Matter Vispa | L24: Vispa | M24: 631110 | N24: 118460 | O24: 850 | P24: 192.5 | R24: 20 | S24: 90 | V24: 0.8 | W24: 80 | Z24: 0.3 | AA24: 20 | AC24: 310 | AD24: 54 | AF24: J | AG24: 0 | AH24: 12 | AI24: 0 | AJ24: 0 | AK24: 0 | AL24: 0 | AM24: 0 | AN24: 12 | AO24: 0 | AP24: 0 | AQ24: 0 | AR24: 12 | AS24: 0 | AT24: 12 | AU24: 0 | AV24: 0 | AW24: 0 | AX24: 1 | AY24: 2 | BA24: 1 | BB24: 0 | BD24: 1 | BE24: 2 | BF24: 2 | BG24: 2 | BH24: 2 | BI24: 1 | BJ24: 2 | BK24: 1 | BL24: 2 | BM24: 1 | BN24: 1 | BO24: 1 | BP24: 1 | BQ24: 1 | BR24: 2 | BS24: 1 | BT24: 1 | BU24: 1 | BV24: 1 | BW24: 1 | BX24: 1 | BY24: 1 | BZ24: 1 | CA24: 1 | CB24: 1 | CC24: 1 | CD24: 1 | CE24: 1 | CF24: 21 | CG24: St-Niklaus | CH24: 1 | CI24: 5 | CJ24: 5 | CL24: 1 | CM24: 1
A25: Evionnaz | B25: 6213/00 | C25: Jean-Claude | D25: Gex | E25: 9000 | F25: 1989 | G25: 2010 | H25: 568090 | I25: 113830 | J25: 450 | K25: Rhône | L25: Rhône | M25: 568200 | N25: 113850 | O25: 448 | P25: 3600 | Q25: 1212 | R25: 20 | S25: 90 | T25: 10 | U25: 85 | V25: 0.8 | W25: 85 | X25: 2 | Y25: 90 | Z25: 0.3 | AA25: 20 | AC25: 5950 | AD25: 2195 | AF25: H | AG25: 52 | AH25: 52 | AI25: 12 | AJ25: 0 | AK25: 0 | AL25: 12 | AM25: 52 | AN25: 52 | AO25: 24 | AP25: 0 | AQ25: 0 | AR25: 12 | AS25: 52 | AT25: 52 | AU25: 0 | AV25: 52 | AW25: 52 | AX25: 1 | AY25: 1 | AZ25: PM | BA25: 1 | BB25: 0 | BD25: 2 | BE25: 1 | BF25: 2 | BG25: 2 | BH25: 2 | BI25: 1 | BJ25: 1 | BK25: 4 | BL25: 1 | BM25: 1 | BN25: 1 | BO25: 1 | BP25: 1 | BQ25: 1 | BR25: 2 | BS25: 1 | BT25: 1 | BU25: 1 | BV25: 1 | BW25: 1 | BX25: 1 | BY25: 1 | BZ25: 1 | CA25: 1 | CB25: 3 | CC25: 2 | CD25: 1 | CE25: 1 | CF25: 22 | CG25: Evionnaz | CH25: 2 | CI25: 1 | CJ25: 2 | CK25: 4 | CL25: 1 | CM25: 1
A26: Evionnaz-BASF | B26: 6213/11 | C26: Vincent | D26: Frachebourg | E26: 84600 | F26: 1988 | G26: 1993 | H26: 568080 | I26: 113800 | J26: 450 | K26: Rhône | L26: Rhône | M26: 568217 | N26: 113959 | O26: 448 | P26: 300 | Q26: 1600 | R26: 200 | S26: 95 | T26: 200 | U26: 90 | V26: 12 | W26: 0 | X26: 250 | Y26: 0 | Z26: 0.3 | AA26: 300 | AC26: 0 | AD26: 0 | AF26: H | AG26: 24 | AH26: 24 | AI26: 12 | AJ26: 0 | AK26: 0 | AL26: 12 | AM26: 104 | AN26: 104 | AO26: 24 | AP26: 0 | AQ26: 0 | AR26: 12 | AS26: 104 | AT26: 104 | AU26: 0 | AV26: 52 | AW26: 52 | AX26: 1 | AY26: 1 | AZ26: PM | BA26: 2 | BB26: 25000 | BD26: 2 | BE26: 2 | BF26: 2 | BG26: 2 | BH26: 2 | BI26: 1 | BJ26: 1 | BK26: 1 | BL26: 2 | BM26: 1 | BN26: 1 | BO26: 1 | BP26: 1 | BQ26: 1 | BR26: 1 | BS26: 1 | BT26: 1 | BU26: 1 | BV26: 2 | BW26: 1 | BX26: 1 | BY26: 1 | BZ26: 1 | CA26: 1 | CB26: 1 | CC26: 1 | CD26: 1 | CE26: 1 | CF26: 23 | CG26: Evionnaz-BASF | CI26: 5 | CJ26: 5 | CL26: 1 | CM26: 1
A27: Evolène | B27: 6083/00 | C27: Didier | D27: Escobar | E27: 6000 | F27: 2010 | G27: 0 | H27: 604076 | I27: 106880 | J27: 1340 | K27: Borgne | L27: Rhône | M27: 604070 | N27: 106855 | O27: 1305 | P27: 1800 | R27: 20 | S27: 90 | T27: 10 | U27: 85 | V27: 0.8 | W27: 80 | X27: 2 | Y27: 90 | Z27: 0.3 | AA27: 20 | AC27: 1598 | AD27: 0 | AF27: H | AG27: 52 | AH27: 52 | AI27: 12 | AJ27: 0 | AK27: 0 | AL27: 12 | AM27: 52 | AN27: 52 | AO27: 24 | AP27: 0 | AQ27: 0 | AR27: 12 | AS27: 52 | AT27: 52 | AU27: 0 | AV27: 52 | AW27: 52 | AX27: 1 | AY27: 1 | AZ27: PM | BA27: 1 | BB27: 0 | BD27: 1 | BE27: 1 | BF27: 2 | BG27: 2 | BH27: 2 | BI27: 1 | BJ27: 1 | BK27: 2 | BM27: 1 | BN27: 1 | BO27: 1 | BP27: 1 | BQ27: 1 | BR27: 2 | BS27: 1 | BT27: 1 | BU27: 1 | BV27: 1 | BW27: 1 | BX27: 1 | BY27: 1 | BZ27: 1 | CA27: 1 | CB27: 1 | CC27: 1 | CD27: 1 | CE27: 1 | CF27: 24 | CG27: Evolène | CH27: 2 | CI27: 1 | CJ27: 2 | CK27: 4 | CL27: 1 | CM27: 1
A28: Ferden | B28: 6195/00 | C28: Leo | D28: Rittler | E28: 500 | F28: 2004 | G28: 0 | H28: 624260 | I28: 137200 | J28: 1350 | K28: Lonza | L28: Rhône | M28: 624360 | N28: 137210 | O28: 1310 | P28: 150 | R28: 20 | S28: 90 | V28: 0.8 | W28: 80 | Z28: 0.3 | AA28: 20 | AC28: 244 | AD28: 193 | AF28: J | AG28: 0 | AH28: 12 | AI28: 0 | AJ28: 0 | AK28: 0 | AL28: 0 | AM28: 0 | AN28: 12 | AO28: 0 | AP28: 0 | AQ28: 0 | AR28: 12 | AS28: 0 | AT28: 12 | AU28: 0 | AV28: 0 | AW28: 0 | AX28: 1 | AY28: 2 | AZ28: MM | BA28: 1 | BB28: 0 | BD28: 2 | BE28: 2 | BF28: 1 | BG28: 1 | BH28: 2 | BI28: 1 | BJ28: 2 | BK28: 1 | BL28: 2 | BM28: 1 | BN28: 1 | BO28: 1 | BP28: 1 | BQ28: 2 | BR28: 1 | BS28: 1 | BT28: 1 | BU28: 1 | BV28: 1 | BW28: 1 | BX28: 1 | BY28: 1 | BZ28: 1 | CA28: 1 | CB28: 1 | CC28: 1 | CD28: 1 | CE28: 1 | CF28: 25 | CG28: Wiler | CI28: 4 | CJ28: 5 | CL28: 1 | CM28: 1
A29: Goppenstein | B29: 6301/00 | C29: Liegenschaften Bewirtschaftung | D29: BLS Netz AG | E29: 20 | F29: 2014 | G29: 0 | H29: 624320 | I29: 135241 | J29: 1216 | K29: Lonza | L29: Rhône | M29: 0 | N29: 0 | O29: 0 | P29: 0 | AC29: 0 | AD29: 0 | AF29: 0 | AG29: 0 | AH29: 0 | AI29: 0 | AJ29: 0 | AK29: 0 | AL29: 0 | AM29: 0 | AN29: 0 | AO29: 0 | AP29: 0 | AQ29: 0 | AR29: 0 | AS29: 0 | AT29: 0 | AU29: 0 | AV29: 0 | AW29: 0 | AX29: 0 | AY29: 1 | BA29: 1 | BB29: 0 | BD29: 1 | BE29: 1 | BF29: 1 | BG29: 1 | BH29: 1 | BI29: 1 | BJ29: 1 | BK29: 4 | BM29: 1 | BN29: 1 | BO29: 1 | BP29: 2 | BQ29: 1 | BR29: 1 | BS29: 1 | BT29: 1 | BU29: 1 | BV29: 1 | BW29: 1 | BX29: 1 | BY29: 1 | BZ29: 1 | CA29: 1 | CI29: 5 | CJ29: 5 | CL29: 1 | CM29: 1
A30: Graechen | B30: 6285/00 | C30: Benito | D30: Pollinger | E30: 15750 | F30: 1991 | G30: 0 | H30: 630180 | I30: 116120 | J30: 1400 | K30: Schlifiwasser | L30: Matter Vispa | M30: 629816 | N30: 116803 | O30: 1020 | P30: 3840 | R30: 15 | S30: 90 | T30: 10 | U30: 85 | V30: 0.8 | W30: 90 | Z30: 0.3 | AA30: 15 | AC30: 1221 | AD30: 4 | AF30: H | AG30: 52 | AH30: 52 | AI30: 12 | AJ30: 0 | AK30: 0 | AL30: 12 | AM30: 52 | AN30: 52 | AO30: 24 | AP30: 0 | AQ30: 0 | AR30: 12 | AS30: 104 | AT30: 104 | AU30: 0 | AV30: 52 | AW30: 52 | AX30: 1 | AY30: 2 | BA30: 1 | BB30: 0 | BD30: 1 | BE30: 1 | BF30: 2 | BG30: 2 | BH30: 2 | BI30: 1 | BJ30: 1 | BK30: 1 | BL30: 6 | BM30: 1 | BN30: 2 | BO30: 1 | BP30: 1 | BQ30: 1 | BR30: 1 | BS30: 2 | BT30: 1 | BU30: 1 | BV30: 1 | BW30: 1 | BX30: 2 | BY30: 1 | BZ30: 1 | CA30: 1 | CB30: 1 | CC30: 1 | CD30: 1 | CE30: 1 | CF30: 26 | CG30: Graechen | CH30: 1 | CI30: 1 | CJ30: 2 | CK30: 6 | CL30: 1 | CM30: 1
A31: Guttet | B31: 6108/00 | C31: Beat | D31: Kuonen | E31: 1000 | F31: 1973 | G31: 2001 | H31: 617390 | I31: 129720 | J31: 1060 | K31: Feschilju | L31: Rhône | M31: 618225 | N31: 129225 | O31: 950 | P31: 320 | Q31: 271 | R31: 20 | S31: 90 | V31: 0.8 | W31: 80 | Z31: 0.3 | AA31: 20 | AC31: 428 | AD31: 650 | AF31: J | AG31: 0 | AH31: 12 | AI31: 0 | AJ31: 0 | AK31: 0 | AL31: 0 | AM31: 0 | AN31: 12 | AO31: 0 | AP31: 0 | AQ31: 0 | AR31: 12 | AS31: 0 | AT31: 12 | AU31: 0 | AV31: 0 | AW31: 0 | AX31: 1 | AY31: 2 | BA31: 1 | BB31: 0 | BD31: 1 | BE31: 2 | BF31: 1 | BG31: 2 | BH31: 2 | BI31: 1 | BJ31: 1 | BK31: 1 | BL31: 2 | BM31: 1 | BN31: 1 | BO31: 1 | BP31: 1 | BQ31: 1 | BR31: 2 | BS31: 1 | BT31: 1 | BU31: 1 | BV31: 1 | BW31: 1 | BX31: 1 | BY31: 1 | BZ31: 1 | CA31: 1 | CB31: 1 | CC31: 1 | CD31: 1 | CE31: 1 | CF31: 27 | CG31: Guttet | CH31: 1 | CI31: 5 | CJ31: 5 | CK31: 1 | CL31: 1 | CM31: 1
A32: Hérémence | B32: 6084/00 | C32: Nicolas | D32: Dayer | E32: 3334 | F32: 1996 | G32: 0 | H32: 598375 | I32: 114400 | J32: 720 | K32: Borgne | L32: Rhône | M32: 598400 | N32: 114430 | O32: 710 | P32: 2000 | R32: 20 | S32: 90 | T32: 10 | U32: 85 | V32: 0.8 | W32: 85 | X32: 2.5 | Y32: 90 | Z32: 0.3 | AA32: 20 | AC32: 1000 | AD32: 0 | AF32: H | AG32: 24 | AH32: 24 | AI32: 12 | AJ32: 0 | AK32: 0 | AL32: 12 | AM32: 24 | AN32: 24 | AO32: 24 | AP32: 0 | AQ32: 0 | AR32: 12 | AS32: 24 | AT32: 24 | AU32: 0 | AV32: 24 | AW32: 52 | AX32: 1 | AY32: 1 | AZ32: RB | BA32: 1 | BB32: 0 | BD32: 1 | BE32: 2 | BF32: 2 | BG32: 2 | BH32: 2 | BI32: 1 | BJ32: 1 | BK32: 1 | BL32: 2 | BM32: 1 | BN32: 1 | BO32: 1 | BP32: 1 | BQ32: 1 | BR32: 2 | BS32: 1 | BT32: 1 | BU32: 1 | BV32: 1 | BW32: 1 | BX32: 1 | BY32: 1 | BZ32: 1 | CA32: 1 | CB32: 1 | CC32: 2 | CD32: 1 | CE32: 1 | CF32: 28 | CG32: Hérémence | CH32: 1 | CI32: 5 | CJ32: 5 | CK32: 1 | CL32: 1 | CM32: 1
A33: Hérémence-Gde Dixence | B33: 6084/01 | C33: Aldo | D33: Dayer | E33: 250 | F33: 1996 | G33: 0 | H33: 597300 | I33: 103700 | J33: 2120 | K33: Dixence | L33: Rhône | M33: 597310 | N33: 103744 | O33: 2080 | P33: 50 | R33: 20 | S33: 90 | V33: 0.8 | W33: 80 | Z33: 0.3 | AA33: 20 | AC33: 0 | AD33: 0 | AF33: J | AG33: 0 | AH33: 12 | AI33: 0 | AJ33: 0 | AK33: 0 | AL33: 0 | AM33: 0 | AN33: 12 | AO33: 0 | AP33: 0 | AQ33: 0 | AR33: 12 | AS33: 0 | AT33: 12 | AU33: 0 | AV33: 0 | AW33: 0 | AX33: 1 | AY33: 1 | AZ33: RB | BA33: 1 | BB33: 0 | BD33: 1 | BE33: 1 | BF33: 1 | BG33: 1 | BH33: 1 | BI33: 1 | BJ33: 1 | BK33: 4 | BM33: 1 | BN33: 1 | BO33: 1 | BP33: 1 | BQ33: 1 | BR33: 1 | BS33: 1 | BT33: 1 | BU33: 1 | BV33: 1 | BW33: 1 | BX33: 1 | BY33: 1 | BZ33: 1 | CA33: 1 | CB33: 1 | CC33: 1 | CD33: 1 | CE33: 1 | CF33: 29 | CG33: SPE / DUS | CI33: 5 | CJ33: 5 | CL33: 1 | CM33: 1
A34: Hérémence-Mâche | B34: 6084/02 | C34: Nicolas | D34: Dayer | E34: 350 | F34: 2012 | G34: 0 | H34: 596530 | I34: 111450 | J34: 1225 | K34: Dixence | L34: Rhône | M34: 596593 | N34: 111428 | O34: 1220 | P34: 90 | Q34: 200 | R34: 15 | S34: 90 | T34: 10 | U34: 85 | V34: 0.8 | W34: 80 | X34: 2 | Y34: 90 | Z34: 0.3 | AA34: 15 | AC34: 0 | AD34: 0 | AF34: J | AG34: 0 | AH34: 12 | AI34: 0 | AJ34: 0 | AK34: 0 | AL34: 0 | AM34: 0 | AN34: 12 | AO34: 0 | AP34: 0 | AQ34: 0 | AR34: 12 | AS34: 0 | AT34: 12 | AU34: 0 | AV34: 0 | AW34: 0 | AX34: 1 | AY34: 1 | AZ34: RB | BA34: 1 | BB34: 0 | BD34: 1 | BE34: 1 | BF34: 1 | BG34: 1 | BH34: 2 | BI34: 1 | BJ34: 1 | BK34: 4 | BL34: 1 | BM34: 1 | BN34: 1 | BO34: 1 | BP34: 1 | BQ34: 1 | BR34: 1 | BS34: 1 | BT34: 1 | BU34: 1 | BV34: 1 | BW34: 1 | BX34: 1 | BY34: 1 | BZ34: 1 | CA34: 1 | CB34: 1 | CC34: 1 | CD34: 1 | CE34: 1 | CF34: 29 | CG34: Hérémence | CH34: 2 | CI34: 2 | CJ34: 5 | CL34: 1 | CM34: 1
A35: Hotel Alpenrösli | B35: 6073/00 | C35: Siegfried | D35: Steiner | E35: 80 | F35: 0 | G35: 0 | H35: 0 | I35: 0 | J35: 0 | M35: 0 | N35: 0 | O35: 0 | P35: 0 | AC35: 0 | AD35: 0 | AF35: 0 | AG35: 0 | AH35: 0 | AI35: 0 | AJ35: 0 | AK35: 0 | AL35: 0 | AM35: 0 | AN35: 0 | AO35: 0 | AP35: 0 | AQ35: 0 | AR35: 0 | AS35: 0 | AT35: 0 | AU35: 0 | AV35: 0 | AW35: 0 | AX35: 0 | AY35: 2 | BA35: 1 | BB35: 0 | BC35: Tropfkérper KSW | BD35: 1 | BE35: 1 | BF35: 1 | BG35: 1 | BH35: 1 | BI35: 1 | BJ35: 1 | BK35: 4 | BM35: 1 | BN35: 1 | BO35: 1 | BP35: 1 | BQ35: 1 | BR35: 1 | BS35: 1 | BT35: 1 | BU35: 1 | BV35: 1 | BW35: 1 | BX35: 1 | BY35: 1 | BZ35: 1 | CA35: 1 | CI35: 5 | CJ35: 5 | CL35: 1 | CM35: 1
A36: Icogne | B36: 6239/00 | C36: Daniel | D36: Kamerzin | E36: 1067 | F36: 1980 | G36: 0 | H36: 599375 | I36: 126025 | J36: 835 | K36: Torrent de Croge | L36: Liène | M36: 599360 | N36: 126060 | O36: 825 | P36: 350 | Q36: 184 | R36: 20 | S36: 90 | V36: 0.8 | W36: 80 | Z36: 0.3 | AA36: 20 | AC36: 542 | AD36: 1239 | AF36: J | AG36: 0 | AH36: 12 | AI36: 0 | AJ36: 0 | AK36: 0 | AL36: 0 | AM36: 0 | AN36: 12 | AO36: 0 | AP36: 0 | AQ36: 0 | AR36: 12 | AS36: 0 | AT36: 12 | AU36: 0 | AV36: 0 | AW36: 0 | AX36: 1 | AY36: 1 | AZ36: RB | BA36: 1 | BB36: 0 | BD36: 1 | BE36: 1 | BF36: 2 | BG36: 2 | BH36: 2 | BI36: 1 | BJ36: 1 | BK36: 4 | BL36: 2 | BM36: 1 | BN36: 1 | BO36: 1 | BP36: 1 | BQ36: 1 | BR36: 2 | BS36: 1 | BT36: 1 | BU36: 1 | BV36: 1 | BW36: 1 | BX36: 1 | BY36: 1 | BZ36: 1 | CA36: 1 | CB36: 1 | CC36: 1 | CD36: 1 | CE36: 1 | CF36: 30 | CG36: Sierre-Noes | CH36: 7 | CI36: 3 | CJ36: 5 | CK36: 4 | CL36: 1 | CM36: 1
A37: Inden | B37: 6109/00 | C37: Armin | D37: Bayard | E37: 563 | F37: 1996 | G37: 0 | H37: 614190 | I37: 131520 | J37: 915 | K37: Dala | L37: Rhône | M37: 614300 | N37: 131465 | O37: 850 | P37: 158 | R37: 20 | S37: 90 | V37: 0.8 | W37: 80 | Z37: 0.3 | AA37: 20 | AC37: 120 | AD37: 154 | AF37: J | AG37: 0 | AH37: 12 | AI37: 0 | AJ37: 0 | AK37: 0 | AL37: 0 | AM37: 0 | AN37: 12 | AO37: 0 | AP37: 0 | AQ37: 0 | AR37: 12 | AS37: 0 | AT37: 12 | AU37: 0 | AV37: 0 | AW37: 0 | AX37: 1 | AY37: 2 | AZ37: MM | BA37: 1 | BB37: 0 | BD37: 1 | BE37: 2 | BF37: 2 | BG37: 2 | BH37: 2 | BI37: 1 | BJ37: 1 | BK37: 1 | BM37: 1 | BN37: 1 | BO37: 1 | BP37: 2 | BQ37: 1 | BR37: 1 | BS37: 1 | BT37: 2 | BU37: 1 | BV37: 1 | BW37: 1 | BX37: 1 | BY37: 1 | BZ37: 1 | CA37: 1 | CB37: 1 | CC37: 1 | CD37: 1 | CE37: 1 | CF37: 31 | CG37: Leukerbad | CH37: 1 | CI37: 5 | CJ37: 5 | CL37: 1 | CM37: 1
A38: Isérables | B38: 6134/00 | C38: César | D38: Vuillamoz | E38: 2500 | F38: 1976 | G38: 0 | H38: 584865 | I38: 112085 | J38: 955 | K38: Fare | L38: Rhône | M38: 584830 | N38: 112090 | O38: 950 | P38: 800 | R38: 20 | S38: 90 | T38: 10 | U38: 85 | V38: 0.8 | W38: 85 | Z38: 0.3 | AA38: 20 | AC38: 835 | AD38: 493 | AF38: H | AG38: 24 | AH38: 24 | AI38: 12 | AJ38: 0 | AK38: 0 | AL38: 12 | AM38: 24 | AN38: 24 | AO38: 24 | AP38: 0 | AQ38: 0 | AR38: 12 | AS38: 24 | AT38: 24 | AU38: 0 | AV38: 24 | AW38: 52 | AX38: 1 | AY38: 1 | AZ38: RB | BA38: 1 | BB38: 0 | BD38: 1 | BE38: 1 | BF38: 2 | BG38: 2 | BH38: 2 | BI38: 1 | BJ38: 1 | BK38: 1 | BM38: 1 | BN38: 2 | BO38: 1 | BP38: 1 | BQ38: 1 | BR38: 2 | BS38: 1 | BT38: 1 | BU38: 1 | BV38: 1 | BW38: 1 | BX38: 1 | BY38: 1 | BZ38: 1 | CA38: 1 | CB38: 1 | CC38: 1 | CD38: 1 | CE38: 1 | CF38: 32 | CG38: Riddes | CH38: 1 | CI38: 5 | CJ38: 5 | CK38: 4 | CL38: 1 | CM38: 1
A39: Kippel | B39: 6197/00 | C39: Leo | D39: Ritler | E39: 1000 | F39: 2003 | G39: 0 | H39: 625500 | I39: 138460 | J39: 1340 | K39: Lonza | L39: Rhône | M39: 625520 | N39: 138389 | O39: 1330 | P39: 195 | R39: 20 | S39: 90 | V39: 0.8 | W39: 80 | Z39: 0.3 | AA39: 20 | AC39: 330 | AD39: 210 | AF39: J | AG39: 0 | AH39: 12 | AI39: 0 | AJ39: 0 | AK39: 0 | AL39: 0 | AM39: 0 | AN39: 12 | AO39: 0 | AP39: 0 | AQ39: 0 | AR39: 12 | AS39: 0 | AT39: 12 | AU39: 0 | AV39: 0 | AW39: 0 | AX39: 1 | AY39: 2 | AZ39: MM | BA39: 1 | BB39: 0 | BD39: 1 | BE39: 2 | BF39: 1 | BG39: 1 | BH39: 2 | BI39: 1 | BJ39: 2 | BK39: 1 | BL39: 2 | BM39: 1 | BN39: 1 | BO39: 1 | BP39: 1 | BQ39: 2 | BR39: 1 | BS39: 1 | BT39: 1 | BU39: 1 | BV39: 1 | BW39: 1 | BX39: 1 | BY39: 1 | BZ39: 1 | CA39: 1 | CB39: 1 | CC39: 1 | CD39: 1 | CE39: 1 | CF39: 33 | CG39: Wiler | CI39: 4 | CJ39: 5 | CL39: 1 | CM39: 1
A40: Lavey-St-Maurice | B40: 5406/00 | C40: Manuel | D40: Baqueiro | E40: 10000 | F40: 1976 | G40: 0 | H40: 0 | I40: 0 | J40: 0 | L40: Rhône | M40: 0 | N40: 0 | O40: 0 | P40: 0 | AC40: 5025 | AD40: 459 | AF40: H | AG40: 52 | AH40: 52 | AI40: 12 | AJ40: 0 | AK40: 0 | AL40: 12 | AM40: 52 | AN40: 52 | AO40: 24 | AP40: 0 | AQ40: 0 | AR40: 12 | AS40: 104 | AT40: 104 | AU40: 0 | AV40: 52 | AW40: 52 | AX40: 1 | AY40: 1 | AZ40: PM | BA40: 1 | BB40: 0 | BD40: 1 | BE40: 1 | BF40: 1 | BG40: 1 | BH40: 1 | BI40: 1 | BJ40: 1 | BK40: 4 | BM40: 1 | BN40: 1 | BO40: 1 | BP40: 1 | BQ40: 1 | BR40: 1 | BS40: 1 | BT40: 1 | BU40: 1 | BV40: 1 | BW40: 1 | BX40: 1 | BY40: 1 | BZ40: 1 | CA40: 1 | CI40: 5 | CJ40: 5 | CL40: 1 | CM40: 1
A41: Leukerbad | B41: 6111/00 | C41: Renald | D41: Allet | E41: 13750 | F41: 1979 | G41: 0 | H41: 614080 | I41: 135140 | J41: 1290 | K41: Dala | L41: Rhône | M41: 614090 | N41: 135045 | O41: 1280 | P41: 5600 | Q41: 700 | R41: 15 | S41: 90 | T41: 10 | U41: 85 | V41: 0.8 | W41: 90 | Z41: 0.3 | AA41: 15 | AC41: 1679 | AD41: 8748 | AF41: H | AG41: 52 | AH41: 52 | AI41: 12 | AJ41: 0 | AK41: 0 | AL41: 12 | AM41: 52 | AN41: 52 | AO41: 24 | AP41: 0 | AQ41: 0 | AR41: 12 | AS41: 104 | AT41: 104 | AU41: 0 | AV41: 52 | AW41: 52 | AX41: 1 | AY41: 2 | BA41: 1 | BB41: 0 | BC41: Fehler BSB5 Zulauf ARA durch NH4 und Ptot zu korrigieren | BD41: 1 | BE41: 2 | BF41: 2 | BG41: 2 | BH41: 2 | BI41: 1 | BJ41: 1 | BK41: 1 | BL41: 1 | BM41: 1 | BN41: 1 | BO41: 1 | BP41: 1 | BQ41: 1 | BR41: 2 | BS41: 1 | BT41: 1 | BU41: 1 | BV41: 1 | BW41: 1 | BX41: 1 | BY41: 1 | BZ41: 1 | CA41: 1 | CB41: 1 | CC41: 1 | CD41: 1 | CE41: 1 | CF41: 34 | CG41: Leukerbad | CH41: 2 | CI41: 1 | CJ41: 1 | CK41: 5 | CL41: 1 | CM41: 1
A42: Leuk-Radet | B42: 6110/00 | C42: Reinhard | D42: Bregy | E42: 30500 | F42: 1995 | G42: 0 | H42: 619060 | I42: 128720 | J42: 620 | K42: Rhône | L42: Rhône | M42: 619200 | N42: 128550 | O42: 618 | P42: 9766 | Q42: 2710 | R42: 15 | S42: 90 | T42: 10 | U42: 85 | V42: 0.8 | W42: 90 | Z42: 0.3 | AA42: 15 | AC42: 13169 | AD42: 10923 | AF42: H | AG42: 52 | AH42: 52 | AI42: 12 | AJ42: 0 | AK42: 0 | AL42: 12 | AM42: 52 | AN42: 52 | AO42: 24 | AP42: 0 | AQ42: 0 | AR42: 12 | AS42: 104 | AT42: 104 | AU42: 0 | AV42: 52 | AW42: 52 | AX42: 1 | AY42: 2 | AZ42: DO | BA42: 1 | BB42: 0 | BD42: 2 | BE42: 2 | BF42: 2 | BG42: 2 | BH42: 2 | BI42: 1 | BJ42: 1 | BK42: 1 | BL42: 2 | BM42: 1 | BN42: 1 | BO42: 1 | BP42: 1 | BQ42: 1 | BR42: 2 | BS42: 1 | BT42: 1 | BU42: 1 | BV42: 1 | BW42: 1 | BX42: 1 | BY42: 1 | BZ42: 1 | CA42: 1 | CB42: 1 | CC42: 1 | CD42: 1 | CE42: 1 | CF42: 35 | CG42: Leuk-Radet | CH42: 1 | CI42: 1 | CJ42: 2 | CK42: 5 | CL42: 1 | CM42: 1
A43: Leytron | B43: 6135/00 | C43: Jean-Daniel | D43: Dorsaz | E43: 7500 | F43: 1978 | G43: 1996 | H43: 581800 | I43: 114300 | J43: 475 | K43: Rhône | L43: Rhône | M43: 582000 | N43: 114000 | O43: 473 | P43: 2400 | Q43: 1000 | R43: 20 | S43: 90 | T43: 10 | U43: 85 | V43: 0.8 | W43: 85 | Z43: 0.3 | AA43: 20 | AC43: 2414 | AD43: 0 | AF43: H | AG43: 52 | AH43: 52 | AI43: 12 | AJ43: 0 | AK43: 0 | AL43: 12 | AM43: 52 | AN43: 52 | AO43: 24 | AP43: 0 | AQ43: 0 | AR43: 12 | AS43: 52 | AT43: 52 | AU43: 0 | AV43: 52 | AW43: 52 | AX43: 1 | AY43: 1 | AZ43: PM | BA43: 1 | BB43: 0 | BD43: 2 | BE43: 2 | BF43: 2 | BG43: 2 | BH43: 2 | BI43: 1 | BJ43: 1 | BK43: 2 | BL43: 2 | BM43: 2 | BN43: 1 | BO43: 1 | BP43: 1 | BQ43: 1 | BR43: 2 | BS43: 1 | BT43: 1 | BU43: 1 | BV43: 1 | BW43: 1 | BX43: 1 | BY43: 1 | BZ43: 1 | CA43: 1 | CB43: 2 | CC43: 1 | CD43: 1 | CE43: 1 | CF43: 36 | CG43: Leytron | CH43: 7 | CI43: 3 | CJ43: 5 | CK43: 4 | CL43: 1 | CM43: 1
A44: Martigny | B44: 6136/00 | C44: Jean-Pierre | D44: Chappot | E44: 64700 | F44: 1975 | G44: 2014 | H44: 572550 | I44: 107110 | J44: 460 | K44: Canal du Syndicat | L44: Rhône | M44: 572303 | N44: 107774 | O44: 455 | P44: 20253 | Q44: 1200 | R44: 15 | S44: 90 | T44: 10 | U44: 85 | V44: 0.3 | W44: 90 | X44: 2 | Y44: 90 | Z44: 0.3 | AA44: 10 | AC44: 36017 | AD44: 11229 | AF44: H | AG44: 52 | AH44: 52 | AI44: 12 | AJ44: 0 | AK44: 0 | AL44: 12 | AM44: 104 | AN44: 104 | AO44: 24 | AP44: 0 | AQ44: 0 | AR44: 12 | AS44: 104 | AT44: 104 | AU44: 0 | AV44: 52 | AW44: 52 | AX44: 1 | AY44: 1 | AZ44: PM | BA44: 1 | BB44: 0 | BD44: 2 | BE44: 2 | BF44: 2 | BG44: 2 | BH44: 2 | BI44: 1 | BJ44: 1 | BK44: 1 | BL44: 3 | BM44: 1 | BN44: 1 | BO44: 2 | BP44: 1 | BQ44: 1 | BR44: 2 | BS44: 1 | BT44: 1 | BU44: 1 | BV44: 1 | BW44: 1 | BX44: 1 | BY44: 1 | BZ44: 1 | CA44: 1 | CB44: 1 | CC44: 1 | CD44: 1 | CE44: 1 | CF44: 37 | CG44: Martigny | CH44: 2 | CI44: 1 | CJ44: 3 | CK44: 4 | CL44: 1 | CM44: 1
A45: Mase | B45: 6085/00 | C45: Marco | D45: Cervetti | E45: 867 | F45: 1980 | G45: 0 | H45: 599340 | I45: 115625 | J45: 1270 | K45: Décharge du bisse de Tsa Crêta (torrent) | L45: Manna | M45: 599490 | N45: 115560 | O45: 1210 | P45: 280 | R45: 20 | S45: 90 | V45: 0.8 | W45: 80 | Z45: 0.3 | AA45: 20 | AC45: 230 | AD45: 124 | AF45: J | AG45: 0 | AH45: 12 | AI45: 0 | AJ45: 0 | AK45: 0 | AL45: 0 | AM45: 0 | AN45: 12 | AO45: 0 | AP45: 0 | AQ45: 0 | AR45: 12 | AS45: 0 | AT45: 12 | AU45: 0 | AV45: 0 | AW45: 0 | AX45: 1 | AY45: 1 | AZ45: RB | BA45: 1 | BB45: 0 | BD45: 1 | BE45: 1 | BF45: 2 | BG45: 2 | BH45: 2 | BI45: 1 | BJ45: 1 | BK45: 4 | BM45: 1 | BN45: 2 | BO45: 1 | BP45: 1 | BQ45: 1 | BR45: 2 | BS45: 1 | BT45: 1 | BU45: 1 | BV45: 1 | BW45: 1 | BX45: 1 | BY45: 1 | BZ45: 1 | CA45: 1 | CB45: 1 | CC45: 1 | CD45: 1 | CE45: 1 | CF45: 38 | CG45: Sierre-Granges | CH45: 1 | CI45: 5 | CJ45: 5 | CL45: 1 | CM45: 1
A46: Massongex-Daviaz | B46: 6215/00 | C46: Laurent | D46: Gallay | E46: 188 | F46: 1977 | G46: 0 | H46: 564610 | I46: 119520 | J46: 715 | K46: Rogneuse | L46: Rhône | M46: 564650 | N46: 119550 | O46: 710 | P46: 53 | Q46: 20 | AC46: 142 | AD46: 8 | AF46: 0 | AG46: 0 | AH46: 0 | AI46: 0 | AJ46: 0 | AK46: 0 | AL46: 0 | AM46: 0 | AN46: 0 | AO46: 0 | AP46: 0 | AQ46: 0 | AR46: 0 | AS46: 0 | AT46: 0 | AU46: 0 | AV46: 0 | AW46: 0 | AX46: 0 | AY46: 1 | AZ46: RB | BA46: 1 | BB46: 0 | BD46: 1 | BE46: 1 | BF46: 1 | BG46: 1 | BH46: 1 | BI46: 1 | BJ46: 1 | BK46: 1 | BL46: 2 | BM46: 1 | BN46: 1 | BO46: 1 | BP46: 1 | BQ46: 1 | BR46: 2 | BS46: 1 | BT46: 1 | BU46: 1 | BV46: 1 | BW46: 1 | BX46: 1 | BY46: 1 | BZ46: 1 | CA46: 1 | CB46: 1 | CC46: 1 | CD46: 1 | CE46: 1 | CF46: 39 | CG46: à completer | CH46: 7 | CI46: 5 | CJ46: 5 | CL46: 1 | CM46: 1
A47: Mex | B47: 6216/00 | C47: Manuel | D47: Baqueiro | E47: 375 | F47: 1975 | G47: 0 | H47: 566075 | I47: 114575 | J47: 1000 | K47: Torrent de St. Barthélemy | L47: Rhône | M47: 566050 | N47: 114570 | O47: 990 | P47: 105 | R47: 20 | S47: 90 | V47: 0.8 | W47: 80 | Z47: 0.3 | AA47: 20 | AC47: 130 | AD47: 0 | AF47: J | AG47: 0 | AH47: 4 | AI47: 0 | AJ47: 0 | AK47: 0 | AL47: 0 | AM47: 0 | AN47: 4 | AO47: 0 | AP47: 0 | AQ47: 0 | AR47: 4 | AS47: 0 | AT47: 4 | AU47: 0 | AV47: 0 | AW47: 0 | AX47: 1 | AY47: 1 | AZ47: RB | BA47: 1 | BB47: 0 | BD47: 1 | BE47: 2 | BF47: 1 | BG47: 1 | BH47: 1 | BI47: 1 | BJ47: 1 | BK47: 4 | BL47: 2 | BM47: 1 | BN47: 1 | BO47: 1 | BP47: 1 | BQ47: 1 | BR47: 2 | BS47: 1 | BT47: 1 | BU47: 1 | BV47: 1 | BW47: 1 | BX47: 1 | BY47: 1 | BZ47: 1 | CA47: 1 | CB47: 1 | CC47: 1 | CD47: 1 | CE47: 1 | CF47: 40 | CG47: SPE / DUS | CI47: 2 | CJ47: 5 | CL47: 1 | CM47: 1
A48: Monthey-CIMO | B48: 6153/00 | C48: Eric | D48: Guibert | E48: 360000 | F48: 1970 | G48: 1993 | H48: 564150 | I48: 123270 | J48: 395 | K48: Rhône | L48: Rhône | M48: 564105 | N48: 123430 | O48: 394 | P48: 20000 | Q48: 18500 | R48: 25 | S48: 95 | T48: 80 | U48: 90 | V48: 0.8 | W48: 0 | X48: 20 | Y48: 0 | AA48: 40 | AC48: 18841 | AD48: 584 | AF48: H | AG48: 52 | AH48: 52 | AI48: 12 | AJ48: 0 | AK48: 0 | AL48: 12 | AM48: 104 | AN48: 104 | AO48: 24 | AP48: 0 | AQ48: 0 | AR48: 12 | AS48: 104 | AT48: 104 | AU48: 0 | AV48: 52 | AW48: 52 | AX48: 1 | AY48: 1 | AZ48: PM | BA48: 3 | BB48: 0 | BC48: Bassin d¿aération Bio I : 2 x 3500 m3 = 7000 m3 Bassin d¿aération bio II : 2 x 2390 m3 = 4780 m3 Monthey-CIMO: La charge du bypass est calculée avec la concentration moyenne chimie+ville. Vu que le bypass ne concerne que l'eau de ville, il faut corriger. Soustraire les boues BASF brûlées par CIMO. ATTENTION l'entrée ville (EV) est prélevée après DP -> à recalculer les eaux brutes | BD48: 2 | BE48: 2 | BF48: 2 | BG48: 2 | BH48: 2 | BI48: 1 | BJ48: 1 | BK48: 1 | BL48: 2 | BM48: 1 | BN48: 1 | BO48: 1 | BP48: 1 | BQ48: 1 | BR48: 2 | BS48: 1 | BT48: 1 | BU48: 1 | BV48: 1 | BW48: 1 | BX48: 2 | BY48: 1 | BZ48: 1 | CA48: 1 | CB48: 1 | CC48: 1 | CD48: 1 | CE48: 2 | CF48: 41 | CG48: Monthey-CIMO | CH48: 1 | CI48: 5 | CJ48: 5 | CK48: 4 | CL48: 1 | CM48: 1
A49: Nendaz-Bieudron | B49: 6024/03 | C49: Dominique | D49: Theytaz | E49: 40500 | F49: 1982 | G49: 2006 | H49: 586250 | I49: 115250 | J49: 478 | K49: Rhône | L49: Rhône | M49: 586130 | N49: 115210 | O49: 477 | P49: 17700 | Q49: 1512 | R49: 15 | S49: 90 | T49: 10 | U49: 85 | V49: 0.3 | W49: 90 | Z49: 0.3 | AA49: 15 | AC49: 9281 | AD49: 24770 | AF49: H | AG49: 52 | AH49: 52 | AI49: 12 | AJ49: 0 | AK49: 0 | AL49: 12 | AM49: 52 | AN49: 52 | AO49: 24 | AP49: 0 | AQ49: 0 | AR49: 12 | AS49: 104 | AT49: 104 | AU49: 0 | AV49: 52 | AW49: 52 | AX49: 1 | AY49: 1 | AZ49: PM | BA49: 1 | BB49: 0 | BC49: STEP mixte à majorité domestique -> assimilé à domestique. Nendaz-Bieudron mesure le bypass sortie primaire déjà avec le rejet de la STEP, il faut manuellement effacer dans l'onglet calc tout les calculs des charges bypass DP+tous les calculs débit bypass DP (onglet "calc", colonnes DZ à EF et colonnes GS à GY). | BD49: 1 | BE49: 1 | BF49: 2 | BG49: 1 | BH49: 2 | BI49: 1 | BJ49: 1 | BK49: 1 | BL49: 2 | BM49: 1 | BN49: 1 | BO49: 1 | BP49: 1 | BQ49: 1 | BR49: 2 | BS49: 1 | BT49: 1 | BU49: 1 | BV49: 1 | BW49: 1 | BX49: 1 | BY49: 1 | BZ49: 1 | CA49: 1 | CB49: 1 | CC49: 1 | CD49: 3 | CE49: 1 | CF49: 42 | CG49: Nendaz-Bieudron | CH49: 2 | CI49: 1 | CJ49: 2 | CK49: 4 | CL49: 1 | CM49: 1
A50: Nendaz-Siviez | B50: 6024/02 | C50: Dominique | D50: Theytaz | E50: 2500 | F50: 1972 | G50: 0 | H50: 590550 | I50: 109900 | J50: 1690 | K50: Printse | L50: Rhône | M50: 590565 | N50: 109900 | O50: 1685 | P50: 800 | R50: 20 | S50: 90 | T50: 10 | U50: 85 | V50: 0.8 | W50: 85 | Z50: 0.3 | AA50: 20 | AC50: 32 | AD50: 0 | AF50: H | AG50: 24 | AH50: 24 | AI50: 12 | AJ50: 0 | AK50: 0 | AL50: 12 | AM50: 24 | AN50: 24 | AO50: 24 | AP50: 0 | AQ50: 0 | AR50: 12 | AS50: 24 | AT50: 24 | AU50: 0 | AV50: 24 | AW50: 52 | AX50: 1 | AY50: 1 | AZ50: RB | BA50: 1 | BB50: 0 | BD50: 1 | BE50: 1 | BF50: 1 | BG50: 1 | BH50: 1 | BI50: 1 | BJ50: 1 | BK50: 4 | BM50: 1 | BN50: 1 | BO50: 1 | BP50: 1 | BQ50: 1 | BR50: 1 | BS50: 1 | BT50: 1 | BU50: 1 | BV50: 1 | BW50: 1 | BX50: 1 | BY50: 1 | BZ50: 1 | CA50: 1 | CB50: 1 | CC50: 1 | CD50: 1 | CE50: 1 | CF50: 43 | CG50: à completer | CI50: 5 | CJ50: 5 | CL50: 1 | CM50: 1
A51: Oberwald-Gletsch | B51: 6066/00 | C51: Pius | D51: Zumoberhaus | E51: 167 | F51: 1992 | G51: 0 | H51: 670820 | I51: 157260 | J51: 1760 | K51: Rhône | L51: Rhône | M51: 670815 | N51: 157245 | O51: 1750 | P51: 24.5 | Q51: 20 | AC51: 0 | AD51: 0 | AF51: 0 | AG51: 0 | AH51: 0 | AI51: 0 | AJ51: 0 | AK51: 0 | AL51: 0 | AM51: 0 | AN51: 0 | AO51: 0 | AP51: 0 | AQ51: 0 | AR51: 0 | AS51: 0 | AT51: 0 | AU51: 0 | AV51: 0 | AW51: 0 | AX51: 0 | AY51: 2 | AZ51: MM | BA51: 1 | BB51: 0 | BC51: Hôtel Glacier du Rhône Exploité de mai à octobre | BD51: 1 | BE51: 1 | BF51: 1 | BG51: 1 | BH51: 1 | BI51: 1 | BJ51: 1 | BK51: 1 | BL51: 2 | BM51: 1 | BN51: 1 | BO51: 1 | BP51: 1 | BQ51: 1 | BR51: 2 | BS51: 1 | BT51: 1 | BU51: 1 | BV51: 1 | BW51: 1 | BX51: 1 | BY51: 1 | BZ51: 1 | CA51: 1 | CB51: 1 | CC51: 1 | CD51: 1 | CE51: 1 | CF51: 44 | CG51: à completer | CH51: 7 | CI51: 5 | CJ51: 5 | CL51: 1 | CM51: 1
A52: Port-Valais | B52: 6154/00 | C52: Philippe | D52: Moncalvo | E52: 7700 | F52: 1979 | G52: 2007 | H52: 556335 | I52: 136170 | J52: 374 | K52: Canal Stockalper | L52: Léman | M52: 556315 | N52: 136220 | O52: 373 | P52: 2695 | Q52: 1540 | R52: 20 | S52: 90 | T52: 10 | U52: 85 | V52: 0.8 | W52: 85 | X52: 2 | Y52: 90 | Z52: 0.3 | AA52: 20 | AC52: 3430 | AD52: 1977 | AF52: H | AG52: 52 | AH52: 52 | AI52: 12 | AJ52: 0 | AK52: 0 | AL52: 12 | AM52: 52 | AN52: 52 | AO52: 24 | AP52: 0 | AQ52: 0 | AR52: 12 | AS52: 52 | AT52: 52 | AU52: 0 | AV52: 52 | AW52: 52 | AX52: 1 | AY52: 1 | AZ52: PM | BA52: 1 | BB52: 0 | BD52: 2 | BE52: 2 | BF52: 2 | BG52: 2 | BH52: 2 | BI52: 1 | BJ52: 1 | BK52: 4 | BL52: 2 | BM52: 1 | BN52: 1 | BO52: 1 | BP52: 1 | BQ52: 1 | BR52: 2 | BS52: 1 | BT52: 1 | BU52: 1 | BV52: 1 | BW52: 1 | BX52: 1 | BY52: 1 | BZ52: 1 | CA52: 1 | CB52: 2 | CC52: 1 | CD52: 1 | CE52: 1 | CF52: 45 | CG52: Vionnaz | CH52: 1 | CI52: 1 | CJ52: 2 | CK52: 1 | CL52: 1 | CM52: 1
A53: Regional-ARA Visp | B53: 6297/00 | C53: Thomas | D53: Kahoun | E53: 388833 | F53: 1976 | G53: 1990 | H53: 632400 | I53: 127750 | J53: 643 | K53: Grossgrundkanal | L53: Rhône | M53: 632290 | N53: 127800 | O53: 640 | P53: 28650 | Q53: 11200 | R53: 25 | S53: 95 | T53: 80 | U53: 90 | V53: 0.8 | W53: 0 | X53: 40 | Y53: 80 | Z53: 0.3 | AA53: 40 | AC53: 11995 | AD53: 3138 | AF53: H | AG53: 26 | AH53: 26 | AI53: 12 | AJ53: 0 | AK53: 0 | AL53: 12 | AM53: 104 | AN53: 104 | AO53: 24 | AP53: 0 | AQ53: 0 | AR53: 12 | AS53: 104 | AT53: 104 | AU53: 0 | AV53: 52 | AW53: 52 | AX53: 1 | AY53: 2 | AZ53: DO | BA53: 3 | BB53: 0 | BD53: 2 | BE53: 1 | BF53: 2 | BG53: 2 | BH53: 2 | BI53: 1 | BJ53: 1 | BK53: 3 | BL53: 4 | BM53: 1 | BN53: 1 | BO53: 1 | BP53: 1 | BQ53: 1 | BR53: 2 | BS53: 1 | BT53: 1 | BU53: 1 | BV53: 2 | BW53: 1 | BX53: 1 | BY53: 1 | BZ53: 1 | CA53: 1 | CH53: 1 | CI53: 3 | CJ53: 5 | CK53: 4 | CL53: 2 | CM53: 2
A54: Restaurant Rhonequelle | B54: 6072/00 | C54: Marzio | D54: Eusebio | E54: 60 | F54: 0 | G54: 0 | H54: 0 | I54: 0 | J54: 0 | M54: 0 | N54: 0 | O54: 0 | P54: 0 | AC54: 0 | AD54: 0 | AF54: 0 | AG54: 0 | AH54: 0 | AI54: 0 | AJ54: 0 | AK54: 0 | AL54: 0 | AM54: 0 | AN54: 0 | AO54: 0 | AP54: 0 | AQ54: 0 | AR54: 0 | AS54: 0 | AT54: 0 | AU54: 0 | AV54: 0 | AW54: 0 | AX54: 0 | AY54: 2 | BA54: 1 | BB54: 0 | BC54: Tropfkörper KSW | BD54: 1 | BE54: 1 | BF54: 1 | BG54: 1 | BH54: 1 | BI54: 1 | BJ54: 1 | BK54: 4 | BM54: 1 | BN54: 1 | BO54: 1 | BP54: 1 | BQ54: 1 | BR54: 1 | BS54: 1 | BT54: 1 | BU54: 1 | BV54: 1 | BW54: 1 | BX54: 1 | BY54: 1 | BZ54: 1 | CA54: 1 | CB54: 1 | CC54: 1 | CD54: 1 | CE54: 2 | CF54: 46 | CG54: Regional-ARA Visp | CI54: 5 | CJ54: 5 | CL54: 1 | CM54: 1
A55: Riddes | B55: 6139/00 | C55: Jean-Pascal | D55: Monnet | E55: 8750 | F55: 1978 | G55: 2002 | H55: 582730 | I55: 113340 | J55: 465 | K55: Rhône | L55: Rhône | M55: 582680 | N55: 114070 | O55: 468 | P55: 3150 | Q55: 700 | R55: 20 | S55: 90 | T55: 10 | U55: 85 | V55: 0.8 | W55: 85 | Z55: 0.3 | AA55: 20 | AC55: 2888 | AD55: 7485 | AF55: H | AG55: 52 | AH55: 52 | AI55: 12 | AJ55: 0 | AK55: 0 | AL55: 12 | AM55: 52 | AN55: 52 | AO55: 24 | AP55: 0 | AQ55: 0 | AR55: 12 | AS55: 52 | AT55: 52 | AU55: 0 | AV55: 52 | AW55: 52 | AX55: 1 | AY55: 1 | AZ55: PM | BA55: 1 | BB55: 0 | BD55: 2 | BE55: 2 | BF55: 2 | BG55: 2 | BH55: 2 | BI55: 1 | BJ55: 1 | BK55: 2 | BL55: 2 | BM55: 1 | BN55: 1 | BO55: 1 | BP55: 1 | BQ55: 1 | BR55: 2 | BS55: 1 | BT55: 1 | BU55: 1 | BV55: 1 | BW55: 1 | BX55: 1 | BY55: 1 | BZ55: 1 | CA55: 1 | CB55: 3 | CC55: 1 | CD55: 1 | CE55: 1 | CF55: 47 | CG55: Riddes | CH55: 1 | CI55: 3 | CJ55: 5 | CK55: 6 | CL55: 1 | CM55: 1
A56: Saastal | B56: 6289/00 | C56: Damian | D56: Andenmatten | E56: 27367 | F56: 1989 | G56: 0 | H56: 636740 | I56: 113250 | J56: 1360 | K56: Saaser Vispa (amén. hydroélec. Mattmark) | L56: Vispa | M56: 636641 | N56: 113257 | O56: 1330 | P56: 8760 | Q56: 630 | R56: 15 | S56: 90 | T56: 10 | U56: 85 | V56: 0.8 | W56: 90 | Z56: 0.3 | AA56: 15 | AC56: 3497 | AD56: 14262 | AF56: H | AG56: 52 | AH56: 52 | AI56: 12 | AJ56: 0 | AK56: 0 | AL56: 12 | AM56: 52 | AN56: 52 | AO56: 24 | AP56: 0 | AQ56: 0 | AR56: 12 | AS56: 104 | AT56: 104 | AU56: 0 | AV56: 52 | AW56: 52 | AX56: 1 | AY56: 2 | AZ56: DO | BA56: 1 | BB56: 0 | BD56: 1 | BE56: 2 | BF56: 2 | BG56: 2 | BH56: 1 | BI56: 1 | BJ56: 1 | BK56: 1 | BL56: 2 | BM56: 1 | BN56: 1 | BO56: 1 | BP56: 1 | BQ56: 1 | BR56: 2 | BS56: 1 | BT56: 1 | BU56: 1 | BV56: 1 | BW56: 1 | BX56: 1 | BY56: 1 | BZ56: 1 | CA56: 1 | CB56: 1 | CC56: 2 | CD56: 1 | CE56: 1 | CF56: 48 | CG56: Saastal | CH56: 1 | CI56: 1 | CJ56: 2 | CK56: 5 | CL56: 1 | CM56: 1
A57: Saillon | B57: 6140/00 | C57: Joao | D57: Mendes | E57: 3000 | F57: 1984 | G57: 0 | H57: 581290 | I57: 112620 | J57: 460 | K57: Rhône | L57: Rhône | M57: 581380 | N57: 112560 | O57: 460 | P57: 1200 | R57: 20 | S57: 90 | T57: 10 | U57: 85 | V57: 0.8 | W57: 85 | X57: 2 | Y57: 90 | Z57: 0.3 | AA57: 20 | AC57: 2332 | AD57: 1642 | AF57: H | AG57: 24 | AH57: 24 | AI57: 12 | AJ57: 0 | AK57: 0 | AL57: 12 | AM57: 24 | AN57: 24 | AO57: 24 | AP57: 0 | AQ57: 0 | AR57: 12 | AS57: 24 | AT57: 24 | AU57: 0 | AV57: 24 | AW57: 52 | AX57: 1 | AY57: 1 | AZ57: RB | BA57: 1 | BB57: 0 | BC57: Attention au rendement Salsnes! Il faut corriger les valeurs en entrée! | BD57: 2 | BE57: 1 | BF57: 1 | BG57: 1 | BH57: 1 | BI57: 2 | BJ57: 1 | BK57: 4 | BM57: 1 | BN57: 1 | BO57: 1 | BP57: 1 | BQ57: 1 | BR57: 2 | BS57: 1 | BT57: 1 | BU57: 1 | BV57: 1 | BW57: 1 | BX57: 1 | BY57: 1 | BZ57: 1 | CA57: 1 | CB57: 1 | CC57: 1 | CD57: 1 | CE57: 1 | CF57: 49 | CG57: Saillon | CH57: 1 | CI57: 5 | CJ57: 5 | CK57: 4 | CL57: 1 | CM57: 1
A58: Saxon | B58: 6141/00 | C58: Gérard | D58: Lonfat | E58: 4900 | F58: 1977 | G58: 0 | H58: 578200 | I58: 110100 | J58: 460 | K58: Canal du Syndicat | L58: Rhône | M58: 578190 | N58: 110035 | O58: 460 | P58: 1750 | Q58: 900 | R58: 20 | S58: 90 | T58: 10 | U58: 85 | V58: 0.8 | W58: 85 | Z58: 0.3 | AA58: 20 | AC58: 5043 | AD58: 1450 | AF58: H | AG58: 24 | AH58: 24 | AI58: 12 | AJ58: 0 | AK58: 0 | AL58: 12 | AM58: 24 | AN58: 24 | AO58: 24 | AP58: 0 | AQ58: 0 | AR58: 12 | AS58: 24 | AT58: 24 | AU58: 0 | AV58: 24 | AW58: 52 | AX58: 1 | AY58: 1 | AZ58: RB | BA58: 1 | BB58: 0 | BD58: 2 | BE58: 2 | BF58: 2 | BG58: 2 | BH58: 2 | BI58: 1 | BJ58: 1 | BK58: 4 | BM58: 2 | BN58: 1 | BO58: 1 | BP58: 1 | BQ58: 1 | BR58: 2 | BS58: 1 | BT58: 1 | BU58: 1 | BV58: 1 | BW58: 1 | BX58: 1 | BY58: 1 | BZ58: 1 | CA58: 1 | CB58: 1 | CC58: 1 | CD58: 1 | CE58: 1 | CF58: 50 | CG58: Nendaz-Bieudron | CH58: 1 | CI58: 5 | CJ58: 5 | CK58: 4 | CL58: 1 | CM58: 1
A59: Sierre-Granges | B59: 6248/02 | C59: Paul-Henri | D59: Emery | E59: 27500 | F59: 1976 | G59: 0 | H59: 601110 | I59: 122730 | J59: 500 | K59: Rhône | L59: Rhône | M59: 600720 | N59: 123000 | O59: 500 | P59: 9800 | Q59: 1000 | R59: 15 | S59: 90 | T59: 10 | U59: 85 | V59: 0.8 | W59: 90 | Z59: 0.3 | AA59: 15 | AC59: 10569 | AD59: 20569 | AF59: H | AG59: 52 | AH59: 52 | AI59: 12 | AJ59: 0 | AK59: 0 | AL59: 12 | AM59: 52 | AN59: 52 | AO59: 24 | AP59: 0 | AQ59: 0 | AR59: 12 | AS59: 104 | AT59: 104 | AU59: 0 | AV59: 52 | AW59: 52 | AX59: 1 | AY59: 1 | AZ59: PM | BA59: 1 | BB59: 0 | BC59: Attention: retour des boues en amont du prélevement d'entrée ! | BD59: 2 | BE59: 2 | BF59: 2 | BG59: 2 | BH59: 1 | BI59: 1 | BJ59: 1 | BK59: 1 | BL59: 2 | BM59: 1 | BN59: 1 | BO59: 1 | BP59: 1 | BQ59: 1 | BR59: 2 | BS59: 1 | BT59: 1 | BU59: 1 | BV59: 1 | BW59: 1 | BX59: 1 | BY59: 1 | BZ59: 1 | CA59: 1 | CB59: 2 | CC59: 1 | CD59: 1 | CE59: 1 | CF59: 51 | CG59: Sierre-Granges | CI59: 1 | CJ59: 2 | CK59: 4 | CL59: 1 | CM59: 1
A60: Sierre-Noes | B60: 6248/01 | C60: Michel | D60: Favre | E60: 97500 | F60: 1976 | G60: 1994 | H60: 605260 | I60: 125175 | J60: 516 | K60: Rhône | L60: Rhône | M60: 604310 | N60: 124825 | O60: 515 | P60: 30000 | R60: 15 | S60: 90 | T60: 10 | U60: 85 | V60: 0.3 | W60: 90 | Z60: 0.3 | AA60: 15 | AC60: 31819 | AD60: 6666 | AF60: H | AG60: 52 | AH60: 52 | AI60: 12 | AJ60: 0 | AK60: 0 | AL60: 12 | AM60: 104 | AN60: 104 | AO60: 24 | AP60: 0 | AQ60: 0 | AR60: 12 | AS60: 104 | AT60: 104 | AU60: 0 | AV60: 52 | AW60: 52 | AX60: 1 | AY60: 1 | AZ60: PM | BA60: 1 | BB60: 0 | BD60: 2 | BE60: 2 | BF60: 2 | BG60: 2 | BH60: 2 | BI60: 1 | BJ60: 1 | BK60: 2 | BM60: 1 | BN60: 1 | BO60: 2 | BP60: 1 | BQ60: 1 | BR60: 1 | BS60: 2 | BT60: 1 | BU60: 1 | BV60: 1 | BW60: 1 | BX60: 1 | BY60: 1 | BZ60: 1 | CA60: 1 | CB60: 2 | CC60: 2 | CD60: 1 | CE60: 1 | CF60: 52 | CG60: Sierre-Noes | CH60: 3 | CI60: 1 | CJ60: 2 | CK60: 4 | CL60: 1 | CM60: 1
A61: Simplon-Dorf | B61: 6009/01 | C61: Edwin | D61: Henzen | E61: 450 | F61: 2008 | G61: 0 | H61: 647820 | I61: 116235 | J61: 1440 | K61: Chrummbach | L61: Doveria | M61: 647850 | N61: 116260 | O61: 1410 | P61: 160 | R61: 20 | S61: 90 | V61: 0.8 | W61: 80 | Z61: 0.3 | AA61: 20 | AC61: 322 | AD61: 220 | AF61: J | AG61: 0 | AH61: 12 | AI61: 0 | AJ61: 0 | AK61: 0 | AL61: 0 | AM61: 0 | AN61: 12 | AO61: 0 | AP61: 0 | AQ61: 0 | AR61: 12 | AS61: 0 | AT61: 12 | AU61: 0 | AV61: 0 | AW61: 0 | AX61: 1 | AY61: 2 | AZ61: MM | BA61: 1 | BB61: 0 | BC61: Visite le 01/07/2010 | BD61: 1 | BE61: 2 | BF61: 1 | BG61: 1 | BH61: 1 | BI61: 1 | BJ61: 2 | BK61: 1 | BM61: 1 | BN61: 1 | BO61: 1 | BP61: 2 | BQ61: 1 | BR61: 1 | BS61: 2 | BT61: 1 | BU61: 1 | BV61: 1 | BW61: 1 | BX61: 1 | BY61: 1 | BZ61: 1 | CA61: 1 | CB61: 1 | CC61: 1 | CD61: 1 | CE61: 1 | CF61: 53 | CG61: Briglina-Brig | CH61: 1 | CI61: 5 | CJ61: 5 | CK61: 1 | CL61: 1 | CM61: 1
A62: Simplon-Gabi | B62: 6009/00 | C62: Harald | D62: Jordan | E62: 65 | F62: 1985 | G62: 0 | H62: 114950 | I62: 649150 | J62: 1210 | K62: Doveria | L62: Doveria | M62: 649170 | N62: 114950 | O62: 1205 | P62: 9 | AC62: 4 | AD62: 0 | AF62: 0 | AG62: 0 | AH62: 0 | AI62: 0 | AJ62: 0 | AK62: 0 | AL62: 0 | AM62: 0 | AN62: 0 | AO62: 0 | AP62: 0 | AQ62: 0 | AR62: 0 | AS62: 0 | AT62: 0 | AU62: 0 | AV62: 0 | AW62: 0 | AX62: 0 | AY62: 2 | AZ62: MM | BA62: 1 | BB62: 0 | BD62: 1 | BE62: 1 | BF62: 1 | BG62: 1 | BH62: 1 | BI62: 1 | BJ62: 1 | BK62: 1 | BL62: 2 | BM62: 1 | BN62: 1 | BO62: 1 | BP62: 1 | BQ62: 1 | BR62: 2 | BS62: 1 | BT62: 1 | BU62: 1 | BV62: 1 | BW62: 1 | BX62: 1 | BY62: 1 | BZ62: 1 | CA62: 1 | CB62: 1 | CC62: 1 | CD62: 1 | CE62: 1 | CF62: 54 | CG62: à completer | CH62: 7 | CI62: 5 | CJ62: 5 | CL62: 1 | CM62: 1
A63: Sion-Chandoline | B63: 6266/03 | C63: Narcisse | D63: Beney | E63: 32500 | F63: 1980 | G63: 0 | H63: 594260 | I63: 118850 | J63: 488 | K63: Rhône | L63: Rhône | M63: 593860 | N63: 118695 | O63: 485 | P63: 11700 | Q63: 9650 | R63: 15 | S63: 90 | T63: 10 | U63: 85 | V63: 0.8 | W63: 90 | Z63: 0.3 | AA63: 15 | AC63: 15864 | AD63: 9393 | AF63: H | AG63: 52 | AH63: 52 | AI63: 12 | AJ63: 0 | AK63: 0 | AL63: 12 | AM63: 52 | AN63: 52 | AO63: 24 | AP63: 0 | AQ63: 0 | AR63: 12 | AS63: 104 | AT63: 104 | AU63: 0 | AV63: 52 | AW63: 52 | AX63: 1 | AY63: 1 | AZ63: PM | BA63: 1 | BB63: 0 | BD63: 2 | BE63: 1 | BF63: 1 | BG63: 2 | BH63: 2 | BI63: 1 | BJ63: 1 | BK63: 4 | BL63: 2 | BM63: 2 | BN63: 1 | BO63: 1 | BP63: 1 | BQ63: 1 | BR63: 2 | BS63: 1 | BT63: 1 | BU63: 1 | BV63: 1 | BW63: 1 | BX63: 1 | BY63: 1 | BZ63: 1 | CA63: 1 | CB63: 2 | CC63: 1 | CD63: 1 | CE63: 1 | CF63: 56 | CG63: Sion-Chateauneuf | CH63: 1 | CI63: 5 | CJ63: 5 | CK63: 4 | CL63: 1 | CM63: 1
A64: Sion-Chateauneuf | B64: 6266/01 | C64: Luc | D64: Favre | E64: 66667 | F64: 1971 | G64: 2000 | H64: 590800 | I64: 118760 | J64: 480 | K64: Rhône | L64: Rhône | M64: 590380 | N64: 117690 | O64: 478 | P64: 25837 | Q64: 2476 | R64: 15 | S64: 90 | T64: 10 | U64: 85 | V64: 0.3 | W64: 90 | Z64: 0.3 | AA64: 15 | AC64: 32023 | AD64: 3410 | AF64: H | AG64: 52 | AH64: 52 | AI64: 12 | AJ64: 0 | AK64: 0 | AL64: 12 | AM64: 104 | AN64: 104 | AO64: 24 | AP64: 0 | AQ64: 0 | AR64: 12 | AS64: 104 | AT64: 104 | AU64: 0 | AV64: 52 | AW64: 52 | AX64: 1 | AY64: 1 | AZ64: PM | BA64: 1 | BB64: 0 | BC64: Sion-Chateauneuf mesure le bypass sortie primaire déjà avec le rejet de la STEP, il faut manuellement effacer dans l'onglet calc tout les calculs des charges bypass DP+tous les calculs débit bypass DP (onglet "calc", colonnes DZ à EF et colonnes GS à GY). | BD64: 2 | BE64: 2 | BF64: 2 | BG64: 2 | BH64: 2 | BI64: 1 | BJ64: 1 | BK64: 1 | BL64: 2 | BM64: 1 | BN64: 1 | BO64: 1 | BP64: 1 | BQ64: 1 | BR64: 2 | BS64: 1 | BT64: 1 | BU64: 1 | BV64: 1 | BW64: 1 | BX64: 1 | BY64: 1 | BZ64: 1 | CA64: 1 | CB64: 2 | CC64: 2 | CD64: 3 | CE64: 1 | CF64: 57 | CG64: Sion-Chateauneuf | CH64: 2 | CI64: 1 | CJ64: 2 | CK64: 4 | CL64: 1 | CM64: 1
A65: Sion-Molignon | B65: 6266/04 | C65: Luc | D65: Favre | E65: 125 | F65: 1984 | G65: 0 | H65: 596460 | I65: 122000 | J65: 590 | K65: Torrent de Pradelaman (bisse du Clavau) | L65: Canal d'Uvrier | M65: 596495 | N65: 121940 | O65: 585 | P65: 15 | AC65: 20 | AD65: 0 | AF65: 0 | AG65: 0 | AH65: 0 | AI65: 0 | AJ65: 0 | AK65: 0 | AL65: 0 | AM65: 0 | AN65: 0 | AO65: 0 | AP65: 0 | AQ65: 0 | AR65: 0 | AS65: 0 | AT65: 0 | AU65: 0 | AV65: 0 | AW65: 0 | AX65: 0 | AY65: 1 | AZ65: RB | BA65: 1 | BB65: 0 | BD65: 1 | BE65: 1 | BF65: 1 | BG65: 1 | BH65: 1 | BI65: 1 | BJ65: 1 | BK65: 4 | BM65: 1 | BN65: 2 | BO65: 1 | BP65: 1 | BQ65: 1 | BR65: 1 | BS65: 1 | BT65: 1 | BU65: 1 | BV65: 1 | BW65: 1 | BX65: 1 | BY65: 1 | BZ65: 1 | CA65: 1 | CB65: 1 | CC65: 1 | CD65: 1 | CE65: 1 | CF65: 58 | CG65: à completer | CI65: 5 | CJ65: 5 | CL65: 1 | CM65: 1
A66: Stalden | B66: 6293/00 | C66: Johann | D66: Camenisch | E66: 8250 | F66: 1987 | G66: 2001 | H66: 633625 | I66: 121515 | J66: 695 | K66: Vispa | L66: Rhône | M66: 633640 | N66: 121550 | O66: 695 | P66: 1560 | R66: 20 | S66: 90 | T66: 10 | U66: 85 | V66: 0.8 | W66: 85 | Z66: 0.3 | AA66: 20 | AC66: 2460 | AD66: 1709 | AF66: H | AG66: 52 | AH66: 52 | AI66: 12 | AJ66: 0 | AK66: 0 | AL66: 12 | AM66: 52 | AN66: 52 | AO66: 24 | AP66: 0 | AQ66: 0 | AR66: 12 | AS66: 52 | AT66: 52 | AU66: 0 | AV66: 52 | AW66: 52 | AX66: 1 | AY66: 2 | AZ66: DO | BA66: 1 | BB66: 0 | BD66: 1 | BE66: 2 | BF66: 2 | BG66: 1 | BH66: 2 | BI66: 1 | BJ66: 1 | BK66: 4 | BM66: 2 | BN66: 1 | BO66: 1 | BP66: 1 | BQ66: 1 | BR66: 2 | BS66: 1 | BT66: 1 | BU66: 1 | BV66: 1 | BW66: 1 | BX66: 1 | BY66: 1 | BZ66: 1 | CA66: 1 | CB66: 1 | CC66: 1 | CD66: 1 | CE66: 1 | CF66: 59 | CG66: Briglina-Brig | CH66: 1 | CI66: 5 | CJ66: 5 | CK66: 5 | CL66: 1 | CM66: 1
A67: Steinhaus | B67: 6070/00 | D67: ARA Betriebsleiter | E67: 140 | F67: 1995 | G67: 0 | H67: 656600 | I67: 141455 | J67: 1220 | K67: Rhône | L67: Rhône | M67: 656540 | N67: 141500 | O67: 1175 | P67: 24 | AC67: 30 | AD67: 0 | AF67: 0 | AG67: 0 | AH67: 0 | AI67: 0 | AJ67: 0 | AK67: 0 | AL67: 0 | AM67: 0 | AN67: 0 | AO67: 0 | AP67: 0 | AQ67: 0 | AR67: 0 | AS67: 0 | AT67: 0 | AU67: 0 | AV67: 0 | AW67: 0 | AX67: =IF(E67<200,0,1) -> 0 | AY67: 2 | AZ67: MM | BA67: 1 | BB67: 0 | BD67: 1 | BE67: 1 | BF67: 1 | BG67: 1 | BH67: 1 | BI67: 1 | BJ67: 1 | BK67: 4 | BM67: 1 | BN67: 2 | BO67: 1 | BP67: 1 | BQ67: 1 | BR67: 1 | BS67: 1 | BT67: 1 | BU67: 1 | BV67: 1 | BW67: 1 | BX67: 1 | BY67: 1 | BZ67: 1 | CA67: 1 | CB67: 1 | CC67: 1 | CD67: 1 | CE67: 1 | CF67: 60 | CG67: à completer | CI67: 5 | CJ67: 5 | CL67: 1 | CM67: 1
A68: St-Gingolph | B68: 6155/00 | C68: Daniel | D68: Imhof | E68: 3227 | F68: 1974 | G68: 2001 | H68: 552080 | I68: 137770 | J68: 390 | K68: Léman | M68: 552080 | N68: 137850 | O68: 385 | P68: 825 | R68: 20 | S68: 90 | T68: 10 | U68: 85 | V68: 0.8 | W68: 85 | Z68: 0.3 | AA68: 20 | AC68: 1344 | AD68: 1525 | AF68: H | AG68: 24 | AH68: 24 | AI68: 12 | AJ68: 0 | AK68: 0 | AL68: 12 | AM68: 24 | AN68: 24 | AO68: 24 | AP68: 0 | AQ68: 0 | AR68: 12 | AS68: 24 | AT68: 24 | AU68: 0 | AV68: 24 | AW68: 52 | AX68: 1 | AY68: 1 | AZ68: RB | BA68: 1 | BB68: 0 | BD68: 2 | BE68: 1 | BF68: 2 | BG68: 2 | BH68: 2 | BI68: 1 | BJ68: 1 | BK68: 1 | BL68: 2 | BM68: 1 | BN68: 1 | BO68: 1 | BP68: 1 | BQ68: 1 | BR68: 2 | BS68: 1 | BT68: 1 | BU68: 1 | BV68: 1 | BW68: 1 | BX68: 1 | BY68: 1 | BZ68: 1 | CA68: 1 | CB68: 2 | CC68: 1 | CD68: 1 | CE68: 1 | CF68: 61 | CG68: Vionnaz | CH68: 1 | CI68: 2 | CJ68: 5 | CK68: 5 | CL68: 1 | CM68: 1
A69: St-Martin | B69: 6087/00 | C69: Gery | D69: Gaspoz | E69: 2400 | F69: 1979 | G69: 0 | H69: 599815 | I69: 113895 | J69: 1270 | K69: Borgne | L69: Rhône | M69: 599845 | N69: 113350 | O69: 1120 | P69: 660 | Q69: 520 | R69: 20 | S69: 90 | T69: 10 | U69: 85 | V69: 0.8 | W69: 85 | Z69: 0.3 | AA69: 20 | AC69: 710 | AD69: 761 | AF69: H | AG69: 24 | AH69: 24 | AI69: 12 | AJ69: 0 | AK69: 0 | AL69: 12 | AM69: 24 | AN69: 24 | AO69: 24 | AP69: 0 | AQ69: 0 | AR69: 12 | AS69: 24 | AT69: 24 | AU69: 0 | AV69: 24 | AW69: 52 | AX69: 1 | AY69: 1 | AZ69: RB | BA69: 1 | BB69: 0 | BD69: 2 | BE69: 1 | BF69: 2 | BG69: 2 | BH69: 2 | BI69: 1 | BJ69: 1 | BK69: 4 | BL69: 2 | BM69: 1 | BN69: 1 | BO69: 1 | BP69: 1 | BQ69: 1 | BR69: 2 | BS69: 1 | BT69: 1 | BU69: 1 | BV69: 1 | BW69: 1 | BX69: 1 | BY69: 1 | BZ69: 1 | CA69: 1 | CB69: 1 | CC69: 1 | CD69: 1 | CE69: 1 | CF69: 62 | CG69: St-Martin | CI69: 5 | CJ69: 5 | CK69: 1 | CL69: 1 | CM69: 1
A70: St-Martin La Luette | B70: 6087/02 | E70: 120 | F70: 0 | G70: 0 | H70: 600233 | I70: 112117 | J70: 965 | K70: La Borgne | L70: Rhône | M70: 600260 | N70: 112132 | O70: 960 | P70: 88 | AC70: 0 | AD70: 0 | AF70: 0 | AG70: 0 | AH70: 0 | AI70: 0 | AJ70: 0 | AK70: 0 | AL70: 0 | AM70: 0 | AN70: 0 | AO70: 0 | AP70: 0 | AQ70: 0 | AR70: 0 | AS70: 0 | AT70: 0 | AU70: 0 | AV70: 0 | AW70: 0 | AX70: 0 | AY70: 1 | AZ70: RB | BA70: 1 | BB70: 0 | BD70: 1 | BE70: 1 | BF70: 1 | BG70: 1 | BH70: 1 | BI70: 1 | BJ70: 1 | BK70: 1 | BM70: 1 | BN70: 2 | BO70: 1 | BP70: 1 | BQ70: 1 | BR70: 2 | BS70: 1 | BT70: 1 | BU70: 1 | BV70: 1 | BW70: 1 | BX70: 1 | BY70: 1 | BZ70: 1 | CA70: 1 | CI70: 2 | CJ70: 5 | CL70: 1 | CM70: 1
A71: St-Martin Ossona | B71: 6087/01 | D71: Expoitant STEP | E71: 125 | F71: 2008 | G71: 0 | H71: 598670 | I71: 114530 | J71: 880 | K71: (infiltration) | M71: 598670 | N71: 114530 | O71: 880 | P71: 17 | AC71: 4 | AD71: 34 | AF71: 0 | AG71: 0 | AH71: 0 | AI71: 0 | AJ71: 0 | AK71: 0 | AL71: 0 | AM71: 0 | AN71: 0 | AO71: 0 | AP71: 0 | AQ71: 0 | AR71: 0 | AS71: 0 | AT71: 0 | AU71: 0 | AV71: 0 | AW71: 0 | AX71: 0 | AY71: 1 | AZ71: RB | BA71: 1 | BB71: 0 | BC71: Bérénice: sorte d'infiltration --> coord. du rejet = coord. step (attentes infos Robert) | BD71: 1 | BE71: 1 | BF71: 1 | BG71: 1 | BH71: 1 | BI71: 1 | BJ71: 1 | BK71: 1 | BM71: 1 | BN71: 2 | BO71: 1 | BP71: 1 | BQ71: 1 | BR71: 2 | BS71: 1 | BT71: 1 | BU71: 1 | BV71: 1 | BW71: 1 | BX71: 1 | BY71: 1 | BZ71: 1 | CA71: 1 | CI71: 2 | CJ71: 5 | CL71: 1 | CM71: 1
A72: St-Martin Praz-Jean | B72: 6087/03 | E72: 100 | F72: 0 | G72: 0 | H72: 600777 | I72: 111541 | J72: 1031 | M72: 600764 | N72: 111514 | O72: 1020 | P72: 58.6 | AC72: 0 | AD72: 0 | AF72: 0 | AG72: 0 | AH72: 0 | AI72: 0 | AJ72: 0 | AK72: 0 | AL72: 0 | AM72: 0 | AN72: 0 | AO72: 0 | AP72: 0 | AQ72: 0 | AR72: 0 | AS72: 0 | AT72: 0 | AU72: 0 | AV72: 0 | AW72: 0 | AX72: 0 | AY72: 1 | AZ72: RB | BA72: 1 | BB72: 0 | BD72: 1 | BE72: 1 | BF72: 1 | BG72: 1 | BH72: 1 | BI72: 1 | BJ72: 1 | BK72: 1 | BM72: 1 | BN72: 2 | BO72: 1 | BP72: 1 | BQ72: 1 | BR72: 2 | BS72: 1 | BT72: 1 | BU72: 1 | BV72: 1 | BW72: 1 | BX72: 1 | BY72: 1 | BZ72: 1 | CA72: 1 | CI72: 2 | CJ72: 5 | CL72: 1 | CM72: 1
A73: St-Niklaus | B73: 6292/00 | C73: Roman | D73: Brantschen | E73: 5875 | F73: 1990 | G73: 0 | H73: 628820 | I73: 115370 | J73: 1050 | K73: Matter Vispa | L73: Vispa | M73: 628960 | N73: 115680 | O73: 1043 | P73: 1880 | Q73: 330 | R73: 20 | S73: 90 | T73: 10 | U73: 85 | V73: 0.8 | W73: 85 | Z73: 0.3 | AA73: 20 | AC73: 2435 | AD73: 1332 | AF73: H | AG73: 52 | AH73: 52 | AI73: 12 | AJ73: 0 | AK73: 0 | AL73: 12 | AM73: 52 | AN73: 52 | AO73: 24 | AP73: 0 | AQ73: 0 | AR73: 12 | AS73: 52 | AT73: 52 | AU73: 0 | AV73: 52 | AW73: 52 | AX73: 1 | AY73: 2 | AZ73: DO | BA73: 1 | BB73: 0 | BD73: 2 | BE73: 2 | BF73: 2 | BG73: 2 | BH73: 2 | BI73: 1 | BJ73: 1 | BK73: 1 | BL73: 2 | BM73: 1 | BN73: 1 | BO73: 1 | BP73: 1 | BQ73: 1 | BR73: 2 | BS73: 1 | BT73: 1 | BU73: 1 | BV73: 1 | BW73: 1 | BX73: 1 | BY73: 1 | BZ73: 1 | CA73: 1 | CB73: 1 | CC73: 1 | CD73: 1 | CE73: 1 | CF73: 63 | CG73: St-Niklaus | CH73: 1 | CI73: 1 | CJ73: 2 | CK73: 1 | CL73: 1 | CM73: 1
A74: Trient | B74: 6142/00 | C74: Lionel | D74: Lugon-Moulin | E74: 375 | F74: 2003 | G74: 0 | H74: 565510 | I74: 101135 | J74: 1270 | K74: Trient | L74: Rhône | M74: 565491 | N74: 101134 | O74: 1260 | P74: 90 | Q74: 72 | R74: 20 | S74: 90 | V74: 0.8 | W74: 80 | Z74: 0.3 | AA74: 20 | AC74: 140 | AD74: 417 | AF74: J | AG74: 0 | AH74: 12 | AI74: 0 | AJ74: 0 | AK74: 0 | AL74: 0 | AM74: 0 | AN74: 12 | AO74: 0 | AP74: 0 | AQ74: 0 | AR74: 12 | AS74: 0 | AT74: 12 | AU74: 0 | AV74: 0 | AW74: 0 | AX74: 1 | AY74: 1 | AZ74: RB | BA74: 1 | BB74: 0 | BD74: 1 | BE74: 2 | BF74: 2 | BG74: 2 | BH74: 2 | BI74: 1 | BJ74: 1 | BK74: 1 | BL74: 2 | BM74: 1 | BN74: 1 | BO74: 1 | BP74: 1 | BQ74: 1 | BR74: 2 | BS74: 1 | BT74: 1 | BU74: 1 | BV74: 1 | BW74: 1 | BX74: 1 | BY74: 1 | BZ74: 1 | CA74: 1 | CB74: 1 | CC74: 1 | CD74: 1 | CE74: 1 | CF74: 64 | CG74: Martigny | CH74: 1 | CI74: 5 | CJ74: 5 | CK74: 7 | CL74: 1 | CM74: 1
A75: Troistorrents | B75: 6156/00 | C75: Michel | D75: Défago | E75: 13417 | F75: 1992 | G75: 0 | H75: 561110 | I75: 121580 | J75: 578 | K75: Vièze | L75: Rhône | M75: 561195 | N75: 121450 | O75: 520 | P75: 7425 | Q75: 750 | R75: 15 | S75: 90 | T75: 10 | U75: 85 | V75: 0.8 | W75: 90 | Z75: 0.3 | AA75: 15 | AC75: 4426 | AD75: 9561 | AF75: H | AG75: 52 | AH75: 52 | AI75: 12 | AJ75: 0 | AK75: 0 | AL75: 12 | AM75: 52 | AN75: 52 | AO75: 24 | AP75: 0 | AQ75: 0 | AR75: 12 | AS75: 104 | AT75: 104 | AU75: 0 | AV75: 52 | AW75: 52 | AX75: 1 | AY75: 1 | AZ75: PM | BA75: 1 | BB75: 0 | BD75: 1 | BE75: 1 | BF75: 2 | BG75: 2 | BH75: 2 | BI75: 1 | BJ75: 1 | BK75: 1 | BL75: 2 | BM75: 1 | BN75: 1 | BO75: 1 | BP75: 1 | BQ75: 1 | BR75: 2 | BS75: 1 | BT75: 1 | BU75: 1 | BV75: 1 | BW75: 1 | BX75: 1 | BY75: 1 | BZ75: 1 | CA75: 1 | CB75: 1 | CC75: 1 | CD75: 1 | CE75: 1 | CF75: 65 | CG75: Troistorrents | CH75: 1 | CI75: 1 | CJ75: 1 | CK75: 5 | CL75: 1 | CM75: 1
A76: Ulrichen-Nufenen | B76: 6071/00 | C76: Pius | D76: Zumoberhaus | E76: 250 | F76: 1990 | G76: 0 | H76: 672615 | I76: 148035 | J76: 2400 | K76: Chummbach | L76: Agene | M76: 672310 | N76: 148165 | O76: 2240 | P76: 27 | R76: 20 | S76: 90 | V76: 0.8 | W76: 80 | Z76: 0.3 | AA76: 20 | AC76: 0 | AD76: 0 | AF76: J | AG76: 0 | AH76: 12 | AI76: 0 | AJ76: 0 | AK76: 0 | AL76: 0 | AM76: 0 | AN76: 12 | AO76: 0 | AP76: 0 | AQ76: 0 | AR76: 12 | AS76: 0 | AT76: 12 | AU76: 0 | AV76: 0 | AW76: 0 | AX76: 1 | AY76: 2 | AZ76: MM | BA76: 1 | BB76: 0 | BD76: 1 | BE76: 1 | BF76: 1 | BG76: 1 | BH76: 1 | BI76: 1 | BJ76: 1 | BK76: 4 | BM76: 1 | BN76: 1 | BO76: 1 | BP76: 1 | BQ76: 1 | BR76: 1 | BS76: 1 | BT76: 1 | BU76: 1 | BV76: 1 | BW76: 1 | BX76: 1 | BY76: 1 | BZ76: 1 | CA76: 1 | CB76: 1 | CC76: 1 | CD76: 1 | CE76: 1 | CF76: 66 | CG76: à completer | CI76: 5 | CJ76: 5 | CL76: 1 | CM76: 1
A77: Unterbäch | B77: 6201/00 | C77: Erich | D77: Huemer | E77: 3750 | F77: 1971 | G77: 2000 | H77: 627760 | I77: 126600 | J77: 1140 | K77: Findelsuön | L77: Löübbach | M77: 627800 | N77: 126650 | O77: 1130 | P77: 1050 | R77: 20 | S77: 90 | T77: 10 | U77: 85 | V77: 0.8 | W77: 85 | X77: 2 | Y77: 90 | Z77: 0.3 | AA77: 20 | AC77: 406 | AD77: 1030 | AF77: H | AG77: 12 | AH77: 12 | AI77: 12 | AJ77: 0 | AK77: 0 | AL77: 12 | AM77: 12 | AN77: 12 | AO77: 12 | AP77: 0 | AQ77: 0 | AR77: 12 | AS77: 12 | AT77: 12 | AU77: 0 | AV77: 12 | AW77: 52 | AX77: 1 | AY77: 2 | AZ77: MM | BA77: 1 | BB77: 0 | BD77: 1 | BE77: 2 | BF77: 2 | BG77: 2 | BH77: 1 | BI77: 1 | BJ77: 2 | BK77: 1 | BL77: 2 | BM77: 1 | BN77: 1 | BO77: 1 | BP77: 1 | BQ77: 1 | BR77: 2 | BS77: 1 | BT77: 1 | BU77: 1 | BV77: 1 | BW77: 1 | BX77: 1 | BY77: 1 | BZ77: 1 | CA77: 1 | CB77: 1 | CC77: 1 | CD77: 1 | CE77: 1 | CF77: 67 | CG77: Unterbäch | CH77: 2 | CI77: 1 | CJ77: 1 | CK77: 2 | CL77: 1 | CM77: 1
A78: Val d'Anniviers-Fang | B78: 6233/00 | C78: Dominique | D78: Barmaz | E78: 22500 | F78: 1998 | G78: 0 | H78: 610080 | I78: 121680 | J78: 815 | K78: Navisence | L78: Rhône | M78: 610030 | N78: 121690 | O78: 800 | P78: 6300 | R78: 15 | S78: 85 | T78: 10 | U78: 85 | V78: 0.3 | W78: 90 | X78: 1.5 | Y78: 90 | Z78: 0.3 | AA78: 15 | AC78: 2730 | AD78: 23533 | AF78: H | AG78: 52 | AH78: 52 | AI78: 12 | AJ78: 0 | AK78: 0 | AL78: 12 | AM78: 52 | AN78: 52 | AO78: 24 | AP78: 0 | AQ78: 0 | AR78: 12 | AS78: 104 | AT78: 104 | AU78: 0 | AV78: 52 | AW78: 52 | AX78: 1 | AY78: 1 | AZ78: PM | BA78: 1 | BB78: 0 | BD78: 1 | BE78: 2 | BF78: 2 | BG78: 2 | BH78: 2 | BI78: 1 | BJ78: 1 | BK78: 2 | BM78: 1 | BN78: 1 | BO78: 2 | BP78: 1 | BQ78: 1 | BR78: 1 | BS78: 2 | BT78: 1 | BU78: 1 | BV78: 1 | BW78: 1 | BX78: 1 | BY78: 1 | BZ78: 1 | CA78: 1 | CB78: 2 | CC78: 1 | CD78: 1 | CE78: 1 | CF78: 68 | CG78: Val d'Anniviers-Fang | CH78: 2 | CI78: 1 | CJ78: 2 | CK78: 5 | CL78: 1 | CM78: 1
A79: Varen | B79: 6116/00 | C79: Peter | D79: Oggier | E79: 1334 | F79: 1982 | G79: 0 | H79: 612625 | I79: 129280 | J79: 656 | K79: Rhône | L79: Rhône | M79: 612620 | N79: 129150 | O79: 578 | P79: 400 | R79: 20 | S79: 90 | V79: 0.8 | W79: 80 | Z79: 0.3 | AA79: 20 | AC79: 625 | AD79: 207 | AF79: J | AG79: 0 | AH79: 12 | AI79: 0 | AJ79: 0 | AK79: 0 | AL79: 0 | AM79: 0 | AN79: 12 | AO79: 0 | AP79: 0 | AQ79: 0 | AR79: 12 | AS79: 0 | AT79: 12 | AU79: 0 | AV79: 0 | AW79: 0 | AX79: 1 | AY79: 2 | AZ79: MM | BA79: 1 | BB79: 0 | BD79: 1 | BE79: 2 | BF79: 2 | BG79: 1 | BH79: 1 | BI79: 1 | BJ79: 1 | BK79: 1 | BL79: 2 | BM79: 1 | BN79: 1 | BO79: 1 | BP79: 1 | BQ79: 1 | BR79: 2 | BS79: 1 | BT79: 1 | BU79: 1 | BV79: 1 | BW79: 1 | BX79: 1 | BY79: 1 | BZ79: 1 | CA79: 1 | CB79: 1 | CC79: 1 | CD79: 1 | CE79: 1 | CF79: 69 | CG79: Briglina-Brig | CH79: 1 | CI79: 5 | CJ79: 5 | CK79: 1 | CL79: 2 | CM79: 1
A80: Vétroz-Conthey | B80: 6025/00 | C80: Laurent | D80: Roh | E80: 24000 | F80: 1975 | G80: 1997 | H80: 588150 | I80: 117700 | J80: 478 | K80: Rhône | L80: Rhône | M80: 588400 | N80: 116570 | O80: 475 | P80: 7500 | Q80: 5630 | R80: 15 | S80: 90 | T80: 10 | U80: 85 | V80: 0.8 | W80: 90 | Z80: 0.3 | AA80: 15 | AC80: 11321 | AD80: 472 | AF80: H | AG80: 52 | AH80: 52 | AI80: 12 | AJ80: 0 | AK80: 0 | AL80: 12 | AM80: 52 | AN80: 52 | AO80: 24 | AP80: 0 | AQ80: 0 | AR80: 12 | AS80: 104 | AT80: 104 | AU80: 0 | AV80: 52 | AW80: 52 | AX80: 1 | AY80: 1 | AZ80: PM | BA80: 1 | BB80: 0 | BC80: Soustraire les boues de Conhey-Erde | BD80: 2 | BE80: 1 | BF80: 2 | BG80: 2 | BH80: 2 | BI80: 1 | BJ80: 1 | BK80: 1 | BL80: 2 | BM80: 2 | BN80: 1 | BO80: 1 | BP80: 1 | BQ80: 1 | BR80: 2 | BS80: 1 | BT80: 1 | BU80: 1 | BV80: 1 | BW80: 1 | BX80: 1 | BY80: 1 | BZ80: 1 | CA80: 1 | CB80: 2 | CC80: 1 | CD80: 1 | CE80: 1 | CF80: 70 | CG80: Vétroz-Conthey | CH80: 1 | CI80: 1 | CJ80: 1 | CK80: 2 | CL80: 1 | CM80: 1
A81: Vionnaz | B81: 6158/02 | C81: Yvan | D81: Werlen | E81: 4200 | F81: 1991 | G81: 2013 | H81: 559400 | I81: 129650 | J81: 380 | K81: Canal Stockalper | L81: Léman | M81: 559440 | N81: 129690 | O81: 378 | P81: 1680 | Q81: 860 | R81: 15 | S81: 90 | T81: 10 | U81: 85 | V81: 0.8 | W81: 90 | X81: 1 | Y81: 90 | Z81: 0.3 | AA81: 15 | AC81: 1943 | AD81: 80 | AF81: H | AG81: 24 | AH81: 24 | AI81: 12 | AJ81: 0 | AK81: 0 | AL81: 12 | AM81: 24 | AN81: 24 | AO81: 24 | AP81: 0 | AQ81: 0 | AR81: 12 | AS81: 24 | AT81: 24 | AU81: 0 | AV81: 24 | AW81: 52 | AX81: 1 | AY81: 1 | AZ81: PM | BA81: 1 | BB81: 0 | BC81: ne pas subventionner centrif. Imposer trsprt boues à Coll-Muraz Vionnaz: choisir methode d'analyse --> "dilution" car DBO est déjà corrigée dans le fichier de la STEP mixte (au labo, Oxitop est utilisé). STEP mixte à majorité domestique -> assimilé à domestique | BD81: 2 | BE81: 1 | BF81: 2 | BG81: 2 | BH81: 2 | BI81: 1 | BJ81: 1 | BK81: 4 | BL81: 1 | BM81: 1 | BN81: 1 | BO81: 1 | BP81: 1 | BQ81: 1 | BR81: 2 | BS81: 1 | BT81: 1 | BU81: 1 | BV81: 1 | BW81: 1 | BX81: 1 | BY81: 1 | BZ81: 1 | CA81: 1 | CB81: 1 | CC81: 1 | CD81: 1 | CE81: 1 | CF81: 71 | CG81: Vionnaz | CH81: 1 | CI81: 5 | CJ81: 5 | CK81: 5 | CL81: 1 | CM81: 1
A82: Vionnaz-Torgon | B82: 6158/01 | C82: Yvan | D82: Werlen | E82: 2800 | F82: 1977 | G82: 0 | H82: 556860 | I82: 129720 | J82: 960 | K82: Torrent de Torgon | L82: Avançon | M82: 556875 | N82: 129585 | O82: 895 | P82: 1000 | Q82: 155 | R82: 20 | S82: 90 | T82: 10 | U82: 85 | V82: 0.8 | W82: 85 | Z82: 0.3 | AA82: 20 | AC82: 345 | AD82: 3872 | AF82: H | AG82: 24 | AH82: 24 | AI82: 12 | AJ82: 0 | AK82: 0 | AL82: 12 | AM82: 24 | AN82: 24 | AO82: 24 | AP82: 0 | AQ82: 0 | AR82: 12 | AS82: 24 | AT82: 24 | AU82: 0 | AV82: 24 | AW82: 52 | AX82: 1 | AY82: 1 | AZ82: RB | BA82: 1 | BB82: 0 | BD82: 1 | BE82: 1 | BF82: 2 | BG82: 2 | BH82: 2 | BI82: 1 | BJ82: 1 | BK82: 4 | BL82: 2 | BM82: 1 | BN82: 1 | BO82: 1 | BP82: 1 | BQ82: 1 | BR82: 2 | BS82: 1 | BT82: 1 | BU82: 1 | BV82: 1 | BW82: 1 | BX82: 1 | BY82: 1 | BZ82: 1 | CA82: 1 | CB82: 2 | CC82: 2 | CD82: 1 | CE82: 1 | CF82: 72 | CG82: Vionnaz | CH82: 1 | CI82: 5 | CJ82: 5 | CK82: 5 | CL82: 1 | CM82: 2
A83: Vouvry | B83: 6159/00 | C83: Alain | D83: Pot | E83: 5000 | F83: 1970 | G83: 2003 | H83: 557780 | I83: 132730 | J83: 380 | K83: Rhône | L83: Rhône | M83: 557890 | N83: 132730 | O83: 376 | P83: 1800 | Q83: 1000 | R83: 20 | S83: 90 | T83: 10 | U83: 85 | V83: 0.8 | W83: 85 | Z83: 0.3 | AA83: 20 | AC83: 3372 | AD83: 0 | AF83: H | AG83: 52 | AH83: 52 | AI83: 12 | AJ83: 0 | AK83: 0 | AL83: 12 | AM83: 52 | AN83: 52 | AO83: 24 | AP83: 0 | AQ83: 0 | AR83: 12 | AS83: 52 | AT83: 52 | AU83: 0 | AV83: 52 | AW83: 52 | AX83: 1 | AY83: 1 | AZ83: PM | BA83: 1 | BB83: 0 | BD83: 1 | BE83: 1 | BF83: 2 | BG83: 2 | BH83: 2 | BI83: 1 | BJ83: 1 | BK83: 1 | BL83: 2 | BM83: 1 | BN83: 1 | BO83: 1 | BP83: 1 | BQ83: 1 | BR83: 2 | BS83: 1 | BT83: 1 | BU83: 1 | BV83: 1 | BW83: 1 | BX83: 1 | BY83: 1 | BZ83: 1 | CA83: 1 | CB83: 2 | CC83: 2 | CD83: 1 | CE83: 1 | CF83: 73 | CG83: Vionnaz | CH83: 1 | CI83: 5 | CJ83: 5 | CK83: 4 | CL83: 1 | CM83: 1
A84: Wiler | B84: 6202/00 | C84: Leo | D84: Rittler | E84: 2450 | F84: 2003 | G84: 0 | H84: 626250 | I84: 138870 | J84: 1350 | K84: Lonza | L84: Rhône | M84: 626177 | N84: 138826 | O84: 1340 | P84: 600 | R84: 20 | S84: 90 | T84: 10 | U84: 85 | V84: 0.8 | W84: 85 | Z84: 0.3 | AA84: 20 | AC84: 587 | AD84: 975 | AF84: H | AG84: 24 | AH84: 24 | AI84: 12 | AJ84: 0 | AK84: 0 | AL84: 12 | AM84: 24 | AN84: 24 | AO84: 24 | AP84: 0 | AQ84: 0 | AR84: 12 | AS84: 24 | AT84: 24 | AU84: 0 | AV84: 24 | AW84: 52 | AX84: 1 | AY84: 2 | AZ84: MM | BA84: 1 | BB84: 0 | BD84: 1 | BE84: 1 | BF84: 1 | BG84: 1 | BH84: 1 | BI84: 1 | BJ84: 2 | BK84: 3 | BM84: 1 | BN84: 1 | BO84: 1 | BP84: 1 | BQ84: 2 | BR84: 1 | BS84: 1 | BT84: 1 | BU84: 1 | BV84: 1 | BW84: 1 | BX84: 1 | BY84: 1 | BZ84: 1 | CA84: 1 | CB84: 3 | CC84: 1 | CD84: 1 | CE84: 1 | CF84: 74 | CG84: Wiler | CI84: 4 | CJ84: 5 | CL84: 1 | CM84: 1
A85: Zermatt | B85: 6300/00 | C85: Beni | D85: Zenhäusern | E85: 60000 | F85: 1983 | G85: 2013 | H85: 624350 | I85: 97575 | J85: 1589 | K85: Matter Vispa | L85: Vispa | M85: 624742 | N85: 97982 | O85: 1560 | P85: 17000 | R85: 10 | S85: 90 | T85: 10 | U85: 85 | V85: 0.5 | W85: 90 | X85: 2 | Y85: 90 | Z85: 0.3 | AA85: 10 | AC85: 5600 | AD85: 29704 | AF85: H | AG85: 52 | AH85: 52 | AI85: 12 | AJ85: 0 | AK85: 0 | AL85: 12 | AM85: 104 | AN85: 104 | AO85: 24 | AP85: 0 | AQ85: 0 | AR85: 12 | AS85: 104 | AT85: 104 | AU85: 0 | AV85: 52 | AW85: 52 | AX85: 1 | AY85: 2 | AZ85: DO | BA85: 1 | BB85: 0 | BC85: Vor Umbau, ab 1983: 40'000 EW ohne Nitrifikation | BD85: 2 | BE85: 1 | BF85: 2 | BG85: 2 | BH85: 2 | BI85: 1 | BJ85: 1 | BK85: 1 | BL85: 6 | BM85: 1 | BN85: 1 | BO85: 1 | BP85: 1 | BQ85: 1 | BR85: 1 | BS85: 1 | BT85: 1 | BU85: 2 | BV85: 1 | BW85: 1 | BX85: 1 | BY85: 1 | BZ85: 1 | CA85: 1 | CB85: 2 | CC85: 1 | CD85: 1 | CE85: 1 | CF85: 75 | CG85: Zermatt | CH85: 1 | CI85: 5 | CJ85: 5 | CK85: 4 | CL85: 1 | CM85: 1
A86: Zwischbergen-Gondo | B86: 6011/00 | C86: Simon | D86: Squaratti | E86: 157 | F86: 1986 | G86: 0 | H86: 654270 | I86: 116285 | J86: 820 | K86: Doveria | L86: Doveria | M86: 654295 | N86: 116240 | O86: 820 | P86: 50 | AC86: 87 | AD86: 0 | AF86: 0 | AG86: 0 | AH86: 0 | AI86: 0 | AJ86: 0 | AK86: 0 | AL86: 0 | AM86: 0 | AN86: 0 | AO86: 0 | AP86: 0 | AQ86: 0 | AR86: 0 | AS86: 0 | AT86: 0 | AU86: 0 | AV86: 0 | AW86: 0 | AX86: 0 | AY86: 2 | AZ86: MM | BA86: 1 | BB86: 0 | BD86: 1 | BE86: 1 | BF86: 1 | BG86: 1 | BH86: 1 | BI86: 1 | BJ86: 1 | BK86: 4 | BM86: 1 | BN86: 1 | BO86: 1 | BP86: 1 | BQ86: 1 | BR86: 1 | BS86: 1 | BT86: 1 | BU86: 1 | BV86: 1 | BW86: 1 | BX86: 1 | BY86: 1 | BZ86: 1 | CA86: 1 | CB86: 1 | CC86: 1 | CD86: 1 | CE86: 1 | CF86: 76 | CG86: à completer | CI86: 5 | CJ86: 5 | CL86: 1 | CM86: 1
A87: vide 6 | B87: 6300/05 | C87: à remplir | D87: à remplir | E87: 60005 | F87: 1983 | G87: 2013 | H87: 624350 | I87: 97575 | J87: 1594 | K87: Matter Vispa | M87: 624742 | N87: 97982 | O87: 1560 | P87: 17000 | Q87: 0 | R87: 10 | S87: 90 | T87: 10 | U87: 85 | V87: 0.5 | W87: 90 | X87: 2 | Y87: 90 | Z87: 0.3 | AA87: 10 | AC87: 5726 | AD87: 15120 | AF87: J | AG87: 52 | AH87: 52 | AI87: 12 | AJ87: 0 | AK87: 0 | AL87: 12 | AM87: 104 | AN87: 104 | AO87: 24 | AP87: 0 | AQ87: 0 | AR87: 12 | AS87: 104 | AT87: 104 | AU87: 0 | AV87: 52 | AW87: 52 | AX87: 1 | AY87: 2 | AZ87: DI | BA87: 1 | BB87: 0 | BC87: - | BD87: 2 | BE87: 1 | BF87: 2 | BG87: 2 | BH87: 2 | BI87: 1 | BJ87: 1 | BK87: 1 | BL87: 6 | BM87: 1 | BN87: 1 | BO87: 1 | BP87: 1 | BQ87: 1 | BR87: 1 | BS87: 1 | BT87: 1 | BU87: 2 | BV87: 1 | BW87: 1 | BX87: 1 | BY87: 1 | BZ87: 1 | CA87: 1 | CB87: 2 | CC87: 1 | CD87: 1 | CE87: 1 | CF87: 75 | CG87: Zermatt | CH87: 1 | CI87: 5 | CJ87: 5 | CK87: 4 | CL87: 1 | CM87: 1
A88: vide 7 | B88: 6300/06 | C88: à remplir | D88: à remplir | E88: 60006 | F88: 1983 | G88: 2013 | H88: 624350 | I88: 97575 | J88: 1595 | K88: Matter Vispa | M88: 624742 | N88: 97982 | O88: 1560 | P88: 17000 | Q88: 0 | R88: 10 | S88: 90 | T88: 10 | U88: 85 | V88: 0.5 | W88: 90 | X88: 2 | Y88: 90 | Z88: 0.3 | AA88: 10 | AC88: 5726 | AD88: 15120 | AF88: J | AG88: 52 | AH88: 52 | AI88: 12 | AJ88: 0 | AK88: 0 | AL88: 12 | AM88: 104 | AN88: 104 | AO88: 24 | AP88: 0 | AQ88: 0 | AR88: 12 | AS88: 104 | AT88: 104 | AU88: 0 | AV88: 52 | AW88: 52 | AX88: 1 | AY88: 2 | AZ88: MI | BA88: 1 | BB88: 0 | BC88: - | BD88: 2 | BE88: 1 | BF88: 2 | BG88: 2 | BH88: 2 | BI88: 1 | BJ88: 1 | BK88: 1 | BL88: 6 | BM88: 1 | BN88: 1 | BO88: 1 | BP88: 1 | BQ88: 1 | BR88: 1 | BS88: 1 | BT88: 1 | BU88: 2 | BV88: 1 | BW88: 1 | BX88: 1 | BY88: 1 | BZ88: 1 | CA88: 1 | CB88: 2 | CC88: 1 | CD88: 1 | CE88: 1 | CF88: 75 | CG88: Zermatt | CH88: 1 | CI88: 5 | CJ88: 5 | CK88: 4 | CL88: 1 | CM88: 1
A89: vide 8 | B89: 6300/07 | C89: à remplir | D89: à remplir | E89: 60007 | F89: 1983 | G89: 2013 | H89: 624350 | I89: 97575 | J89: 1596 | K89: Matter Vispa | M89: 624742 | N89: 97982 | O89: 1560 | P89: 17000 | Q89: 0 | R89: 10 | S89: 90 | T89: 10 | U89: 85 | V89: 0.5 | W89: 90 | X89: 2 | Y89: 90 | Z89: 0.3 | AA89: 10 | AC89: 5726 | AD89: 15120 | AF89: J | AG89: 52 | AH89: 52 | AI89: 12 | AJ89: 0 | AK89: 0 | AL89: 12 | AM89: 104 | AN89: 104 | AO89: 24 | AP89: 0 | AQ89: 0 | AR89: 12 | AS89: 104 | AT89: 104 | AU89: 0 | AV89: 52 | AW89: 52 | AX89: 1 | AY89: 2 | AZ89: DO | BA89: 1 | BB89: 0 | BC89: - | BD89: 2 | BE89: 1 | BF89: 2 | BG89: 2 | BH89: 2 | BI89: 1 | BJ89: 1 | BK89: 1 | BL89: 6 | BM89: 1 | BN89: 1 | BO89: 1 | BP89: 1 | BQ89: 1 | BR89: 1 | BS89: 1 | BT89: 1 | BU89: 2 | BV89: 1 | BW89: 1 | BX89: 1 | BY89: 1 | BZ89: 1 | CA89: 1 | CB89: 2 | CC89: 1 | CD89: 1 | CE89: 1 | CF89: 75 | CG89: Zermatt | CH89: 1 | CI89: 5 | CJ89: 5 | CK89: 4 | CL89: 1 | CM89: 1
A90: vide 9 | B90: 6300/08 | C90: à remplir | D90: à remplir | E90: 60008 | F90: 1983 | G90: 2013 | H90: 624350 | I90: 97575 | J90: 1597 | K90: Matter Vispa | M90: 624742 | N90: 97982 | O90: 1560 | P90: 17000 | Q90: 0 | R90: 10 | S90: 90 | T90: 10 | U90: 85 | V90: 0.5 | W90: 90 | X90: 2 | Y90: 90 | Z90: 0.3 | AA90: 10 | AC90: 5726 | AD90: 15120 | AF90: J | AG90: 52 | AH90: 52 | AI90: 12 | AJ90: 0 | AK90: 0 | AL90: 12 | AM90: 104 | AN90: 104 | AO90: 24 | AP90: 0 | AQ90: 0 | AR90: 12 | AS90: 104 | AT90: 104 | AU90: 0 | AV90: 52 | AW90: 52 | AX90: 1 | AY90: 2 | AZ90: FR | BA90: 1 | BB90: 0 | BC90: - | BD90: 2 | BE90: 1 | BF90: 2 | BG90: 2 | BH90: 2 | BI90: 1 | BJ90: 1 | BK90: 1 | BL90: 6 | BM90: 1 | BN90: 1 | BO90: 1 | BP90: 1 | BQ90: 1 | BR90: 1 | BS90: 1 | BT90: 1 | BU90: 2 | BV90: 1 | BW90: 1 | BX90: 1 | BY90: 1 | BZ90: 1 | CA90: 1 | CB90: 2 | CC90: 1 | CD90: 1 | CE90: 1 | CF90: 75 | CG90: Zermatt | CH90: 1 | CI90: 5 | CJ90: 5 | CK90: 4 | CL90: 1 | CM90: 1
A91: vide 10 | B91: 6300/09 | C91: à remplir | D91: à remplir | E91: 60009 | F91: 1983 | G91: 2013 | H91: 624350 | I91: 97575 | J91: 1598 | K91: Matter Vispa | M91: 624742 | N91: 97982 | O91: 1560 | P91: 17000 | Q91: 0 | R91: 10 | S91: 90 | T91: 10 | U91: 85 | V91: 0.5 | W91: 90 | X91: 2 | Y91: 90 | Z91: 0.3 | AA91: 10 | AC91: 5726 | AD91: 15120 | AF91: J | AG91: 52 | AH91: 52 | AI91: 12 | AJ91: 0 | AK91: 0 | AL91: 12 | AM91: 104 | AN91: 104 | AO91: 24 | AP91: 0 | AQ91: 0 | AR91: 12 | AS91: 104 | AT91: 104 | AU91: 0 | AV91: 52 | AW91: 52 | AX91: 1 | AY91: 2 | AZ91: SA | BA91: 1 | BB91: 0 | BC91: - | BD91: 2 | BE91: 1 | BF91: 2 | BG91: 2 | BH91: 2 | BI91: 1 | BJ91: 1 | BK91: 1 | BL91: 6 | BM91: 1 | BN91: 1 | BO91: 1 | BP91: 1 | BQ91: 1 | BR91: 1 | BS91: 1 | BT91: 1 | BU91: 2 | BV91: 1 | BW91: 1 | BX91: 1 | BY91: 1 | BZ91: 1 | CA91: 1 | CB91: 2 | CC91: 1 | CD91: 1 | CE91: 1 | CF91: 75 | CG91: Zermatt | CH91: 1 | CI91: 5 | CJ91: 5 | CK91: 4 | CL91: 1 | CM91: 1
A92: vide 11 | B92: 6300/10 | C92: à remplir | D92: à remplir | E92: 60010 | F92: 1983 | G92: 2013 | H92: 624350 | I92: 97575 | J92: 1599 | K92: Matter Vispa | M92: 624742 | N92: 97982 | O92: 1560 | P92: 17000 | Q92: 0 | R92: 10 | S92: 90 | T92: 10 | U92: 85 | V92: 0.5 | W92: 90 | X92: 2 | Y92: 90 | Z92: 0.3 | AA92: 10 | AC92: 5726 | AD92: 15120 | AF92: J | AG92: 52 | AH92: 52 | AI92: 12 | AJ92: 0 | AK92: 0 | AL92: 12 | AM92: 104 | AN92: 104 | AO92: 24 | AP92: 0 | AQ92: 0 | AR92: 12 | AS92: 104 | AT92: 104 | AU92: 0 | AV92: 52 | AW92: 52 | AX92: 1 | AY92: 2 | AZ92: SO | BA92: 1 | BB92: 0 | BC92: - | BD92: 2 | BE92: 1 | BF92: 2 | BG92: 2 | BH92: 2 | BI92: 1 | BJ92: 1 | BK92: 1 | BL92: 6 | BM92: 1 | BN92: 1 | BO92: 1 | BP92: 1 | BQ92: 1 | BR92: 1 | BS92: 1 | BT92: 1 | BU92: 2 | BV92: 1 | BW92: 1 | BX92: 1 | BY92: 1 | BZ92: 1 | CA92: 1 | CB92: 2 | CC92: 1 | CD92: 1 | CE92: 1 | CF92: 75 | CG92: Zermatt | CH92: 1 | CI92: 5 | CJ92: 5 | CK92: 4 | CL92: 1 | CM92: 1
A93: vide 12 | B93: 6300/11 | C93: à remplir | D93: à remplir | E93: 60011 | F93: 1983 | G93: 2013 | H93: 624350 | I93: 97575 | J93: 1600 | K93: Matter Vispa | M93: 624742 | N93: 97982 | O93: 1560 | P93: 17000 | Q93: 0 | R93: 10 | S93: 90 | T93: 10 | U93: 85 | V93: 0.5 | W93: 90 | X93: 2 | Y93: 90 | Z93: 0.3 | AA93: 10 | AC93: 5726 | AD93: 15120 | AF93: J | AG93: 52 | AH93: 52 | AI93: 12 | AJ93: 0 | AK93: 0 | AL93: 12 | AM93: 104 | AN93: 104 | AO93: 24 | AP93: 0 | AQ93: 0 | AR93: 12 | AS93: 104 | AT93: 104 | AU93: 0 | AV93: 52 | AW93: 52 | AX93: 1 | AY93: 2 | AZ93: MO | BA93: 1 | BB93: 0 | BC93: - | BD93: 2 | BE93: 1 | BF93: 2 | BG93: 2 | BH93: 2 | BI93: 1 | BJ93: 1 | BK93: 1 | BL93: 6 | BM93: 1 | BN93: 1 | BO93: 1 | BP93: 1 | BQ93: 1 | BR93: 1 | BS93: 1 | BT93: 1 | BU93: 2 | BV93: 1 | BW93: 1 | BX93: 1 | BY93: 1 | BZ93: 1 | CA93: 1 | CB93: 2 | CC93: 1 | CD93: 1 | CE93: 1 | CF93: 75 | CG93: Zermatt | CH93: 1 | CI93: 5 | CJ93: 5 | CK93: 4 | CL93: 1 | CM93: 1
A94: vide 13 | B94: 6300/12 | C94: à remplir | D94: à remplir | E94: 60012 | F94: 1983 | G94: 2013 | H94: 624350 | I94: 97575 | J94: 1601 | K94: Matter Vispa | M94: 624742 | N94: 97982 | O94: 1560 | P94: 17000 | Q94: 0 | R94: 10 | S94: 90 | T94: 10 | U94: 85 | V94: 0.5 | W94: 90 | X94: 2 | Y94: 90 | Z94: 0.3 | AA94: 10 | AC94: 5726 | AD94: 15120 | AF94: J | AG94: 52 | AH94: 52 | AI94: 12 | AJ94: 0 | AK94: 0 | AL94: 12 | AM94: 104 | AN94: 104 | AO94: 24 | AP94: 0 | AQ94: 0 | AR94: 12 | AS94: 104 | AT94: 104 | AU94: 0 | AV94: 52 | AW94: 52 | AX94: 1 | AY94: 2 | AZ94: DI | BA94: 1 | BB94: 0 | BC94: - | BD94: 2 | BE94: 1 | BF94: 2 | BG94: 2 | BH94: 2 | BI94: 1 | BJ94: 1 | BK94: 1 | BL94: 6 | BM94: 1 | BN94: 1 | BO94: 1 | BP94: 1 | BQ94: 1 | BR94: 1 | BS94: 1 | BT94: 1 | BU94: 2 | BV94: 1 | BW94: 1 | BX94: 1 | BY94: 1 | BZ94: 1 | CA94: 1 | CB94: 2 | CC94: 1 | CD94: 1 | CE94: 1 | CF94: 75 | CG94: Zermatt | CH94: 1 | CI94: 5 | CJ94: 5 | CK94: 4 | CL94: 1 | CM94: 1
A95: vide 14 | B95: 6300/13 | C95: à remplir | D95: à remplir | E95: 60013 | F95: 1983 | G95: 2013 | H95: 624350 | I95: 97575 | J95: 1602 | K95: Matter Vispa | M95: 624742 | N95: 97982 | O95: 1560 | P95: 17000 | Q95: 0 | R95: 10 | S95: 90 | T95: 10 | U95: 85 | V95: 0.5 | W95: 90 | X95: 2 | Y95: 90 | Z95: 0.3 | AA95: 10 | AC95: 5726 | AD95: 15120 | AF95: J | AG95: 52 | AH95: 52 | AI95: 12 | AJ95: 0 | AK95: 0 | AL95: 12 | AM95: 104 | AN95: 104 | AO95: 24 | AP95: 0 | AQ95: 0 | AR95: 12 | AS95: 104 | AT95: 104 | AU95: 0 | AV95: 52 | AW95: 52 | AX95: 1 | AY95: 2 | AZ95: MI | BA95: 1 | BB95: 0 | BC95: - | BD95: 2 | BE95: 1 | BF95: 2 | BG95: 2 | BH95: 2 | BI95: 1 | BJ95: 1 | BK95: 1 | BL95: 6 | BM95: 1 | BN95: 1 | BO95: 1 | BP95: 1 | BQ95: 1 | BR95: 1 | BS95: 1 | BT95: 1 | BU95: 2 | BV95: 1 | BW95: 1 | BX95: 1 | BY95: 1 | BZ95: 1 | CA95: 1 | CB95: 2 | CC95: 1 | CD95: 1 | CE95: 1 | CF95: 75 | CG95: Zermatt | CH95: 1 | CI95: 5 | CJ95: 5 | CK95: 4 | CL95: 1 | CM95: 1
A96: vide 15 | B96: 6300/14 | C96: à remplir | D96: à remplir | E96: 60014 | F96: 1983 | G96: 2013 | H96: 624350 | I96: 97575 | J96: 1603 | K96: Matter Vispa | M96: 624742 | N96: 97982 | O96: 1560 | P96: 17000 | Q96: 0 | R96: 10 | S96: 90 | T96: 10 | U96: 85 | V96: 0.5 | W96: 90 | X96: 2 | Y96: 90 | Z96: 0.3 | AA96: 10 | AC96: 5726 | AD96: 15120 | AF96: J | AG96: 52 | AH96: 52 | AI96: 12 | AJ96: 0 | AK96: 0 | AL96: 12 | AM96: 104 | AN96: 104 | AO96: 24 | AP96: 0 | AQ96: 0 | AR96: 12 | AS96: 104 | AT96: 104 | AU96: 0 | AV96: 52 | AW96: 52 | AX96: 1 | AY96: 2 | AZ96: DO | BA96: 1 | BB96: 0 | BC96: - | BD96: 2 | BE96: 1 | BF96: 2 | BG96: 2 | BH96: 2 | BI96: 1 | BJ96: 1 | BK96: 1 | BL96: 6 | BM96: 1 | BN96: 1 | BO96: 1 | BP96: 1 | BQ96: 1 | BR96: 1 | BS96: 1 | BT96: 1 | BU96: 2 | BV96: 1 | BW96: 1 | BX96: 1 | BY96: 1 | BZ96: 1 | CA96: 1 | CB96: 2 | CC96: 1 | CD96: 1 | CE96: 1 | CF96: 75 | CG96: Zermatt | CH96: 1 | CI96: 5 | CJ96: 5 | CK96: 4 | CL96: 1 | CM96: 1
A97: vide 16 | B97: 6300/15 | C97: à remplir | D97: à remplir | E97: 60015 | F97: 1983 | G97: 2013 | H97: 624350 | I97: 97575 | J97: 1604 | K97: Matter Vispa | M97: 624742 | N97: 97982 | O97: 1560 | P97: 17000 | Q97: 0 | R97: 10 | S97: 90 | T97: 10 | U97: 85 | V97: 0.5 | W97: 90 | X97: 2 | Y97: 90 | Z97: 0.3 | AA97: 10 | AC97: 5726 | AD97: 15120 | AF97: J | AG97: 52 | AH97: 52 | AI97: 12 | AJ97: 0 | AK97: 0 | AL97: 12 | AM97: 104 | AN97: 104 | AO97: 24 | AP97: 0 | AQ97: 0 | AR97: 12 | AS97: 104 | AT97: 104 | AU97: 0 | AV97: 52 | AW97: 52 | AX97: 1 | AY97: 2 | AZ97: FR | BA97: 1 | BB97: 0 | BC97: - | BD97: 2 | BE97: 1 | BF97: 2 | BG97: 2 | BH97: 2 | BI97: 1 | BJ97: 1 | BK97: 1 | BL97: 6 | BM97: 1 | BN97: 1 | BO97: 1 | BP97: 1 | BQ97: 1 | BR97: 1 | BS97: 1 | BT97: 1 | BU97: 2 | BV97: 1 | BW97: 1 | BX97: 1 | BY97: 1 | BZ97: 1 | CA97: 1 | CB97: 2 | CC97: 1 | CD97: 1 | CE97: 1 | CF97: 75 | CG97: Zermatt | CH97: 1 | CI97: 5 | CJ97: 5 | CK97: 4 | CL97: 1 | CM97: 1
A98: vide 17 | B98: 6300/16 | C98: à remplir | D98: à remplir | E98: 60016 | F98: 1983 | G98: 2013 | H98: 624350 | I98: 97575 | J98: 1605 | K98: Matter Vispa | M98: 624742 | N98: 97982 | O98: 1560 | P98: 17000 | Q98: 0 | R98: 10 | S98: 90 | T98: 10 | U98: 85 | V98: 0.5 | W98: 90 | X98: 2 | Y98: 90 | Z98: 0.3 | AA98: 10 | AC98: 5726 | AD98: 15120 | AF98: J | AG98: 52 | AH98: 52 | AI98: 12 | AJ98: 0 | AK98: 0 | AL98: 12 | AM98: 104 | AN98: 104 | AO98: 24 | AP98: 0 | AQ98: 0 | AR98: 12 | AS98: 104 | AT98: 104 | AU98: 0 | AV98: 52 | AW98: 52 | AX98: 1 | AY98: 2 | AZ98: SA | BA98: 1 | BB98: 0 | BC98: - | BD98: 2 | BE98: 1 | BF98: 2 | BG98: 2 | BH98: 2 | BI98: 1 | BJ98: 1 | BK98: 1 | BL98: 6 | BM98: 1 | BN98: 1 | BO98: 1 | BP98: 1 | BQ98: 1 | BR98: 1 | BS98: 1 | BT98: 1 | BU98: 2 | BV98: 1 | BW98: 1 | BX98: 1 | BY98: 1 | BZ98: 1 | CA98: 1 | CB98: 2 | CC98: 1 | CD98: 1 | CE98: 1 | CF98: 75 | CG98: Zermatt | CH98: 1 | CI98: 5 | CJ98: 5 | CK98: 4 | CL98: 1 | CM98: 1
A99: vide 18 | B99: 6300/17 | C99: à remplir | D99: à remplir | E99: 60017 | F99: 1983 | G99: 2013 | H99: 624350 | I99: 97575 | J99: 1606 | K99: Matter Vispa | M99: 624742 | N99: 97982 | O99: 1560 | P99: 17000 | Q99: 0 | R99: 10 | S99: 90 | T99: 10 | U99: 85 | V99: 0.5 | W99: 90 | X99: 2 | Y99: 90 | Z99: 0.3 | AA99: 10 | AC99: 5726 | AD99: 15120 | AF99: J | AG99: 52 | AH99: 52 | AI99: 12 | AJ99: 0 | AK99: 0 | AL99: 12 | AM99: 104 | AN99: 104 | AO99: 24 | AP99: 0 | AQ99: 0 | AR99: 12 | AS99: 104 | AT99: 104 | AU99: 0 | AV99: 52 | AW99: 52 | AX99: 1 | AY99: 2 | AZ99: SO | BA99: 1 | BB99: 0 | BC99: - | BD99: 2 | BE99: 1 | BF99: 2 | BG99: 2 | BH99: 2 | BI99: 1 | BJ99: 1 | BK99: 1 | BL99: 6 | BM99: 1 | BN99: 1 | BO99: 1 | BP99: 1 | BQ99: 1 | BR99: 1 | BS99: 1 | BT99: 1 | BU99: 2 | BV99: 1 | BW99: 1 | BX99: 1 | BY99: 1 | BZ99: 1 | CA99: 1 | CB99: 2 | CC99: 1 | CD99: 1 | CE99: 1 | CF99: 75 | CG99: Zermatt | CH99: 1 | CI99: 5 | CJ99: 5 | CK99: 4 | CL99: 1 | CM99: 1
A100: vide 19 | B100: 6300/00 | C100: à remplir | D100: à remplir | E100: 60000 | F100: 1983 | G100: 2013 | H100: 624350 | I100: 97575 | J100: 1589 | K100: Matter Vispa | M100: 624742 | N100: 97982 | O100: 1560 | P100: 17000 | Q100: 0 | R100: 10 | S100: 90 | T100: 10 | U100: 85 | V100: 0.5 | W100: 90 | X100: 2 | Y100: 90 | Z100: 0.3 | AA100: 10 | AC100: 5726 | AD100: 15120 | AF100: J | AG100: 52 | AH100: 52 | AI100: 12 | AJ100: 0 | AK100: 0 | AL100: 12 | AM100: 104 | AN100: 104 | AO100: 24 | AP100: 0 | AQ100: 0 | AR100: 12 | AS100: 104 | AT100: 104 | AU100: 0 | AV100: 52 | AW100: 52 | AX100: 1 | AY100: 2 | AZ100: DO | BA100: 1 | BB100: 0 | BC100: - | BD100: 2 | BE100: 1 | BF100: 2 | BG100: 2 | BH100: 2 | BI100: 1 | BJ100: 1 | BK100: 1 | BL100: 6 | BM100: 1 | BN100: 1 | BO100: 1 | BP100: 1 | BQ100: 1 | BR100: 1 | BS100: 1 | BT100: 1 | BU100: 2 | BV100: 1 | BW100: 1 | BX100: 1 | BY100: 1 | BZ100: 1 | CA100: 1 | CB100: 2 | CC100: 1 | CD100: 1 | CE100: 1 | CF100: 75 | CG100: Zermatt | CH100: 1 | CI100: 5 | CJ100: 5 | CK100: 4 | CL100: 1 | CM100: 1
B101: Concerne STEP de : | E101: 40
A102: 1 | B102: =A102+1 -> 2 | C102: 3 | D102: 4 | E102: 5 | F102: 6 | G102: 7 | H102: 8 | I102: 9 | J102: 10 | K102: 11 | L102: 12 | M102: 13 | N102: 14 | O102: 15 | P102: 16 | Q102: 17 | R102: 18 | S102: 19 | T102: 20 | U102: 21 | V102: 22 | W102: 23 | X102: 24 | Y102: 25 | Z102: 26 | AA102: 27 | AB102: 28 | AC102: 29 | AD102: 30 | AE102: 31 | AF102: 32 | AG102: 33 | AH102: 34 | AI102: 35 | AJ102: 36 | AK102: 37 | AL102: 38 | AM102: 39 | AN102: 40 | AO102: 41 | AP102: 42 | AQ102: 43 | AR102: 44 | AS102: 45 | AT102: 46 | AU102: 47 | AV102: 48 | AW102: 49 | AX102: 50 | AY102: 51 | AZ102: 52 | BA102: 53 | BB102: 54 | BC102: 55 | BD102: 56 | BE102: 57 | BF102: 58 | BG102: 59 | BH102: 60 | BI102: 61 | BJ102: 62 | BK102: 63 | BL102: 64 | BM102: 65 | BN102: =BM102+1 -> 66 | BO102: 67 | BP102: 68 | BQ102: 69 | BR102: 70 | BS102: 71 | BT102: 72 | BU102: 73 | BV102: 74 | BW102: 75 | BX102: 76 | BY102: 77 | BZ102: 78 | CA102: 79 | CB102: 80 | CC102: 81 | CD102: 82 | CE102: 83 | CF102: 84 | CG102: 85 | CH102: 86 | CI102: 87 | CJ102: 88 | CK102: 89 | CL102: 90 | CM102: 91
A104: =A1 -> STEP | B104: =B1 -> NoSTEP | E104: CapBiol | F104: AnCons | G104: AnTrans | H104: Coord_STEP_X | I104: Coord_STEP_Y | J104: Coord_STEP_alt | K104: EX_IMM_NOM | L104: EX_FIN_NOM | M104: Coord_rejet_X | N104: Coord_rejet_Y | O104: Coord_rejet_alt | P104: QSTEP | Q104: VBio | R104: DBO5c | S104: DBO5rdt | T104: DOCc | U104: DOCrdt | V104: Ptotc | W104: Ptotrdt | X104: NNH4c | Y104: NNH4rdt | Z104: NO2c | AA104: MESc | AB104: champs de reserve (disponible) | AC104: Habitants rac. | AD104: Lits touristiques rac. | AE104: champs de reserve (disponible) | AF104: FQ_SORTIE | AG104: FDBO5_ENTREE | AH104: FDBO5_SORTIE | AI104: FCOT_ENTREE | AJ104: FCOT_SORTIE | AK104: FCOD_ENTREE | AL104: FCOD_SORTIE | AM104: FNH4_ENTREE | AN104: FNH4_SORTIE | AO104: FNTOT_ENTREE | AP104: FNTOT_SORTIE | AQ104: FNO2_ENTREE | AR104: FNO2_SORTIE | AS104: FPTOT_ENTREE | AT104: FPTOT_SORTIE | AU104: FMES_ENTREE | AV104: FMES_SORTIE | AW104: FTEMP | AX104: FBOUES | AY104: Langue | AZ104: Responsable | BA104: Type STEP | BB104: EH_part_indus | BC104: commentaire général | BD104: =BD1 -> Relevage | BE104: Dégrilleur grossier | BF104: Dessableur | BG104: Déshuileur | BH104: Tamiseur | BI104: Salsnes | BJ104: autre | BK104: Décantation primaire | BL104: Boues activées | BM104: Chenal d'oxydation | BN104: Lit bactérien | BO104: Biofiltre | BP104: Disque biologique | BQ104: Lagunage/Phytoplancton | BR104: Classique | BS104: Filtration | BT104: Micro-tamis | BU104: Membrane | BV104: Flottation | BW104: autre | BX104: Filtration | BY104: Ozonation | BZ104: Charbon actif | CA104: autre | CB104: Methode d'analyse de la DBO5 | CC104: Choix du débimètre utilisé pour calculs | CD104: Le preleveur de sortie mesure | CE104: Bypass DP sans eaux usées industrielles | CF104: Analyses effectuées par le labo (N° du Labo) | CG104: Analyses effectuées par le labo | CH104: Epaississement des boues | CI104: Stabilisation | CJ104: Valorisation du biogaz | CK104: Déshydratation | CL104: Séchage | CM104: Incinération
A105: =IF(INDEX($A$3:$DJ100,$E$101,A102)="","",INDEX($A$3:$DJ100,$E$101,A102)) -> Leuk-Radet | B105: =IF(INDEX($A$3:$DJ100,$E$101,B102)="","",INDEX($A$3:$DJ100,$E$101,B102)) -> 6110/00 | C105: =IF(INDEX($A$3:$DJ100,$E$101,C102)="","",INDEX($A$3:$DJ100,$E$101,C102)) -> Reinhard | D105: =IF(INDEX($A$3:$DJ100,$E$101,D102)="","",INDEX($A$3:$DJ100,$E$101,D102)) -> Bregy | E105: =IF(INDEX($A$3:$DJ100,$E$101,E102)="","",INDEX($A$3:$DJ100,$E$101,E102)) -> 30500 | F105: =IF(INDEX($A$3:$DJ100,$E$101,F102)="","",INDEX($A$3:$DJ100,$E$101,F102)) -> 1995 | G105: =IF(INDEX($A$3:$DJ100,$E$101,G102)="","",INDEX($A$3:$DJ100,$E$101,G102)) -> 0 | H105: =IF(INDEX($A$3:$DJ100,$E$101,H102)="","",INDEX($A$3:$DJ100,$E$101,H102)) -> 619060 | I105: =IF(INDEX($A$3:$DJ100,$E$101,I102)="","",INDEX($A$3:$DJ100,$E$101,I102)) -> 128720 | J105: =IF(INDEX($A$3:$DJ100,$E$101,J102)="","",INDEX($A$3:$DJ100,$E$101,J102)) -> 620 | K105: =IF(INDEX($A$3:$DJ100,$E$101,K102)="","",INDEX($A$3:$DJ100,$E$101,K102)) -> Rhône | L105: =IF(INDEX($A$3:$DJ100,$E$101,L102)="","",INDEX($A$3:$DJ100,$E$101,L102)) -> Rhône | M105: =IF(INDEX($A$3:$DJ100,$E$101,M102)="","",INDEX($A$3:$DJ100,$E$101,M102)) -> 619200 | N105: =IF(INDEX($A$3:$DJ100,$E$101,N102)="","",INDEX($A$3:$DJ100,$E$101,N102)) -> 128550 | O105: =IF(INDEX($A$3:$DJ100,$E$101,O102)="","",INDEX($A$3:$DJ100,$E$101,O102)) -> 618 | P105: =IF(INDEX($A$3:$DJ100,$E$101,P102)="","",INDEX($A$3:$DJ100,$E$101,P102)) -> 9766 | Q105: =IF(INDEX($A$3:$DJ100,$E$101,Q102)="","",INDEX($A$3:$DJ100,$E$101,Q102)) -> 2710 | R105: =IF(INDEX($A$3:$DJ100,$E$101,R102)="","",INDEX($A$3:$DJ100,$E$101,R102)) -> 15 | S105: =IF(INDEX($A$3:$DJ100,$E$101,S102)="","",INDEX($A$3:$DJ100,$E$101,S102)) -> 90 | T105: =IF(INDEX($A$3:$DJ100,$E$101,T102)="","",INDEX($A$3:$DJ100,$E$101,T102)) -> 10 | U105: =IF(INDEX($A$3:$DJ100,$E$101,U102)="","",INDEX($A$3:$DJ100,$E$101,U102)) -> 85 | V105: =IF(INDEX($A$3:$DJ100,$E$101,V102)="","",INDEX($A$3:$DJ100,$E$101,V102)) -> 0.8 | W105: =IF(INDEX($A$3:$DJ100,$E$101,W102)="","",INDEX($A$3:$DJ100,$E$101,W102)) -> 90 | X105: =IF(INDEX($A$3:$DJ100,$E$101,X102)="","",INDEX($A$3:$DJ100,$E$101,X102)) ->  | Y105: =IF(INDEX($A$3:$DJ100,$E$101,Y102)="","",INDEX($A$3:$DJ100,$E$101,Y102)) ->  | Z105: =IF(INDEX($A$3:$DJ100,$E$101,Z102)="","",INDEX($A$3:$DJ100,$E$101,Z102)) -> 0.3 | AA105: =IF(INDEX($A$3:$DJ100,$E$101,AA102)="","",INDEX($A$3:$DJ100,$E$101,AA102)) -> 15 | AB105: =IF(INDEX($A$3:$DJ100,$E$101,AB102)="","",INDEX($A$3:$DJ100,$E$101,AB102)) ->  | AC105: =IF(INDEX($A$3:$DJ100,$E$101,AC102)="","",INDEX($A$3:$DJ100,$E$101,AC102)) -> 13169 | AD105: =IF(INDEX($A$3:$DJ100,$E$101,AD102)="","",INDEX($A$3:$DJ100,$E$101,AD102)) -> 10923 | AE105: =IF(INDEX($A$3:$DJ100,$E$101,AE102)="","",INDEX($A$3:$DJ100,$E$101,AE102)) ->  | AF105: =IF(INDEX($A$3:$DJ100,$E$101,AF102)="","",INDEX($A$3:$DJ100,$E$101,AF102)) -> H | AG105: =IF(INDEX($A$3:$DJ100,$E$101,AG102)="","",INDEX($A$3:$DJ100,$E$101,AG102)) -> 52 | AH105: =IF(INDEX($A$3:$DJ100,$E$101,AH102)="","",INDEX($A$3:$DJ100,$E$101,AH102)) -> 52 | AI105: =IF(INDEX($A$3:$DJ100,$E$101,AI102)="","",INDEX($A$3:$DJ100,$E$101,AI102)) -> 12 | AJ105: =IF(INDEX($A$3:$DJ100,$E$101,AJ102)="","",INDEX($A$3:$DJ100,$E$101,AJ102)) -> 0 | AK105: =IF(INDEX($A$3:$DJ100,$E$101,AK102)="","",INDEX($A$3:$DJ100,$E$101,AK102)) -> 0 | AL105: =IF(INDEX($A$3:$DJ100,$E$101,AL102)="","",INDEX($A$3:$DJ100,$E$101,AL102)) -> 12 | AM105: =IF(INDEX($A$3:$DJ100,$E$101,AM102)="","",INDEX($A$3:$DJ100,$E$101,AM102)) -> 52 | AN105: =IF(INDEX($A$3:$DJ100,$E$101,AN102)="","",INDEX($A$3:$DJ100,$E$101,AN102)) -> 52 | AO105: =IF(INDEX($A$3:$DJ100,$E$101,AO102)="","",INDEX($A$3:$DJ100,$E$101,AO102)) -> 24 | AP105: =IF(INDEX($A$3:$DJ100,$E$101,AP102)="","",INDEX($A$3:$DJ100,$E$101,AP102)) -> 0 | AQ105: =IF(INDEX($A$3:$DJ100,$E$101,AQ102)="","",INDEX($A$3:$DJ100,$E$101,AQ102)) -> 0 | AR105: =IF(INDEX($A$3:$DJ100,$E$101,AR102)="","",INDEX($A$3:$DJ100,$E$101,AR102)) -> 12 | AS105: =IF(INDEX($A$3:$DJ100,$E$101,AS102)="","",INDEX($A$3:$DJ100,$E$101,AS102)) -> 104 | AT105: =IF(INDEX($A$3:$DJ100,$E$101,AT102)="","",INDEX($A$3:$DJ100,$E$101,AT102)) -> 104 | AU105: =IF(INDEX($A$3:$DJ100,$E$101,AU102)="","",INDEX($A$3:$DJ100,$E$101,AU102)) -> 0 | AV105: =IF(INDEX($A$3:$DJ100,$E$101,AV102)="","",INDEX($A$3:$DJ100,$E$101,AV102)) -> 52 | AW105: =IF(INDEX($A$3:$DJ100,$E$101,AW102)="","",INDEX($A$3:$DJ100,$E$101,AW102)) -> 52 | AX105: =IF(INDEX($A$3:$DJ100,$E$101,AX102)="","",INDEX($A$3:$DJ100,$E$101,AX102)) -> 1 | AY105: =IF(INDEX($A$3:$DJ100,$E$101,AY102)="","",INDEX($A$3:$DJ100,$E$101,AY102)) -> 2 | AZ105: =IF(INDEX($A$3:$DJ100,$E$101,AZ102)="","",INDEX($A$3:$DJ100,$E$101,AZ102)) -> DO | BA105: =IF(INDEX($A$3:$DJ100,$E$101,BA102)="","",INDEX($A$3:$DJ100,$E$101,BA102)) -> 1 | BB105: =IF(INDEX($A$3:$DJ100,$E$101,BB102)="","",INDEX($A$3:$DJ100,$E$101,BB102)) -> 0 | BC105: =IF(INDEX($A$3:$DJ100,$E$101,BC102)="","",INDEX($A$3:$DJ100,$E$101,BC102)) ->  | BD105: =IF(INDEX($A$3:$DJ100,$E$101,BD102)="","",INDEX($A$3:$DJ100,$E$101,BD102)) -> 2 | BE105: =IF(INDEX($A$3:$DJ100,$E$101,BE102)="","",INDEX($A$3:$DJ100,$E$101,BE102)) -> 2 | BF105: =IF(INDEX($A$3:$DJ100,$E$101,BF102)="","",INDEX($A$3:$DJ100,$E$101,BF102)) -> 2 | BG105: =IF(INDEX($A$3:$DJ100,$E$101,BG102)="","",INDEX($A$3:$DJ100,$E$101,BG102)) -> 2 | BH105: =IF(INDEX($A$3:$DJ100,$E$101,BH102)="","",INDEX($A$3:$DJ100,$E$101,BH102)) -> 2 | BI105: =IF(INDEX($A$3:$DJ100,$E$101,BI102)="","",INDEX($A$3:$DJ100,$E$101,BI102)) -> 1 | BJ105: =IF(INDEX($A$3:$DJ100,$E$101,BJ102)="","",INDEX($A$3:$DJ100,$E$101,BJ102)) -> 1 | BK105: =IF(INDEX($A$3:$DJ100,$E$101,BK102)="","",INDEX($A$3:$DJ100,$E$101,BK102)) -> 1 | BL105: =IF(INDEX($A$3:$DJ100,$E$101,BL102)="","",INDEX($A$3:$DJ100,$E$101,BL102)) -> 2 | BM105: =IF(INDEX($A$3:$DJ100,$E$101,BM102)="","",INDEX($A$3:$DJ100,$E$101,BM102)) -> 1 | BN105: =IF(INDEX($A$3:$DJ100,$E$101,BN102)="","",INDEX($A$3:$DJ100,$E$101,BN102)) -> 1 | BO105: =IF(INDEX($A$3:$DJ100,$E$101,BO102)="","",INDEX($A$3:$DJ100,$E$101,BO102)) -> 1 | BP105: =IF(INDEX($A$3:$DJ100,$E$101,BP102)="","",INDEX($A$3:$DJ100,$E$101,BP102)) -> 1 | BQ105: =IF(INDEX($A$3:$DJ100,$E$101,BQ102)="","",INDEX($A$3:$DJ100,$E$101,BQ102)) -> 1 | BR105: =IF(INDEX($A$3:$DJ100,$E$101,BR102)="","",INDEX($A$3:$DJ100,$E$101,BR102)) -> 2 | BS105: =IF(INDEX($A$3:$DJ100,$E$101,BS102)="","",INDEX($A$3:$DJ100,$E$101,BS102)) -> 1 | BT105: =IF(INDEX($A$3:$DJ100,$E$101,BT102)="","",INDEX($A$3:$DJ100,$E$101,BT102)) -> 1 | BU105: =IF(INDEX($A$3:$DJ100,$E$101,BU102)="","",INDEX($A$3:$DJ100,$E$101,BU102)) -> 1 | BV105: =IF(INDEX($A$3:$DJ100,$E$101,BV102)="","",INDEX($A$3:$DJ100,$E$101,BV102)) -> 1 | BW105: =IF(INDEX($A$3:$DJ100,$E$101,BW102)="","",INDEX($A$3:$DJ100,$E$101,BW102)) -> 1 | BX105: =IF(INDEX($A$3:$DJ100,$E$101,BX102)="","",INDEX($A$3:$DJ100,$E$101,BX102)) -> 1 | BY105: =IF(INDEX($A$3:$DJ100,$E$101,BY102)="","",INDEX($A$3:$DJ100,$E$101,BY102)) -> 1 | BZ105: =IF(INDEX($A$3:$DJ100,$E$101,BZ102)="","",INDEX($A$3:$DJ100,$E$101,BZ102)) -> 1 | CA105: =IF(INDEX($A$3:$DJ100,$E$101,CA102)="","",INDEX($A$3:$DJ100,$E$101,CA102)) -> 1 | CB105: =IF(INDEX($A$3:$DJ100,$E$101,CB102)="","",INDEX($A$3:$DJ100,$E$101,CB102)) -> 1 | CC105: =IF(INDEX($A$3:$DJ100,$E$101,CC102)="","",INDEX($A$3:$DJ100,$E$101,CC102)) -> 1 | CD105: =IF(INDEX($A$3:$DJ100,$E$101,CD102)="","",INDEX($A$3:$DJ100,$E$101,CD102)) -> 1 | CE105: =IF(INDEX($A$3:$DJ100,$E$101,CE102)="","",INDEX($A$3:$DJ100,$E$101,CE102)) -> 1 | CF105: =IF(INDEX($A$3:$DJ100,$E$101,CF102)="","",INDEX($A$3:$DJ100,$E$101,CF102)) -> 35 | CG105: =IF(INDEX($A$3:$DJ100,$E$101,CG102)="","",INDEX($A$3:$DJ100,$E$101,CG102)) -> Leuk-Radet | CH105: =IF(INDEX($A$3:$DJ100,$E$101,CH102)="","",INDEX($A$3:$DJ100,$E$101,CH102)) -> 1 | CI105: =IF(INDEX($A$3:$DJ100,$E$101,CI102)="","",INDEX($A$3:$DJ100,$E$101,CI102)) -> 1 | CJ105: =IF(INDEX($A$3:$DJ100,$E$101,CJ102)="","",INDEX($A$3:$DJ100,$E$101,CJ102)) -> 2 | CK105: =IF(INDEX($A$3:$DJ100,$E$101,CK102)="","",INDEX($A$3:$DJ100,$E$101,CK102)) -> 5 | CL105: =IF(INDEX($A$3:$DJ100,$E$101,CL102)="","",INDEX($A$3:$DJ100,$E$101,CL102)) -> 1 | CM105: =IF(INDEX($A$3:$DJ100,$E$101,CM102)="","",INDEX($A$3:$DJ100,$E$101,CM102)) -> 1

Sheet exemple, Bsp.
A2: =bi("Eaux parasites. Dans les calculs, on utilise la méthode A)","Fremdwasserberechnung. In der Berechnung wird Methode A) angewendet") -> Fremdwasserberechnung. In der Berechnung wird Methode A) angewendet
A4: =bi(" A) Calcul % eaux claires parasites par rapport aux concentrations en entrée, moyenne annuelle","A) Berechnung % Fremdwasseranteil im Bezug auf Zulaufkonzentrationen, Jahresmittelwert") -> A) Berechnung % Fremdwasseranteil im Bezug auf Zulaufkonzentrationen, Jahresmittelwert
A5: =bi("Part des eaux claires totales (Part des eaux claires permanentes et pluviales dans les eaux traitées tout temps confondus)","Gesamter Fremdwasseranteil (ständiger Anteil und Regenwasser, am mittleren Abwasseranfall, unabhängig von der Witterung") -> Gesamter Fremdwasseranteil (ständiger Anteil und Regenwasser, am mittleren Abwasseranfall, unabhängig von der Witterung
A6: =bi("EXEMPLE","BEISPIEL") -> BEISPIEL | B6: =bi("1 EH","1 EW")&" =" -> 1 EW = | C6: 60 | D6: =bi("g DBO5 par jour","g BSB5 pro Tag") -> g BSB5 pro Tag
B7: =bi("1 EH","1 EW")&" =" -> 1 EW = | C7: 170 | D7: =bi("litres eau usée entrée STEP par jour","Liter Abwasser Zulauf ARA pro Tag") -> Liter Abwasser Zulauf ARA pro Tag
B8: =bi("correspond à","entspricht") -> entspricht | C8: =C6*1000/C7 -> 352.9411765 | D8: =bi("mg/l DBO5","mg/l BSB5") -> mg/l BSB5
A10: =bi(" Comparaison de la conc. DBO5 en entrée STEP avec la concentration de 353 mg/l DBO5:"," Vergleich der BSB5-Konz. im Zulauf der ARA mit der BSB5-Konzentration von 353 mg/l:") -> Vergleich der BSB5-Konz. im Zulauf der ARA mit der BSB5-Konzentration von 353 mg/l:
B11: =bi("Concentration DBO5 analysée en entrée STEP","Analysierte BSB5-Konz. im Zulauf der ARA") -> Analysierte BSB5-Konz. im Zulauf der ARA | F11: 200 | G11: mg/l
B12: =bi("Déficit par rapport à 353 mg/l BSB5","Defizit im Vergleich zu 353 mg/l BSB5") -> Defizit im Vergleich zu 353 mg/l BSB5 | F12: =ROUND(1-F11/C8,2) -> 0.43
B13: =bi("Qmoyen","QMittel") -> QMittel | F13: 17500 | G13: m3/d
B14: =bi("Débit ECP en entrée STEP","Durchfluss Fremdwasser im Zulauf der ARA") -> Durchfluss Fremdwasser im Zulauf der ARA | F14: =ROUND(F13*F12,0) -> 7525 | G14: m3/d
A16: =bi(" Ensuite on peut calculer les débits:"," Danach Berechnung der Durchflüsse:") -> Danach Berechnung der Durchflüsse:
A17: =bi("débit moyen journalier","Mittl. Tägl. Durchfluss") -> Mittl. Tägl. Durchfluss | G17: m3/d | H17: % ECP | I17: l/s
A18: =bi("Qmoyen","QMittel") -> QMittel | G18: 17500 | I18: =G18/86.4 -> 202.5462963
A19: =bi("ECP","Fremdw.") -> Fremdw. | B19: =bi(" = Qmoyen * % ECP","= QMittel * % Fremdwasser") -> = QMittel * % Fremdwasser | G19: =G18*H19 -> 10500 | H19: 0.6 | I19: =G19/86.4 -> 121.5277778
A20: =bi("EU théor.","Th. Abw.") -> Th. Abw. | B20: =bi(" = Qmoyen - ECP"," = QMittel - Fremdwasser") -> = QMittel - Fremdwasser | G20: =G18-G19 -> 7000 | I20: =G20/86.4 -> 81.01851852
A22: =bi("B) Calcul quantité d'eaux claires parasites (m3/d) par rapport au débit en entrée, moyenne annuelle","B) Berechnung Fremdwassermenge (m3/d) im Bezug auf Zulaufmenge, Jahresmittelwert") -> B) Berechnung Fremdwassermenge (m3/d) im Bezug auf Zulaufmenge, Jahresmittelwert
A23: =bi("Part des eaux claires permanentes, dans les eaux traitées par temps sec","Ständiger Fremdwasseranteil, Abwassermenge bei Trockenwetter") -> Ständiger Fremdwasseranteil, Abwassermenge bei Trockenwetter
A24: =bi(" Un autre mode de calcul est de calculer le nb moyen d'EH avec la charge en entrée de la STEP."," Andere Berechnung: Berechnung der EW mit BSB-Fracht im Zulauf der ARA") -> Andere Berechnung: Berechnung der EW mit BSB-Fracht im Zulauf der ARA
A25: =bi(" Ensuite on calcul de débit eau usée avec la valeur de 170 L / jour / EH."," Dann wird die Abwassermenge mit 170 L / Tag / EW berechnet.") -> Dann wird die Abwassermenge mit 170 L / Tag / EW berechnet.
A26: =bi(" Pour le débit ECP, on calcule: ECP = QTS - Q eau usée."," Für die Fremdwassermenge, berechnet man: Fremdw. = QTW - Q Abwasser.") -> Für die Fremdwassermenge, berechnet man: Fremdw. = QTW - Q Abwasser.
A27: =bi("EH en entrée STEP d'après la charge moyenne DBO5","EW Zulauf ARA gemäss BSB-Fracht") -> EW Zulauf ARA gemäss BSB-Fracht | F27: 42000 | G27: =bi("EH","EW") -> EW
A28: =bi("Débit eau usée par EH","Abwassermenge pro EW") -> Abwassermenge pro EW | F28: =C7 -> 170 | G28: =bi("l/EH/jour","L/EW/d") -> L/EW/d
A29: =bi("Débit eau usée théorique calculé","Theoretische Abwassermenge berechnet") -> Theoretische Abwassermenge berechnet | F29: =F27*F28/1000 -> 7140 | G29: m3/d | H29: =F29/24*1000/60/60 -> 82.63888889 | I29: l/s
A30: =bi("QTS","QTW") -> QTW | F30: 14000 | G30: m3/d | H30: =F30/24*1000/60/60 -> 162.037037 | I30: l/s
A31: =A19 -> Fremdw. | F31: =F30-F29 -> 6860 | G31: m3/d | H31: =F31/24*1000/60/60 -> 79.39814815 | I31: l/s
A32: ECP | F32: =ROUND(100*F31/F30,0)/100 -> 0.49
